Organisation Name,Organisation Code,Unique Ref No,Effective Date,Directorate where expenditure incurred,Supplier Name,Payment date,Net amount,Purpose of spend,"Procurement Classification
(Higher Level)","Procurement Classification 
(Lower Level)",CAPITAL / REVENUE
Walsall Council,http://opendatacommunities.org/id/metropolitan-district-council/walsall ,WC148-1,31.03.2023,"ECONOMY, ENVIRONMENT & COMMUNITIES",0 POINT EIGHT LIMITED,23/03/2023,"2,903.10",6414-Purchase of Furniture & Equipment,SUPPLIES & SERVICES,EQUIPMENT FURNITURE & MATERIALS,REVENUE
Walsall Council,http://opendatacommunities.org/id/metropolitan-district-council/walsall ,WC148-2,31.03.2023,"ECONOMY, ENVIRONMENT & COMMUNITIES",0 POINT EIGHT LIMITED,23/03/2023,"2,194.65",6414-Purchase of Furniture & Equipment,SUPPLIES & SERVICES,EQUIPMENT FURNITURE & MATERIALS,REVENUE
Walsall Council,http://opendatacommunities.org/id/metropolitan-district-council/walsall ,WC148-3,31.03.2023,"ECONOMY, ENVIRONMENT & COMMUNITIES",0 POINT EIGHT LIMITED,23/03/2023,"3,481.80",6414-Purchase of Furniture & Equipment,SUPPLIES & SERVICES,EQUIPMENT FURNITURE & MATERIALS,REVENUE
Walsall Council,http://opendatacommunities.org/id/metropolitan-district-council/walsall ,WC148-4,31.03.2023,"ECONOMY, ENVIRONMENT & COMMUNITIES",0 POINT EIGHT LIMITED,23/03/2023,"1,170.62",6414-Purchase of Furniture & Equipment,SUPPLIES & SERVICES,EQUIPMENT FURNITURE & MATERIALS,REVENUE
Walsall Council,http://opendatacommunities.org/id/metropolitan-district-council/walsall ,WC148-5,31.03.2023,"ECONOMY, ENVIRONMENT & COMMUNITIES",0 POINT EIGHT LIMITED,23/03/2023,"2,160.13",6414-Purchase of Furniture & Equipment,SUPPLIES & SERVICES,EQUIPMENT FURNITURE & MATERIALS,REVENUE
Walsall Council,http://opendatacommunities.org/id/metropolitan-district-council/walsall ,WC148-6,31.03.2023,RESOURCES AND TRANSFORMATION,11KBW,21/03/2023,"8,241.22",6610-School Only Payments - Catering,THIRD PARTY PAYMENTS,INDEPENDENT UNIT WITHIN COUNCIL,REVENUE
Walsall Council,http://opendatacommunities.org/id/metropolitan-district-council/walsall ,WC148-7,31.03.2023,"ECONOMY, ENVIRONMENT & COMMUNITIES",1974 RAPPORT LTD,01/03/2023,600.00,6410-External Training,INDIRECT EMPLOYEES,EXTERNAL TRAINING,REVENUE
Walsall Council,http://opendatacommunities.org/id/metropolitan-district-council/walsall ,WC148-8,31.03.2023,CHILDRENS,247 CARS (WILLENHALL) LIMITED,28/03/2023,"2,065.00",6241-Hire of Vehicle with Driver,TRANSPORT,DIRECT TRANSPORT COSTS,REVENUE
Walsall Council,http://opendatacommunities.org/id/metropolitan-district-council/walsall ,WC148-9,31.03.2023,CHILDRENS,247 CARS (WILLENHALL) LIMITED,28/03/2023,"1,387.50",6241-Hire of Vehicle with Driver,TRANSPORT,DIRECT TRANSPORT COSTS,REVENUE
Walsall Council,http://opendatacommunities.org/id/metropolitan-district-council/walsall ,WC148-10,31.03.2023,CHILDRENS,247 CARS (WILLENHALL) LIMITED,28/03/2023,"1,904.00",6241-Hire of Vehicle with Driver,TRANSPORT,DIRECT TRANSPORT COSTS,REVENUE
Walsall Council,http://opendatacommunities.org/id/metropolitan-district-council/walsall ,WC148-11,31.03.2023,CHILDRENS,247 CARS (WILLENHALL) LIMITED,28/03/2023,"1,704.00",6241-Hire of Vehicle with Driver,TRANSPORT,DIRECT TRANSPORT COSTS,REVENUE
Walsall Council,http://opendatacommunities.org/id/metropolitan-district-council/walsall ,WC148-12,31.03.2023,CHILDRENS,247 CARS (WILLENHALL) LIMITED,28/03/2023,"1,704.00",6241-Hire of Vehicle with Driver,TRANSPORT,DIRECT TRANSPORT COSTS,REVENUE
Walsall Council,http://opendatacommunities.org/id/metropolitan-district-council/walsall ,WC148-13,31.03.2023,CHILDRENS,247 CARS (WILLENHALL) LIMITED,28/03/2023,"1,974.00",6241-Hire of Vehicle with Driver,TRANSPORT,DIRECT TRANSPORT COSTS,REVENUE
Walsall Council,http://opendatacommunities.org/id/metropolitan-district-council/walsall ,WC148-14,31.03.2023,CHILDRENS,247 CARS (WILLENHALL) LIMITED,28/03/2023,"1,267.50",6241-Hire of Vehicle with Driver,TRANSPORT,DIRECT TRANSPORT COSTS,REVENUE
Walsall Council,http://opendatacommunities.org/id/metropolitan-district-council/walsall ,WC148-15,31.03.2023,CHILDRENS,247 CARS (WILLENHALL) LIMITED,28/03/2023,-568.00,6241-Hire of Vehicle with Driver,TRANSPORT,DIRECT TRANSPORT COSTS,REVENUE
Walsall Council,http://opendatacommunities.org/id/metropolitan-district-council/walsall ,WC148-16,31.03.2023,CHILDRENS,247 CARS (WILLENHALL) LIMITED,28/03/2023,"2,272.00",6241-Hire of Vehicle with Driver,TRANSPORT,DIRECT TRANSPORT COSTS,REVENUE
Walsall Council,http://opendatacommunities.org/id/metropolitan-district-council/walsall ,WC148-17,31.03.2023,CHILDRENS,247 CARS (WILLENHALL) LIMITED,28/03/2023,"1,096.20",6241-Hire of Vehicle with Driver,TRANSPORT,DIRECT TRANSPORT COSTS,REVENUE
Walsall Council,http://opendatacommunities.org/id/metropolitan-district-council/walsall ,WC148-18,31.03.2023,CHILDRENS,247 CARS (WILLENHALL) LIMITED,28/03/2023,"1,897.50",6241-Hire of Vehicle with Driver,TRANSPORT,DIRECT TRANSPORT COSTS,REVENUE
Walsall Council,http://opendatacommunities.org/id/metropolitan-district-council/walsall ,WC148-19,31.03.2023,CHILDRENS,247 CARS (WILLENHALL) LIMITED,28/03/2023,"1,704.00",6241-Hire of Vehicle with Driver,TRANSPORT,DIRECT TRANSPORT COSTS,REVENUE
Walsall Council,http://opendatacommunities.org/id/metropolitan-district-council/walsall ,WC148-20,31.03.2023,CHILDRENS,247 CARS (WILLENHALL) LIMITED,28/03/2023,"1,118.70",6241-Hire of Vehicle with Driver,TRANSPORT,DIRECT TRANSPORT COSTS,REVENUE
Walsall Council,http://opendatacommunities.org/id/metropolitan-district-council/walsall ,WC148-21,31.03.2023,CHILDRENS,247 CARS (WILLENHALL) LIMITED,28/03/2023,"1,800.45",6241-Hire of Vehicle with Driver,TRANSPORT,DIRECT TRANSPORT COSTS,REVENUE
Walsall Council,http://opendatacommunities.org/id/metropolitan-district-council/walsall ,WC148-22,31.03.2023,CHILDRENS,247 CARS (WILLENHALL) LIMITED,28/03/2023,823.20,6241-Hire of Vehicle with Driver,TRANSPORT,DIRECT TRANSPORT COSTS,REVENUE
Walsall Council,http://opendatacommunities.org/id/metropolitan-district-council/walsall ,WC148-23,31.03.2023,CHILDRENS,247 CARS (WILLENHALL) LIMITED,28/03/2023,307.60,6241-Hire of Vehicle with Driver,TRANSPORT,DIRECT TRANSPORT COSTS,REVENUE
Walsall Council,http://opendatacommunities.org/id/metropolitan-district-council/walsall ,WC148-24,31.03.2023,CHILDRENS,247 CARS (WILLENHALL) LIMITED,28/03/2023,"2,467.73",6241-Hire of Vehicle with Driver,TRANSPORT,DIRECT TRANSPORT COSTS,REVENUE
Walsall Council,http://opendatacommunities.org/id/metropolitan-district-council/walsall ,WC148-25,31.03.2023,CHILDRENS,247 CARS (WILLENHALL) LIMITED,28/03/2023,"1,387.50",6241-Hire of Vehicle with Driver,TRANSPORT,DIRECT TRANSPORT COSTS,REVENUE
Walsall Council,http://opendatacommunities.org/id/metropolitan-district-council/walsall ,WC148-26,31.03.2023,CHILDRENS,247 CARS (WILLENHALL) LIMITED,28/03/2023,"1,387.50",6241-Hire of Vehicle with Driver,TRANSPORT,DIRECT TRANSPORT COSTS,REVENUE
Walsall Council,http://opendatacommunities.org/id/metropolitan-district-council/walsall ,WC148-27,31.03.2023,CHILDRENS,247 CARS (WILLENHALL) LIMITED,28/03/2023,"1,387.50",6241-Hire of Vehicle with Driver,TRANSPORT,DIRECT TRANSPORT COSTS,REVENUE
Walsall Council,http://opendatacommunities.org/id/metropolitan-district-council/walsall ,WC148-28,31.03.2023,CHILDRENS,247 CARS (WILLENHALL) LIMITED,28/03/2023,"1,387.50",6241-Hire of Vehicle with Driver,TRANSPORT,DIRECT TRANSPORT COSTS,REVENUE
Walsall Council,http://opendatacommunities.org/id/metropolitan-district-council/walsall ,WC148-29,31.03.2023,CHILDRENS,247 CARS (WILLENHALL) LIMITED,28/03/2023,"2,925.00",6241-Hire of Vehicle with Driver,TRANSPORT,DIRECT TRANSPORT COSTS,REVENUE
Walsall Council,http://opendatacommunities.org/id/metropolitan-district-council/walsall ,WC148-30,31.03.2023,CHILDRENS,247 CARS (WILLENHALL) LIMITED,28/03/2023,"1,520.90",6241-Hire of Vehicle with Driver,TRANSPORT,DIRECT TRANSPORT COSTS,REVENUE
Walsall Council,http://opendatacommunities.org/id/metropolitan-district-council/walsall ,WC148-31,31.03.2023,CHILDRENS,247 CARS (WILLENHALL) LIMITED,28/03/2023,"1,499.40",6241-Hire of Vehicle with Driver,TRANSPORT,DIRECT TRANSPORT COSTS,REVENUE
Walsall Council,http://opendatacommunities.org/id/metropolitan-district-council/walsall ,WC148-32,31.03.2023,CHILDRENS,247 CARS (WILLENHALL) LIMITED,28/03/2023,"1,974.00",6241-Hire of Vehicle with Driver,TRANSPORT,DIRECT TRANSPORT COSTS,REVENUE
Walsall Council,http://opendatacommunities.org/id/metropolitan-district-council/walsall ,WC148-33,31.03.2023,CHILDRENS,247 CARS (WILLENHALL) LIMITED,28/03/2023,997.50,6241-Hire of Vehicle with Driver,TRANSPORT,DIRECT TRANSPORT COSTS,REVENUE
Walsall Council,http://opendatacommunities.org/id/metropolitan-district-council/walsall ,WC148-34,31.03.2023,CHILDRENS,247 CARS (WILLENHALL) LIMITED,28/03/2023,"1,605.00",6241-Hire of Vehicle with Driver,TRANSPORT,DIRECT TRANSPORT COSTS,REVENUE
Walsall Council,http://opendatacommunities.org/id/metropolitan-district-council/walsall ,WC148-35,31.03.2023,CHILDRENS,247 CARS (WILLENHALL) LIMITED,28/03/2023,"1,704.00",6241-Hire of Vehicle with Driver,TRANSPORT,DIRECT TRANSPORT COSTS,REVENUE
Walsall Council,http://opendatacommunities.org/id/metropolitan-district-council/walsall ,WC148-36,31.03.2023,CHILDRENS,247 CARS (WILLENHALL) LIMITED,28/03/2023,"1,704.00",6241-Hire of Vehicle with Driver,TRANSPORT,DIRECT TRANSPORT COSTS,REVENUE
Walsall Council,http://opendatacommunities.org/id/metropolitan-district-council/walsall ,WC148-37,31.03.2023,CHILDRENS,247 CARS (WILLENHALL) LIMITED,28/03/2023,"1,100.00",6241-Hire of Vehicle with Driver,TRANSPORT,DIRECT TRANSPORT COSTS,REVENUE
Walsall Council,http://opendatacommunities.org/id/metropolitan-district-council/walsall ,WC148-38,31.03.2023,CHILDRENS,247 CARS (WILLENHALL) LIMITED,28/03/2023,"1,915.50",6241-Hire of Vehicle with Driver,TRANSPORT,DIRECT TRANSPORT COSTS,REVENUE
Walsall Council,http://opendatacommunities.org/id/metropolitan-district-council/walsall ,WC148-39,31.03.2023,CHILDRENS,247 CARS (WILLENHALL) LIMITED,28/03/2023,480.00,6241-Hire of Vehicle with Driver,TRANSPORT,DIRECT TRANSPORT COSTS,REVENUE
Walsall Council,http://opendatacommunities.org/id/metropolitan-district-council/walsall ,WC148-40,31.03.2023,CHILDRENS,247 CARS (WILLENHALL) LIMITED,28/03/2023,"1,272.24",6241-Hire of Vehicle with Driver,TRANSPORT,DIRECT TRANSPORT COSTS,REVENUE
Walsall Council,http://opendatacommunities.org/id/metropolitan-district-council/walsall ,WC148-41,31.03.2023,ADULT SOCIAL CARE,5 CARE SERVICES LTD,08/03/2023,"1,018.08",6554-Professional Services-Priv Contractor & Other Agencies,THIRD PARTY PAYMENTS,PRIVATE CONTRACTOR,REVENUE
Walsall Council,http://opendatacommunities.org/id/metropolitan-district-council/walsall ,WC148-42,31.03.2023,ADULT SOCIAL CARE,5 CARE SERVICES LTD,08/03/2023,"1,018.08",6554-Professional Services-Priv Contractor & Other Agencies,THIRD PARTY PAYMENTS,PRIVATE CONTRACTOR,REVENUE
Walsall Council,http://opendatacommunities.org/id/metropolitan-district-council/walsall ,WC148-43,31.03.2023,ADULT SOCIAL CARE,5 CARE SERVICES LTD,08/03/2023,363.60,6554-Professional Services-Priv Contractor & Other Agencies,THIRD PARTY PAYMENTS,PRIVATE CONTRACTOR,REVENUE
Walsall Council,http://opendatacommunities.org/id/metropolitan-district-council/walsall ,WC148-44,31.03.2023,ADULT SOCIAL CARE,5 CARE SERVICES LTD,08/03/2023,581.76,6554-Professional Services-Priv Contractor & Other Agencies,THIRD PARTY PAYMENTS,PRIVATE CONTRACTOR,REVENUE
Walsall Council,http://opendatacommunities.org/id/metropolitan-district-council/walsall ,WC148-45,31.03.2023,ADULT SOCIAL CARE,5 CARE SERVICES LTD,08/03/2023,791.84,6554-Professional Services-Priv Contractor & Other Agencies,THIRD PARTY PAYMENTS,PRIVATE CONTRACTOR,REVENUE
Walsall Council,http://opendatacommunities.org/id/metropolitan-district-council/walsall ,WC148-46,31.03.2023,ADULT SOCIAL CARE,5 CARE SERVICES LTD,08/03/2023,"1,018.08",6554-Professional Services-Priv Contractor & Other Agencies,THIRD PARTY PAYMENTS,PRIVATE CONTRACTOR,REVENUE
Walsall Council,http://opendatacommunities.org/id/metropolitan-district-council/walsall ,WC148-47,31.03.2023,ADULT SOCIAL CARE,5 CARE SERVICES LTD,08/03/2023,565.60,6554-Professional Services-Priv Contractor & Other Agencies,THIRD PARTY PAYMENTS,PRIVATE CONTRACTOR,REVENUE
Walsall Council,http://opendatacommunities.org/id/metropolitan-district-council/walsall ,WC148-48,31.03.2023,ADULT SOCIAL CARE,5 CARE SERVICES LTD,08/03/2023,395.92,6554-Professional Services-Priv Contractor & Other Agencies,THIRD PARTY PAYMENTS,PRIVATE CONTRACTOR,REVENUE
Walsall Council,http://opendatacommunities.org/id/metropolitan-district-council/walsall ,WC148-49,31.03.2023,ADULT SOCIAL CARE,5 CARE SERVICES LTD,08/03/2023,412.08,6554-Professional Services-Priv Contractor & Other Agencies,THIRD PARTY PAYMENTS,PRIVATE CONTRACTOR,REVENUE
Walsall Council,http://opendatacommunities.org/id/metropolitan-district-council/walsall ,WC148-50,31.03.2023,ADULT SOCIAL CARE,5 CARE SERVICES LTD,08/03/2023,278.76,6554-Professional Services-Priv Contractor & Other Agencies,THIRD PARTY PAYMENTS,PRIVATE CONTRACTOR,REVENUE
Walsall Council,http://opendatacommunities.org/id/metropolitan-district-council/walsall ,WC148-51,31.03.2023,ADULT SOCIAL CARE,5 CARE SERVICES LTD,08/03/2023,533.28,6554-Professional Services-Priv Contractor & Other Agencies,THIRD PARTY PAYMENTS,PRIVATE CONTRACTOR,REVENUE
Walsall Council,http://opendatacommunities.org/id/metropolitan-district-council/walsall ,WC148-52,31.03.2023,ADULT SOCIAL CARE,5 CARE SERVICES LTD,08/03/2023,"4,771.24",6554-Professional Services-Priv Contractor & Other Agencies,THIRD PARTY PAYMENTS,PRIVATE CONTRACTOR,REVENUE
Walsall Council,http://opendatacommunities.org/id/metropolitan-district-council/walsall ,WC148-53,31.03.2023,ADULT SOCIAL CARE,5 CARE SERVICES LTD,08/03/2023,"2,036.16",6554-Professional Services-Priv Contractor & Other Agencies,THIRD PARTY PAYMENTS,PRIVATE CONTRACTOR,REVENUE
Walsall Council,http://opendatacommunities.org/id/metropolitan-district-council/walsall ,WC148-54,31.03.2023,ADULT SOCIAL CARE,5 CARE SERVICES LTD,08/03/2023,775.68,6554-Professional Services-Priv Contractor & Other Agencies,THIRD PARTY PAYMENTS,PRIVATE CONTRACTOR,REVENUE
Walsall Council,http://opendatacommunities.org/id/metropolitan-district-council/walsall ,WC148-55,31.03.2023,ADULT SOCIAL CARE,5 CARE SERVICES LTD,08/03/2023,"1,268.56",6554-Professional Services-Priv Contractor & Other Agencies,THIRD PARTY PAYMENTS,PRIVATE CONTRACTOR,REVENUE
Walsall Council,http://opendatacommunities.org/id/metropolitan-district-council/walsall ,WC148-56,31.03.2023,ADULT SOCIAL CARE,5 CARE SERVICES LTD,08/03/2023,"1,397.84",6554-Professional Services-Priv Contractor & Other Agencies,THIRD PARTY PAYMENTS,PRIVATE CONTRACTOR,REVENUE
Walsall Council,http://opendatacommunities.org/id/metropolitan-district-council/walsall ,WC148-57,31.03.2023,ADULT SOCIAL CARE,5 CARE SERVICES LTD,08/03/2023,424.20,6554-Professional Services-Priv Contractor & Other Agencies,THIRD PARTY PAYMENTS,PRIVATE CONTRACTOR,REVENUE
Walsall Council,http://opendatacommunities.org/id/metropolitan-district-council/walsall ,WC148-58,31.03.2023,ADULT SOCIAL CARE,5 CARE SERVICES LTD,08/03/2023,509.04,6554-Professional Services-Priv Contractor & Other Agencies,THIRD PARTY PAYMENTS,PRIVATE CONTRACTOR,REVENUE
Walsall Council,http://opendatacommunities.org/id/metropolitan-district-council/walsall ,WC148-59,31.03.2023,ADULT SOCIAL CARE,5 CARE SERVICES LTD,08/03/2023,488.84,6554-Professional Services-Priv Contractor & Other Agencies,THIRD PARTY PAYMENTS,PRIVATE CONTRACTOR,REVENUE
Walsall Council,http://opendatacommunities.org/id/metropolitan-district-council/walsall ,WC148-60,31.03.2023,ADULT SOCIAL CARE,5 CARE SERVICES LTD,08/03/2023,799.92,6554-Professional Services-Priv Contractor & Other Agencies,THIRD PARTY PAYMENTS,PRIVATE CONTRACTOR,REVENUE
Walsall Council,http://opendatacommunities.org/id/metropolitan-district-council/walsall ,WC148-61,31.03.2023,ADULT SOCIAL CARE,5 CARE SERVICES LTD,08/03/2023,395.92,6554-Professional Services-Priv Contractor & Other Agencies,THIRD PARTY PAYMENTS,PRIVATE CONTRACTOR,REVENUE
Walsall Council,http://opendatacommunities.org/id/metropolitan-district-council/walsall ,WC148-62,31.03.2023,ADULT SOCIAL CARE,5 CARE SERVICES LTD,08/03/2023,618.12,6554-Professional Services-Priv Contractor & Other Agencies,THIRD PARTY PAYMENTS,PRIVATE CONTRACTOR,REVENUE
Walsall Council,http://opendatacommunities.org/id/metropolitan-district-council/walsall ,WC148-63,31.03.2023,ADULT SOCIAL CARE,5 CARE SERVICES LTD,08/03/2023,509.04,6554-Professional Services-Priv Contractor & Other Agencies,THIRD PARTY PAYMENTS,PRIVATE CONTRACTOR,REVENUE
Walsall Council,http://opendatacommunities.org/id/metropolitan-district-council/walsall ,WC148-64,31.03.2023,ADULT SOCIAL CARE,5 CARE SERVICES LTD,08/03/2023,"1,914.96",6554-Professional Services-Priv Contractor & Other Agencies,THIRD PARTY PAYMENTS,PRIVATE CONTRACTOR,REVENUE
Walsall Council,http://opendatacommunities.org/id/metropolitan-district-council/walsall ,WC148-65,31.03.2023,ADULT SOCIAL CARE,5 CARE SERVICES LTD,08/03/2023,472.68,6554-Professional Services-Priv Contractor & Other Agencies,THIRD PARTY PAYMENTS,PRIVATE CONTRACTOR,REVENUE
Walsall Council,http://opendatacommunities.org/id/metropolitan-district-council/walsall ,WC148-66,31.03.2023,ADULT SOCIAL CARE,5 CARE SERVICES LTD,08/03/2023,436.32,6554-Professional Services-Priv Contractor & Other Agencies,THIRD PARTY PAYMENTS,PRIVATE CONTRACTOR,REVENUE
Walsall Council,http://opendatacommunities.org/id/metropolitan-district-council/walsall ,WC148-67,31.03.2023,ADULT SOCIAL CARE,5 CARE SERVICES LTD,08/03/2023,848.40,6554-Professional Services-Priv Contractor & Other Agencies,THIRD PARTY PAYMENTS,PRIVATE CONTRACTOR,REVENUE
Walsall Council,http://opendatacommunities.org/id/metropolitan-district-council/walsall ,WC148-68,31.03.2023,ADULT SOCIAL CARE,5 CARE SERVICES LTD,08/03/2023,646.40,6554-Professional Services-Priv Contractor & Other Agencies,THIRD PARTY PAYMENTS,PRIVATE CONTRACTOR,REVENUE
Walsall Council,http://opendatacommunities.org/id/metropolitan-district-council/walsall ,WC148-69,31.03.2023,ADULT SOCIAL CARE,5 CARE SERVICES LTD,08/03/2023,"1,599.84",6554-Professional Services-Priv Contractor & Other Agencies,THIRD PARTY PAYMENTS,PRIVATE CONTRACTOR,REVENUE
Walsall Council,http://opendatacommunities.org/id/metropolitan-district-council/walsall ,WC148-70,31.03.2023,ADULT SOCIAL CARE,5 CARE SERVICES LTD,08/03/2023,"1,082.72",6554-Professional Services-Priv Contractor & Other Agencies,THIRD PARTY PAYMENTS,PRIVATE CONTRACTOR,REVENUE
Walsall Council,http://opendatacommunities.org/id/metropolitan-district-council/walsall ,WC148-71,31.03.2023,ADULT SOCIAL CARE,5 CARE SERVICES LTD,08/03/2023,"1,734.88",6554-Professional Services-Priv Contractor & Other Agencies,THIRD PARTY PAYMENTS,PRIVATE CONTRACTOR,REVENUE
Walsall Council,http://opendatacommunities.org/id/metropolitan-district-council/walsall ,WC148-72,31.03.2023,ADULT SOCIAL CARE,5 CARE SERVICES LTD,08/03/2023,525.20,6553-Professional Services-Priv Contractor & Other Agencies,THIRD PARTY PAYMENTS,PRIVATE CONTRACTOR,REVENUE
Walsall Council,http://opendatacommunities.org/id/metropolitan-district-council/walsall ,WC148-73,31.03.2023,ADULT SOCIAL CARE,5 CARE SERVICES LTD,08/03/2023,440.36,6554-Professional Services-Priv Contractor & Other Agencies,THIRD PARTY PAYMENTS,PRIVATE CONTRACTOR,REVENUE
Walsall Council,http://opendatacommunities.org/id/metropolitan-district-council/walsall ,WC148-74,31.03.2023,ADULT SOCIAL CARE,5 CARE SERVICES LTD,08/03/2023,379.76,6554-Professional Services-Priv Contractor & Other Agencies,THIRD PARTY PAYMENTS,PRIVATE CONTRACTOR,REVENUE
Walsall Council,http://opendatacommunities.org/id/metropolitan-district-council/walsall ,WC148-75,31.03.2023,ADULT SOCIAL CARE,5 CARE SERVICES LTD,08/03/2023,339.36,6554-Professional Services-Priv Contractor & Other Agencies,THIRD PARTY PAYMENTS,PRIVATE CONTRACTOR,REVENUE
Walsall Council,http://opendatacommunities.org/id/metropolitan-district-council/walsall ,WC148-76,31.03.2023,ADULT SOCIAL CARE,5 CARE SERVICES LTD,08/03/2023,363.60,6554-Professional Services-Priv Contractor & Other Agencies,THIRD PARTY PAYMENTS,PRIVATE CONTRACTOR,REVENUE
Walsall Council,http://opendatacommunities.org/id/metropolitan-district-council/walsall ,WC148-77,31.03.2023,ADULT SOCIAL CARE,5 CARE SERVICES LTD,08/03/2023,258.56,6554-Professional Services-Priv Contractor & Other Agencies,THIRD PARTY PAYMENTS,PRIVATE CONTRACTOR,REVENUE
Walsall Council,http://opendatacommunities.org/id/metropolitan-district-council/walsall ,WC148-78,31.03.2023,ADULT SOCIAL CARE,5 CARE SERVICES LTD,08/03/2023,254.52,6554-Professional Services-Priv Contractor & Other Agencies,THIRD PARTY PAYMENTS,PRIVATE CONTRACTOR,REVENUE
Walsall Council,http://opendatacommunities.org/id/metropolitan-district-council/walsall ,WC148-79,31.03.2023,ADULT SOCIAL CARE,5 CARE SERVICES LTD,08/03/2023,452.48,6554-Professional Services-Priv Contractor & Other Agencies,THIRD PARTY PAYMENTS,PRIVATE CONTRACTOR,REVENUE
Walsall Council,http://opendatacommunities.org/id/metropolitan-district-council/walsall ,WC148-80,31.03.2023,ADULT SOCIAL CARE,5 CARE SERVICES LTD,08/03/2023,424.20,6554-Professional Services-Priv Contractor & Other Agencies,THIRD PARTY PAYMENTS,PRIVATE CONTRACTOR,REVENUE
Walsall Council,http://opendatacommunities.org/id/metropolitan-district-council/walsall ,WC148-81,31.03.2023,ADULT SOCIAL CARE,5 CARE SERVICES LTD,08/03/2023,630.24,6554-Professional Services-Priv Contractor & Other Agencies,THIRD PARTY PAYMENTS,PRIVATE CONTRACTOR,REVENUE
Walsall Council,http://opendatacommunities.org/id/metropolitan-district-council/walsall ,WC148-82,31.03.2023,ADULT SOCIAL CARE,5 CARE SERVICES LTD,14/03/2023,"9,049.60",6541-Domiciliary Care,THIRD PARTY PAYMENTS,PRIVATE CONTRACTOR,REVENUE
Walsall Council,http://opendatacommunities.org/id/metropolitan-district-council/walsall ,WC148-83,31.03.2023,ADULT SOCIAL CARE,5 CARE SERVICES LTD,14/03/2023,694.88,6541-Domiciliary Care,THIRD PARTY PAYMENTS,PRIVATE CONTRACTOR,REVENUE
Walsall Council,http://opendatacommunities.org/id/metropolitan-district-council/walsall ,WC148-84,31.03.2023,ADULT SOCIAL CARE,5 CARE SERVICES LTD,14/03/2023,735.28,6541-Domiciliary Care,THIRD PARTY PAYMENTS,PRIVATE CONTRACTOR,REVENUE
Walsall Council,http://opendatacommunities.org/id/metropolitan-district-council/walsall ,WC148-85,31.03.2023,ADULT SOCIAL CARE,5 CARE SERVICES LTD,14/03/2023,254.52,6541-Domiciliary Care,THIRD PARTY PAYMENTS,PRIVATE CONTRACTOR,REVENUE
Walsall Council,http://opendatacommunities.org/id/metropolitan-district-council/walsall ,WC148-86,31.03.2023,ADULT SOCIAL CARE,5 CARE SERVICES LTD,14/03/2023,536.02,6541-Domiciliary Care,THIRD PARTY PAYMENTS,PRIVATE CONTRACTOR,REVENUE
Walsall Council,http://opendatacommunities.org/id/metropolitan-district-council/walsall ,WC148-87,31.03.2023,ADULT SOCIAL CARE,5 CARE SERVICES LTD,14/03/2023,597.92,6541-Domiciliary Care,THIRD PARTY PAYMENTS,PRIVATE CONTRACTOR,REVENUE
Walsall Council,http://opendatacommunities.org/id/metropolitan-district-council/walsall ,WC148-88,31.03.2023,ADULT SOCIAL CARE,5 CARE SERVICES LTD,14/03/2023,"1,244.32",6541-Domiciliary Care,THIRD PARTY PAYMENTS,PRIVATE CONTRACTOR,REVENUE
Walsall Council,http://opendatacommunities.org/id/metropolitan-district-council/walsall ,WC148-89,31.03.2023,ADULT SOCIAL CARE,5 CARE SERVICES LTD,14/03/2023,323.20,6541-Domiciliary Care,THIRD PARTY PAYMENTS,PRIVATE CONTRACTOR,REVENUE
Walsall Council,http://opendatacommunities.org/id/metropolitan-district-council/walsall ,WC148-90,31.03.2023,ADULT SOCIAL CARE,5 CARE SERVICES LTD,14/03/2023,339.36,6541-Domiciliary Care,THIRD PARTY PAYMENTS,PRIVATE CONTRACTOR,REVENUE
Walsall Council,http://opendatacommunities.org/id/metropolitan-district-council/walsall ,WC148-91,31.03.2023,ADULT SOCIAL CARE,5 CARE SERVICES LTD,14/03/2023,509.04,6541-Domiciliary Care,THIRD PARTY PAYMENTS,PRIVATE CONTRACTOR,REVENUE
Walsall Council,http://opendatacommunities.org/id/metropolitan-district-council/walsall ,WC148-92,31.03.2023,ADULT SOCIAL CARE,5 CARE SERVICES LTD,14/03/2023,678.72,6541-Domiciliary Care,THIRD PARTY PAYMENTS,PRIVATE CONTRACTOR,REVENUE
Walsall Council,http://opendatacommunities.org/id/metropolitan-district-council/walsall ,WC148-93,31.03.2023,ADULT SOCIAL CARE,5 CARE SERVICES LTD,14/03/2023,"-1,494.80",6541-Domiciliary Care,THIRD PARTY PAYMENTS,PRIVATE CONTRACTOR,REVENUE
Walsall Council,http://opendatacommunities.org/id/metropolitan-district-council/walsall ,WC148-94,31.03.2023,ADULT SOCIAL CARE,5 CARE SERVICES LTD,14/03/2023,"-3,805.68",6541-Domiciliary Care,THIRD PARTY PAYMENTS,PRIVATE CONTRACTOR,REVENUE
Walsall Council,http://opendatacommunities.org/id/metropolitan-district-council/walsall ,WC148-95,31.03.2023,ADULT SOCIAL CARE,5 CARE SERVICES LTD,14/03/2023,-856.48,6541-Domiciliary Care,THIRD PARTY PAYMENTS,PRIVATE CONTRACTOR,REVENUE
Walsall Council,http://opendatacommunities.org/id/metropolitan-district-council/walsall ,WC148-96,31.03.2023,ADULT SOCIAL CARE,5 CARE SERVICES LTD,14/03/2023,584.50,6541-Domiciliary Care,THIRD PARTY PAYMENTS,PRIVATE CONTRACTOR,REVENUE
Walsall Council,http://opendatacommunities.org/id/metropolitan-district-council/walsall ,WC148-97,31.03.2023,ADULT SOCIAL CARE,5 CARE SERVICES LTD,14/03/2023,904.96,6541-Domiciliary Care,THIRD PARTY PAYMENTS,PRIVATE CONTRACTOR,REVENUE
Walsall Council,http://opendatacommunities.org/id/metropolitan-district-council/walsall ,WC148-98,31.03.2023,ADULT SOCIAL CARE,5 CARE SERVICES LTD,14/03/2023,678.72,6541-Domiciliary Care,THIRD PARTY PAYMENTS,PRIVATE CONTRACTOR,REVENUE
Walsall Council,http://opendatacommunities.org/id/metropolitan-district-council/walsall ,WC148-99,31.03.2023,ADULT SOCIAL CARE,5 CARE SERVICES LTD,14/03/2023,294.92,6541-Domiciliary Care,THIRD PARTY PAYMENTS,PRIVATE CONTRACTOR,REVENUE
Walsall Council,http://opendatacommunities.org/id/metropolitan-district-council/walsall ,WC148-100,31.03.2023,ADULT SOCIAL CARE,5 CARE SERVICES LTD,14/03/2023,713.75,6541-Domiciliary Care,THIRD PARTY PAYMENTS,PRIVATE CONTRACTOR,REVENUE
Walsall Council,http://opendatacommunities.org/id/metropolitan-district-council/walsall ,WC148-101,31.03.2023,ADULT SOCIAL CARE,5 CARE SERVICES LTD,14/03/2023,565.60,6541-Domiciliary Care,THIRD PARTY PAYMENTS,PRIVATE CONTRACTOR,REVENUE
Walsall Council,http://opendatacommunities.org/id/metropolitan-district-council/walsall ,WC148-102,31.03.2023,ADULT SOCIAL CARE,5 CARE SERVICES LTD,14/03/2023,"4,060.20",6541-Domiciliary Care,THIRD PARTY PAYMENTS,PRIVATE CONTRACTOR,REVENUE
Walsall Council,http://opendatacommunities.org/id/metropolitan-district-council/walsall ,WC148-103,31.03.2023,ADULT SOCIAL CARE,5 CARE SERVICES LTD,14/03/2023,254.52,6541-Domiciliary Care,THIRD PARTY PAYMENTS,PRIVATE CONTRACTOR,REVENUE
Walsall Council,http://opendatacommunities.org/id/metropolitan-district-council/walsall ,WC148-104,31.03.2023,ADULT SOCIAL CARE,5 CARE SERVICES LTD,14/03/2023,775.68,6541-Domiciliary Care,THIRD PARTY PAYMENTS,PRIVATE CONTRACTOR,REVENUE
Walsall Council,http://opendatacommunities.org/id/metropolitan-district-council/walsall ,WC148-105,31.03.2023,ADULT SOCIAL CARE,5 CARE SERVICES LTD,14/03/2023,339.36,6541-Domiciliary Care,THIRD PARTY PAYMENTS,PRIVATE CONTRACTOR,REVENUE
Walsall Council,http://opendatacommunities.org/id/metropolitan-district-council/walsall ,WC148-106,31.03.2023,ADULT SOCIAL CARE,5 CARE SERVICES LTD,14/03/2023,509.04,6541-Domiciliary Care,THIRD PARTY PAYMENTS,PRIVATE CONTRACTOR,REVENUE
Walsall Council,http://opendatacommunities.org/id/metropolitan-district-council/walsall ,WC148-107,31.03.2023,ADULT SOCIAL CARE,5 CARE SERVICES LTD,14/03/2023,509.04,6541-Domiciliary Care,THIRD PARTY PAYMENTS,PRIVATE CONTRACTOR,REVENUE
Walsall Council,http://opendatacommunities.org/id/metropolitan-district-council/walsall ,WC148-108,31.03.2023,ADULT SOCIAL CARE,5 CARE SERVICES LTD,14/03/2023,-832.24,6541-Domiciliary Care,THIRD PARTY PAYMENTS,PRIVATE CONTRACTOR,REVENUE
Walsall Council,http://opendatacommunities.org/id/metropolitan-district-council/walsall ,WC148-109,31.03.2023,ADULT SOCIAL CARE,5 CARE SERVICES LTD,14/03/2023,484.80,6541-Domiciliary Care,THIRD PARTY PAYMENTS,PRIVATE CONTRACTOR,REVENUE
Walsall Council,http://opendatacommunities.org/id/metropolitan-district-council/walsall ,WC148-110,31.03.2023,ADULT SOCIAL CARE,5 CARE SERVICES LTD,14/03/2023,"1,026.16",6541-Domiciliary Care,THIRD PARTY PAYMENTS,PRIVATE CONTRACTOR,REVENUE
Walsall Council,http://opendatacommunities.org/id/metropolitan-district-council/walsall ,WC148-111,31.03.2023,ADULT SOCIAL CARE,5 CARE SERVICES LTD,14/03/2023,799.92,6541-Domiciliary Care,THIRD PARTY PAYMENTS,PRIVATE CONTRACTOR,REVENUE
Walsall Council,http://opendatacommunities.org/id/metropolitan-district-council/walsall ,WC148-112,31.03.2023,ADULT SOCIAL CARE,5 CARE SERVICES LTD,14/03/2023,452.48,6541-Domiciliary Care,THIRD PARTY PAYMENTS,PRIVATE CONTRACTOR,REVENUE
Walsall Council,http://opendatacommunities.org/id/metropolitan-district-council/walsall ,WC148-113,31.03.2023,ADULT SOCIAL CARE,5 CARE SERVICES LTD,14/03/2023,509.04,6541-Domiciliary Care,THIRD PARTY PAYMENTS,PRIVATE CONTRACTOR,REVENUE
Walsall Council,http://opendatacommunities.org/id/metropolitan-district-council/walsall ,WC148-114,31.03.2023,ADULT SOCIAL CARE,5 CARE SERVICES LTD,14/03/2023,"1,244.32",6541-Domiciliary Care,THIRD PARTY PAYMENTS,PRIVATE CONTRACTOR,REVENUE
Walsall Council,http://opendatacommunities.org/id/metropolitan-district-council/walsall ,WC148-115,31.03.2023,ADULT SOCIAL CARE,5 CARE SERVICES LTD,14/03/2023,258.56,6541-Domiciliary Care,THIRD PARTY PAYMENTS,PRIVATE CONTRACTOR,REVENUE
Walsall Council,http://opendatacommunities.org/id/metropolitan-district-council/walsall ,WC148-116,31.03.2023,ADULT SOCIAL CARE,5 CARE SERVICES LTD,14/03/2023,509.04,6541-Domiciliary Care,THIRD PARTY PAYMENTS,PRIVATE CONTRACTOR,REVENUE
Walsall Council,http://opendatacommunities.org/id/metropolitan-district-council/walsall ,WC148-117,31.03.2023,ADULT SOCIAL CARE,5 CARE SERVICES LTD,14/03/2023,-592.60,6541-Domiciliary Care,THIRD PARTY PAYMENTS,PRIVATE CONTRACTOR,REVENUE
Walsall Council,http://opendatacommunities.org/id/metropolitan-district-council/walsall ,WC148-118,31.03.2023,ADULT SOCIAL CARE,5 CARE SERVICES LTD,14/03/2023,339.36,6541-Domiciliary Care,THIRD PARTY PAYMENTS,PRIVATE CONTRACTOR,REVENUE
Walsall Council,http://opendatacommunities.org/id/metropolitan-district-council/walsall ,WC148-119,31.03.2023,ADULT SOCIAL CARE,5 CARE SERVICES LTD,14/03/2023,"7,829.52",6541-Domiciliary Care,THIRD PARTY PAYMENTS,PRIVATE CONTRACTOR,REVENUE
Walsall Council,http://opendatacommunities.org/id/metropolitan-district-council/walsall ,WC148-120,31.03.2023,ADULT SOCIAL CARE,5 CARE SERVICES LTD,14/03/2023,-848.40,6541-Domiciliary Care,THIRD PARTY PAYMENTS,PRIVATE CONTRACTOR,REVENUE
Walsall Council,http://opendatacommunities.org/id/metropolitan-district-council/walsall ,WC148-121,31.03.2023,ADULT SOCIAL CARE,5 CARE SERVICES LTD,14/03/2023,"-8,484.00",6541-Domiciliary Care,THIRD PARTY PAYMENTS,PRIVATE CONTRACTOR,REVENUE
Walsall Council,http://opendatacommunities.org/id/metropolitan-district-council/walsall ,WC148-122,31.03.2023,ADULT SOCIAL CARE,5 CARE SERVICES LTD,14/03/2023,"-1,131.20",6541-Domiciliary Care,THIRD PARTY PAYMENTS,PRIVATE CONTRACTOR,REVENUE
Walsall Council,http://opendatacommunities.org/id/metropolitan-district-council/walsall ,WC148-123,31.03.2023,ADULT SOCIAL CARE,5 CARE SERVICES LTD,14/03/2023,452.48,6541-Domiciliary Care,THIRD PARTY PAYMENTS,PRIVATE CONTRACTOR,REVENUE
Walsall Council,http://opendatacommunities.org/id/metropolitan-district-council/walsall ,WC148-124,31.03.2023,ADULT SOCIAL CARE,5 CARE SERVICES LTD,14/03/2023,953.44,6541-Domiciliary Care,THIRD PARTY PAYMENTS,PRIVATE CONTRACTOR,REVENUE
Walsall Council,http://opendatacommunities.org/id/metropolitan-district-council/walsall ,WC148-125,31.03.2023,ADULT SOCIAL CARE,5 CARE SERVICES LTD,14/03/2023,565.60,6541-Domiciliary Care,THIRD PARTY PAYMENTS,PRIVATE CONTRACTOR,REVENUE
Walsall Council,http://opendatacommunities.org/id/metropolitan-district-council/walsall ,WC148-126,31.03.2023,ADULT SOCIAL CARE,5 CARE SERVICES LTD,14/03/2023,509.04,6541-Domiciliary Care,THIRD PARTY PAYMENTS,PRIVATE CONTRACTOR,REVENUE
Walsall Council,http://opendatacommunities.org/id/metropolitan-district-council/walsall ,WC148-127,31.03.2023,ADULT SOCIAL CARE,5 CARE SERVICES LTD,14/03/2023,509.04,6541-Domiciliary Care,THIRD PARTY PAYMENTS,PRIVATE CONTRACTOR,REVENUE
Walsall Council,http://opendatacommunities.org/id/metropolitan-district-council/walsall ,WC148-128,31.03.2023,ADULT SOCIAL CARE,5 CARE SERVICES LTD,14/03/2023,"-7,320.48",6541-Domiciliary Care,THIRD PARTY PAYMENTS,PRIVATE CONTRACTOR,REVENUE
Walsall Council,http://opendatacommunities.org/id/metropolitan-district-council/walsall ,WC148-129,31.03.2023,ADULT SOCIAL CARE,5 CARE SERVICES LTD,14/03/2023,254.52,6541-Domiciliary Care,THIRD PARTY PAYMENTS,PRIVATE CONTRACTOR,REVENUE
Walsall Council,http://opendatacommunities.org/id/metropolitan-district-council/walsall ,WC148-130,31.03.2023,ADULT SOCIAL CARE,5 CARE SERVICES LTD,14/03/2023,-290.88,6541-Domiciliary Care,THIRD PARTY PAYMENTS,PRIVATE CONTRACTOR,REVENUE
Walsall Council,http://opendatacommunities.org/id/metropolitan-district-council/walsall ,WC148-131,31.03.2023,ADULT SOCIAL CARE,5 CARE SERVICES LTD,14/03/2023,565.60,6541-Domiciliary Care,THIRD PARTY PAYMENTS,PRIVATE CONTRACTOR,REVENUE
Walsall Council,http://opendatacommunities.org/id/metropolitan-district-council/walsall ,WC148-132,31.03.2023,ADULT SOCIAL CARE,5 CARE SERVICES LTD,14/03/2023,694.88,6541-Domiciliary Care,THIRD PARTY PAYMENTS,PRIVATE CONTRACTOR,REVENUE
Walsall Council,http://opendatacommunities.org/id/metropolitan-district-council/walsall ,WC148-133,31.03.2023,ADULT SOCIAL CARE,5 CARE SERVICES LTD,14/03/2023,254.52,6541-Domiciliary Care,THIRD PARTY PAYMENTS,PRIVATE CONTRACTOR,REVENUE
Walsall Council,http://opendatacommunities.org/id/metropolitan-district-council/walsall ,WC148-134,31.03.2023,ADULT SOCIAL CARE,5 CARE SERVICES LTD,14/03/2023,"1,163.52",6541-Domiciliary Care,THIRD PARTY PAYMENTS,PRIVATE CONTRACTOR,REVENUE
Walsall Council,http://opendatacommunities.org/id/metropolitan-district-council/walsall ,WC148-135,31.03.2023,ADULT SOCIAL CARE,5 CARE SERVICES LTD,14/03/2023,678.72,6541-Domiciliary Care,THIRD PARTY PAYMENTS,PRIVATE CONTRACTOR,REVENUE
Walsall Council,http://opendatacommunities.org/id/metropolitan-district-council/walsall ,WC148-136,31.03.2023,ADULT SOCIAL CARE,5 CARE SERVICES LTD,14/03/2023,294.92,6541-Domiciliary Care,THIRD PARTY PAYMENTS,PRIVATE CONTRACTOR,REVENUE
Walsall Council,http://opendatacommunities.org/id/metropolitan-district-council/walsall ,WC148-137,31.03.2023,ADULT SOCIAL CARE,5 CARE SERVICES LTD,14/03/2023,848.40,6541-Domiciliary Care,THIRD PARTY PAYMENTS,PRIVATE CONTRACTOR,REVENUE
Walsall Council,http://opendatacommunities.org/id/metropolitan-district-council/walsall ,WC148-138,31.03.2023,ADULT SOCIAL CARE,5 CARE SERVICES LTD,14/03/2023,735.28,6541-Domiciliary Care,THIRD PARTY PAYMENTS,PRIVATE CONTRACTOR,REVENUE
Walsall Council,http://opendatacommunities.org/id/metropolitan-district-council/walsall ,WC148-139,31.03.2023,ADULT SOCIAL CARE,5 CARE SERVICES LTD,14/03/2023,254.52,6541-Domiciliary Care,THIRD PARTY PAYMENTS,PRIVATE CONTRACTOR,REVENUE
Walsall Council,http://opendatacommunities.org/id/metropolitan-district-council/walsall ,WC148-140,31.03.2023,ADULT SOCIAL CARE,5 CARE SERVICES LTD,14/03/2023,258.56,6541-Domiciliary Care,THIRD PARTY PAYMENTS,PRIVATE CONTRACTOR,REVENUE
Walsall Council,http://opendatacommunities.org/id/metropolitan-district-council/walsall ,WC148-141,31.03.2023,ADULT SOCIAL CARE,5 CARE SERVICES LTD,14/03/2023,509.04,6541-Domiciliary Care,THIRD PARTY PAYMENTS,PRIVATE CONTRACTOR,REVENUE
Walsall Council,http://opendatacommunities.org/id/metropolitan-district-council/walsall ,WC148-142,31.03.2023,ADULT SOCIAL CARE,5 CARE SERVICES LTD,14/03/2023,565.60,6541-Domiciliary Care,THIRD PARTY PAYMENTS,PRIVATE CONTRACTOR,REVENUE
Walsall Council,http://opendatacommunities.org/id/metropolitan-district-council/walsall ,WC148-143,31.03.2023,ADULT SOCIAL CARE,5 CARE SERVICES LTD,14/03/2023,536.02,6541-Domiciliary Care,THIRD PARTY PAYMENTS,PRIVATE CONTRACTOR,REVENUE
Walsall Council,http://opendatacommunities.org/id/metropolitan-district-council/walsall ,WC148-144,31.03.2023,ADULT SOCIAL CARE,5 CARE SERVICES LTD,14/03/2023,662.56,6541-Domiciliary Care,THIRD PARTY PAYMENTS,PRIVATE CONTRACTOR,REVENUE
Walsall Council,http://opendatacommunities.org/id/metropolitan-district-council/walsall ,WC148-145,31.03.2023,ADULT SOCIAL CARE,5 CARE SERVICES LTD,14/03/2023,"1,244.32",6541-Domiciliary Care,THIRD PARTY PAYMENTS,PRIVATE CONTRACTOR,REVENUE
Walsall Council,http://opendatacommunities.org/id/metropolitan-district-council/walsall ,WC148-146,31.03.2023,ADULT SOCIAL CARE,5 CARE SERVICES LTD,14/03/2023,339.36,6541-Domiciliary Care,THIRD PARTY PAYMENTS,PRIVATE CONTRACTOR,REVENUE
Walsall Council,http://opendatacommunities.org/id/metropolitan-district-council/walsall ,WC148-147,31.03.2023,ADULT SOCIAL CARE,5 CARE SERVICES LTD,14/03/2023,509.04,6541-Domiciliary Care,THIRD PARTY PAYMENTS,PRIVATE CONTRACTOR,REVENUE
Walsall Council,http://opendatacommunities.org/id/metropolitan-district-council/walsall ,WC148-148,31.03.2023,ADULT SOCIAL CARE,5 CARE SERVICES LTD,14/03/2023,323.20,6541-Domiciliary Care,THIRD PARTY PAYMENTS,PRIVATE CONTRACTOR,REVENUE
Walsall Council,http://opendatacommunities.org/id/metropolitan-district-council/walsall ,WC148-149,31.03.2023,ADULT SOCIAL CARE,5 CARE SERVICES LTD,14/03/2023,339.36,6541-Domiciliary Care,THIRD PARTY PAYMENTS,PRIVATE CONTRACTOR,REVENUE
Walsall Council,http://opendatacommunities.org/id/metropolitan-district-council/walsall ,WC148-150,31.03.2023,ADULT SOCIAL CARE,5 CARE SERVICES LTD,14/03/2023,509.04,6541-Domiciliary Care,THIRD PARTY PAYMENTS,PRIVATE CONTRACTOR,REVENUE
Walsall Council,http://opendatacommunities.org/id/metropolitan-district-council/walsall ,WC148-151,31.03.2023,ADULT SOCIAL CARE,5 CARE SERVICES LTD,14/03/2023,509.04,6541-Domiciliary Care,THIRD PARTY PAYMENTS,PRIVATE CONTRACTOR,REVENUE
Walsall Council,http://opendatacommunities.org/id/metropolitan-district-council/walsall ,WC148-152,31.03.2023,ADULT SOCIAL CARE,5 CARE SERVICES LTD,14/03/2023,509.04,6541-Domiciliary Care,THIRD PARTY PAYMENTS,PRIVATE CONTRACTOR,REVENUE
Walsall Council,http://opendatacommunities.org/id/metropolitan-district-council/walsall ,WC148-153,31.03.2023,ADULT SOCIAL CARE,5 CARE SERVICES LTD,14/03/2023,254.52,6541-Domiciliary Care,THIRD PARTY PAYMENTS,PRIVATE CONTRACTOR,REVENUE
Walsall Council,http://opendatacommunities.org/id/metropolitan-district-council/walsall ,WC148-154,31.03.2023,ADULT SOCIAL CARE,5 CARE SERVICES LTD,14/03/2023,584.50,6541-Domiciliary Care,THIRD PARTY PAYMENTS,PRIVATE CONTRACTOR,REVENUE
Walsall Council,http://opendatacommunities.org/id/metropolitan-district-council/walsall ,WC148-155,31.03.2023,ADULT SOCIAL CARE,5 CARE SERVICES LTD,14/03/2023,565.60,6541-Domiciliary Care,THIRD PARTY PAYMENTS,PRIVATE CONTRACTOR,REVENUE
Walsall Council,http://opendatacommunities.org/id/metropolitan-district-council/walsall ,WC148-156,31.03.2023,ADULT SOCIAL CARE,5 CARE SERVICES LTD,14/03/2023,452.48,6541-Domiciliary Care,THIRD PARTY PAYMENTS,PRIVATE CONTRACTOR,REVENUE
Walsall Council,http://opendatacommunities.org/id/metropolitan-district-council/walsall ,WC148-157,31.03.2023,ADULT SOCIAL CARE,5 CARE SERVICES LTD,14/03/2023,254.52,6541-Domiciliary Care,THIRD PARTY PAYMENTS,PRIVATE CONTRACTOR,REVENUE
Walsall Council,http://opendatacommunities.org/id/metropolitan-district-council/walsall ,WC148-158,31.03.2023,ADULT SOCIAL CARE,5 CARE SERVICES LTD,14/03/2023,832.24,6541-Domiciliary Care,THIRD PARTY PAYMENTS,PRIVATE CONTRACTOR,REVENUE
Walsall Council,http://opendatacommunities.org/id/metropolitan-district-council/walsall ,WC148-159,31.03.2023,ADULT SOCIAL CARE,5 CARE SERVICES LTD,14/03/2023,904.96,6541-Domiciliary Care,THIRD PARTY PAYMENTS,PRIVATE CONTRACTOR,REVENUE
Walsall Council,http://opendatacommunities.org/id/metropolitan-district-council/walsall ,WC148-160,31.03.2023,ADULT SOCIAL CARE,5 CARE SERVICES LTD,14/03/2023,339.36,6541-Domiciliary Care,THIRD PARTY PAYMENTS,PRIVATE CONTRACTOR,REVENUE
Walsall Council,http://opendatacommunities.org/id/metropolitan-district-council/walsall ,WC148-161,31.03.2023,ADULT SOCIAL CARE,5 CARE SERVICES LTD,14/03/2023,509.04,6541-Domiciliary Care,THIRD PARTY PAYMENTS,PRIVATE CONTRACTOR,REVENUE
Walsall Council,http://opendatacommunities.org/id/metropolitan-district-council/walsall ,WC148-162,31.03.2023,ADULT SOCIAL CARE,5 CARE SERVICES LTD,14/03/2023,509.04,6541-Domiciliary Care,THIRD PARTY PAYMENTS,PRIVATE CONTRACTOR,REVENUE
Walsall Council,http://opendatacommunities.org/id/metropolitan-district-council/walsall ,WC148-163,31.03.2023,ADULT SOCIAL CARE,5 CARE SERVICES LTD,14/03/2023,254.52,6541-Domiciliary Care,THIRD PARTY PAYMENTS,PRIVATE CONTRACTOR,REVENUE
Walsall Council,http://opendatacommunities.org/id/metropolitan-district-council/walsall ,WC148-164,31.03.2023,ADULT SOCIAL CARE,5 CARE SERVICES LTD,14/03/2023,452.48,6541-Domiciliary Care,THIRD PARTY PAYMENTS,PRIVATE CONTRACTOR,REVENUE
Walsall Council,http://opendatacommunities.org/id/metropolitan-district-council/walsall ,WC148-165,31.03.2023,ADULT SOCIAL CARE,5 CARE SERVICES LTD,14/03/2023,509.04,6541-Domiciliary Care,THIRD PARTY PAYMENTS,PRIVATE CONTRACTOR,REVENUE
Walsall Council,http://opendatacommunities.org/id/metropolitan-district-council/walsall ,WC148-166,31.03.2023,ADULT SOCIAL CARE,5 CARE SERVICES LTD,27/03/2023,694.88,6541-Domiciliary Care,THIRD PARTY PAYMENTS,PRIVATE CONTRACTOR,REVENUE
Walsall Council,http://opendatacommunities.org/id/metropolitan-district-council/walsall ,WC148-167,31.03.2023,ADULT SOCIAL CARE,5 CARE SERVICES LTD,27/03/2023,254.52,6541-Domiciliary Care,THIRD PARTY PAYMENTS,PRIVATE CONTRACTOR,REVENUE
Walsall Council,http://opendatacommunities.org/id/metropolitan-district-council/walsall ,WC148-168,31.03.2023,ADULT SOCIAL CARE,5 CARE SERVICES LTD,27/03/2023,775.68,6541-Domiciliary Care,THIRD PARTY PAYMENTS,PRIVATE CONTRACTOR,REVENUE
Walsall Council,http://opendatacommunities.org/id/metropolitan-district-council/walsall ,WC148-169,31.03.2023,ADULT SOCIAL CARE,5 CARE SERVICES LTD,27/03/2023,323.20,6541-Domiciliary Care,THIRD PARTY PAYMENTS,PRIVATE CONTRACTOR,REVENUE
Walsall Council,http://opendatacommunities.org/id/metropolitan-district-council/walsall ,WC148-170,31.03.2023,ADULT SOCIAL CARE,5 CARE SERVICES LTD,27/03/2023,339.36,6541-Domiciliary Care,THIRD PARTY PAYMENTS,PRIVATE CONTRACTOR,REVENUE
Walsall Council,http://opendatacommunities.org/id/metropolitan-district-council/walsall ,WC148-171,31.03.2023,ADULT SOCIAL CARE,5 CARE SERVICES LTD,27/03/2023,509.04,6541-Domiciliary Care,THIRD PARTY PAYMENTS,PRIVATE CONTRACTOR,REVENUE
Walsall Council,http://opendatacommunities.org/id/metropolitan-district-council/walsall ,WC148-172,31.03.2023,ADULT SOCIAL CARE,5 CARE SERVICES LTD,27/03/2023,735.28,6541-Domiciliary Care,THIRD PARTY PAYMENTS,PRIVATE CONTRACTOR,REVENUE
Walsall Council,http://opendatacommunities.org/id/metropolitan-district-council/walsall ,WC148-173,31.03.2023,ADULT SOCIAL CARE,5 CARE SERVICES LTD,27/03/2023,254.52,6541-Domiciliary Care,THIRD PARTY PAYMENTS,PRIVATE CONTRACTOR,REVENUE
Walsall Council,http://opendatacommunities.org/id/metropolitan-district-council/walsall ,WC148-174,31.03.2023,ADULT SOCIAL CARE,5 CARE SERVICES LTD,27/03/2023,258.56,6541-Domiciliary Care,THIRD PARTY PAYMENTS,PRIVATE CONTRACTOR,REVENUE
Walsall Council,http://opendatacommunities.org/id/metropolitan-district-council/walsall ,WC148-175,31.03.2023,ADULT SOCIAL CARE,5 CARE SERVICES LTD,27/03/2023,509.04,6541-Domiciliary Care,THIRD PARTY PAYMENTS,PRIVATE CONTRACTOR,REVENUE
Walsall Council,http://opendatacommunities.org/id/metropolitan-district-council/walsall ,WC148-176,31.03.2023,ADULT SOCIAL CARE,5 CARE SERVICES LTD,27/03/2023,904.96,6541-Domiciliary Care,THIRD PARTY PAYMENTS,PRIVATE CONTRACTOR,REVENUE
Walsall Council,http://opendatacommunities.org/id/metropolitan-district-council/walsall ,WC148-177,31.03.2023,ADULT SOCIAL CARE,5 CARE SERVICES LTD,27/03/2023,536.02,6541-Domiciliary Care,THIRD PARTY PAYMENTS,PRIVATE CONTRACTOR,REVENUE
Walsall Council,http://opendatacommunities.org/id/metropolitan-district-council/walsall ,WC148-178,31.03.2023,ADULT SOCIAL CARE,5 CARE SERVICES LTD,27/03/2023,597.92,6541-Domiciliary Care,THIRD PARTY PAYMENTS,PRIVATE CONTRACTOR,REVENUE
Walsall Council,http://opendatacommunities.org/id/metropolitan-district-council/walsall ,WC148-179,31.03.2023,ADULT SOCIAL CARE,5 CARE SERVICES LTD,27/03/2023,"1,244.32",6541-Domiciliary Care,THIRD PARTY PAYMENTS,PRIVATE CONTRACTOR,REVENUE
Walsall Council,http://opendatacommunities.org/id/metropolitan-district-council/walsall ,WC148-180,31.03.2023,ADULT SOCIAL CARE,5 CARE SERVICES LTD,27/03/2023,651.86,6541-Domiciliary Care,THIRD PARTY PAYMENTS,PRIVATE CONTRACTOR,REVENUE
Walsall Council,http://opendatacommunities.org/id/metropolitan-district-council/walsall ,WC148-181,31.03.2023,ADULT SOCIAL CARE,5 CARE SERVICES LTD,27/03/2023,339.36,6541-Domiciliary Care,THIRD PARTY PAYMENTS,PRIVATE CONTRACTOR,REVENUE
Walsall Council,http://opendatacommunities.org/id/metropolitan-district-council/walsall ,WC148-182,31.03.2023,ADULT SOCIAL CARE,5 CARE SERVICES LTD,27/03/2023,678.72,6541-Domiciliary Care,THIRD PARTY PAYMENTS,PRIVATE CONTRACTOR,REVENUE
Walsall Council,http://opendatacommunities.org/id/metropolitan-district-council/walsall ,WC148-183,31.03.2023,ADULT SOCIAL CARE,5 CARE SERVICES LTD,27/03/2023,294.92,6541-Domiciliary Care,THIRD PARTY PAYMENTS,PRIVATE CONTRACTOR,REVENUE
Walsall Council,http://opendatacommunities.org/id/metropolitan-district-council/walsall ,WC148-184,31.03.2023,ADULT SOCIAL CARE,5 CARE SERVICES LTD,27/03/2023,848.40,6541-Domiciliary Care,THIRD PARTY PAYMENTS,PRIVATE CONTRACTOR,REVENUE
Walsall Council,http://opendatacommunities.org/id/metropolitan-district-council/walsall ,WC148-185,31.03.2023,ADULT SOCIAL CARE,5 CARE SERVICES LTD,27/03/2023,584.50,6541-Domiciliary Care,THIRD PARTY PAYMENTS,PRIVATE CONTRACTOR,REVENUE
Walsall Council,http://opendatacommunities.org/id/metropolitan-district-council/walsall ,WC148-186,31.03.2023,ADULT SOCIAL CARE,5 CARE SERVICES LTD,27/03/2023,565.60,6541-Domiciliary Care,THIRD PARTY PAYMENTS,PRIVATE CONTRACTOR,REVENUE
Walsall Council,http://opendatacommunities.org/id/metropolitan-district-council/walsall ,WC148-187,31.03.2023,ADULT SOCIAL CARE,5 CARE SERVICES LTD,27/03/2023,509.04,6541-Domiciliary Care,THIRD PARTY PAYMENTS,PRIVATE CONTRACTOR,REVENUE
Walsall Council,http://opendatacommunities.org/id/metropolitan-district-council/walsall ,WC148-188,31.03.2023,ADULT SOCIAL CARE,5 CARE SERVICES LTD,27/03/2023,452.48,6541-Domiciliary Care,THIRD PARTY PAYMENTS,PRIVATE CONTRACTOR,REVENUE
Walsall Council,http://opendatacommunities.org/id/metropolitan-district-council/walsall ,WC148-189,31.03.2023,ADULT SOCIAL CARE,5 CARE SERVICES LTD,27/03/2023,848.40,6541-Domiciliary Care,THIRD PARTY PAYMENTS,PRIVATE CONTRACTOR,REVENUE
Walsall Council,http://opendatacommunities.org/id/metropolitan-district-council/walsall ,WC148-190,31.03.2023,ADULT SOCIAL CARE,5 CARE SERVICES LTD,27/03/2023,254.52,6541-Domiciliary Care,THIRD PARTY PAYMENTS,PRIVATE CONTRACTOR,REVENUE
Walsall Council,http://opendatacommunities.org/id/metropolitan-district-council/walsall ,WC148-191,31.03.2023,ADULT SOCIAL CARE,5 CARE SERVICES LTD,27/03/2023,254.52,6541-Domiciliary Care,THIRD PARTY PAYMENTS,PRIVATE CONTRACTOR,REVENUE
Walsall Council,http://opendatacommunities.org/id/metropolitan-district-council/walsall ,WC148-192,31.03.2023,ADULT SOCIAL CARE,5 CARE SERVICES LTD,27/03/2023,339.36,6541-Domiciliary Care,THIRD PARTY PAYMENTS,PRIVATE CONTRACTOR,REVENUE
Walsall Council,http://opendatacommunities.org/id/metropolitan-district-council/walsall ,WC148-193,31.03.2023,ADULT SOCIAL CARE,5 CARE SERVICES LTD,27/03/2023,509.04,6541-Domiciliary Care,THIRD PARTY PAYMENTS,PRIVATE CONTRACTOR,REVENUE
Walsall Council,http://opendatacommunities.org/id/metropolitan-district-council/walsall ,WC148-194,31.03.2023,ADULT SOCIAL CARE,5 CARE SERVICES LTD,27/03/2023,509.04,6541-Domiciliary Care,THIRD PARTY PAYMENTS,PRIVATE CONTRACTOR,REVENUE
Walsall Council,http://opendatacommunities.org/id/metropolitan-district-council/walsall ,WC148-195,31.03.2023,ADULT SOCIAL CARE,5 CARE SERVICES LTD,27/03/2023,254.52,6541-Domiciliary Care,THIRD PARTY PAYMENTS,PRIVATE CONTRACTOR,REVENUE
Walsall Council,http://opendatacommunities.org/id/metropolitan-district-council/walsall ,WC148-196,31.03.2023,ADULT SOCIAL CARE,5 CARE SERVICES LTD,27/03/2023,452.48,6541-Domiciliary Care,THIRD PARTY PAYMENTS,PRIVATE CONTRACTOR,REVENUE
Walsall Council,http://opendatacommunities.org/id/metropolitan-district-council/walsall ,WC148-197,31.03.2023,ADULT SOCIAL CARE,5 CARE SERVICES LTD,27/03/2023,509.04,6541-Domiciliary Care,THIRD PARTY PAYMENTS,PRIVATE CONTRACTOR,REVENUE
Walsall Council,http://opendatacommunities.org/id/metropolitan-district-council/walsall ,WC148-198,31.03.2023,ADULT SOCIAL CARE,5 CARE SERVICES LTD,27/03/2023,565.60,6541-Domiciliary Care,THIRD PARTY PAYMENTS,PRIVATE CONTRACTOR,REVENUE
Walsall Council,http://opendatacommunities.org/id/metropolitan-district-council/walsall ,WC148-199,31.03.2023,ADULT SOCIAL CARE,5 CARE SERVICES LTD,27/03/2023,323.20,6541-Domiciliary Care,THIRD PARTY PAYMENTS,PRIVATE CONTRACTOR,REVENUE
Walsall Council,http://opendatacommunities.org/id/metropolitan-district-council/walsall ,WC148-200,31.03.2023,ADULT SOCIAL CARE,5 CARE SERVICES LTD,27/03/2023,509.04,6541-Domiciliary Care,THIRD PARTY PAYMENTS,PRIVATE CONTRACTOR,REVENUE
Walsall Council,http://opendatacommunities.org/id/metropolitan-district-council/walsall ,WC148-201,31.03.2023,ADULT SOCIAL CARE,5 CARE SERVICES LTD,27/03/2023,509.04,6541-Domiciliary Care,THIRD PARTY PAYMENTS,PRIVATE CONTRACTOR,REVENUE
Walsall Council,http://opendatacommunities.org/id/metropolitan-district-council/walsall ,WC148-202,31.03.2023,ADULT SOCIAL CARE,5 CARE SERVICES LTD,27/03/2023,-654.48,6541-Domiciliary Care,THIRD PARTY PAYMENTS,PRIVATE CONTRACTOR,REVENUE
Walsall Council,http://opendatacommunities.org/id/metropolitan-district-council/walsall ,WC148-203,31.03.2023,ADULT SOCIAL CARE,5 CARE SERVICES LTD,27/03/2023,694.88,6541-Domiciliary Care,THIRD PARTY PAYMENTS,PRIVATE CONTRACTOR,REVENUE
Walsall Council,http://opendatacommunities.org/id/metropolitan-district-council/walsall ,WC148-204,31.03.2023,ADULT SOCIAL CARE,5 CARE SERVICES LTD,27/03/2023,323.20,6541-Domiciliary Care,THIRD PARTY PAYMENTS,PRIVATE CONTRACTOR,REVENUE
Walsall Council,http://opendatacommunities.org/id/metropolitan-district-council/walsall ,WC148-205,31.03.2023,ADULT SOCIAL CARE,5 CARE SERVICES LTD,27/03/2023,339.36,6541-Domiciliary Care,THIRD PARTY PAYMENTS,PRIVATE CONTRACTOR,REVENUE
Walsall Council,http://opendatacommunities.org/id/metropolitan-district-council/walsall ,WC148-206,31.03.2023,ADULT SOCIAL CARE,5 CARE SERVICES LTD,27/03/2023,509.04,6541-Domiciliary Care,THIRD PARTY PAYMENTS,PRIVATE CONTRACTOR,REVENUE
Walsall Council,http://opendatacommunities.org/id/metropolitan-district-council/walsall ,WC148-207,31.03.2023,ADULT SOCIAL CARE,5 CARE SERVICES LTD,27/03/2023,735.28,6541-Domiciliary Care,THIRD PARTY PAYMENTS,PRIVATE CONTRACTOR,REVENUE
Walsall Council,http://opendatacommunities.org/id/metropolitan-district-council/walsall ,WC148-208,31.03.2023,ADULT SOCIAL CARE,5 CARE SERVICES LTD,27/03/2023,254.52,6541-Domiciliary Care,THIRD PARTY PAYMENTS,PRIVATE CONTRACTOR,REVENUE
Walsall Council,http://opendatacommunities.org/id/metropolitan-district-council/walsall ,WC148-209,31.03.2023,ADULT SOCIAL CARE,5 CARE SERVICES LTD,27/03/2023,536.02,6541-Domiciliary Care,THIRD PARTY PAYMENTS,PRIVATE CONTRACTOR,REVENUE
Walsall Council,http://opendatacommunities.org/id/metropolitan-district-council/walsall ,WC148-210,31.03.2023,ADULT SOCIAL CARE,5 CARE SERVICES LTD,27/03/2023,904.96,6541-Domiciliary Care,THIRD PARTY PAYMENTS,PRIVATE CONTRACTOR,REVENUE
Walsall Council,http://opendatacommunities.org/id/metropolitan-district-council/walsall ,WC148-211,31.03.2023,ADULT SOCIAL CARE,5 CARE SERVICES LTD,27/03/2023,597.92,6541-Domiciliary Care,THIRD PARTY PAYMENTS,PRIVATE CONTRACTOR,REVENUE
Walsall Council,http://opendatacommunities.org/id/metropolitan-district-council/walsall ,WC148-212,31.03.2023,ADULT SOCIAL CARE,5 CARE SERVICES LTD,27/03/2023,"1,244.32",6541-Domiciliary Care,THIRD PARTY PAYMENTS,PRIVATE CONTRACTOR,REVENUE
Walsall Council,http://opendatacommunities.org/id/metropolitan-district-council/walsall ,WC148-213,31.03.2023,ADULT SOCIAL CARE,5 CARE SERVICES LTD,27/03/2023,678.72,6541-Domiciliary Care,THIRD PARTY PAYMENTS,PRIVATE CONTRACTOR,REVENUE
Walsall Council,http://opendatacommunities.org/id/metropolitan-district-council/walsall ,WC148-214,31.03.2023,ADULT SOCIAL CARE,5 CARE SERVICES LTD,27/03/2023,294.92,6541-Domiciliary Care,THIRD PARTY PAYMENTS,PRIVATE CONTRACTOR,REVENUE
Walsall Council,http://opendatacommunities.org/id/metropolitan-district-council/walsall ,WC148-215,31.03.2023,ADULT SOCIAL CARE,5 CARE SERVICES LTD,27/03/2023,848.40,6541-Domiciliary Care,THIRD PARTY PAYMENTS,PRIVATE CONTRACTOR,REVENUE
Walsall Council,http://opendatacommunities.org/id/metropolitan-district-council/walsall ,WC148-216,31.03.2023,ADULT SOCIAL CARE,5 CARE SERVICES LTD,27/03/2023,339.36,6541-Domiciliary Care,THIRD PARTY PAYMENTS,PRIVATE CONTRACTOR,REVENUE
Walsall Council,http://opendatacommunities.org/id/metropolitan-district-council/walsall ,WC148-217,31.03.2023,ADULT SOCIAL CARE,5 CARE SERVICES LTD,27/03/2023,509.04,6541-Domiciliary Care,THIRD PARTY PAYMENTS,PRIVATE CONTRACTOR,REVENUE
Walsall Council,http://opendatacommunities.org/id/metropolitan-district-council/walsall ,WC148-218,31.03.2023,ADULT SOCIAL CARE,5 CARE SERVICES LTD,27/03/2023,509.04,6541-Domiciliary Care,THIRD PARTY PAYMENTS,PRIVATE CONTRACTOR,REVENUE
Walsall Council,http://opendatacommunities.org/id/metropolitan-district-council/walsall ,WC148-219,31.03.2023,ADULT SOCIAL CARE,5 CARE SERVICES LTD,27/03/2023,584.50,6541-Domiciliary Care,THIRD PARTY PAYMENTS,PRIVATE CONTRACTOR,REVENUE
Walsall Council,http://opendatacommunities.org/id/metropolitan-district-council/walsall ,WC148-220,31.03.2023,ADULT SOCIAL CARE,5 CARE SERVICES LTD,27/03/2023,565.60,6541-Domiciliary Care,THIRD PARTY PAYMENTS,PRIVATE CONTRACTOR,REVENUE
Walsall Council,http://opendatacommunities.org/id/metropolitan-district-council/walsall ,WC148-221,31.03.2023,ADULT SOCIAL CARE,5 CARE SERVICES LTD,27/03/2023,254.52,6541-Domiciliary Care,THIRD PARTY PAYMENTS,PRIVATE CONTRACTOR,REVENUE
Walsall Council,http://opendatacommunities.org/id/metropolitan-district-council/walsall ,WC148-222,31.03.2023,ADULT SOCIAL CARE,5 CARE SERVICES LTD,27/03/2023,254.52,6541-Domiciliary Care,THIRD PARTY PAYMENTS,PRIVATE CONTRACTOR,REVENUE
Walsall Council,http://opendatacommunities.org/id/metropolitan-district-council/walsall ,WC148-223,31.03.2023,ADULT SOCIAL CARE,5 CARE SERVICES LTD,27/03/2023,775.68,6541-Domiciliary Care,THIRD PARTY PAYMENTS,PRIVATE CONTRACTOR,REVENUE
Walsall Council,http://opendatacommunities.org/id/metropolitan-district-council/walsall ,WC148-224,31.03.2023,ADULT SOCIAL CARE,5 CARE SERVICES LTD,27/03/2023,565.60,6541-Domiciliary Care,THIRD PARTY PAYMENTS,PRIVATE CONTRACTOR,REVENUE
Walsall Council,http://opendatacommunities.org/id/metropolitan-district-council/walsall ,WC148-225,31.03.2023,ADULT SOCIAL CARE,5 CARE SERVICES LTD,27/03/2023,509.04,6541-Domiciliary Care,THIRD PARTY PAYMENTS,PRIVATE CONTRACTOR,REVENUE
Walsall Council,http://opendatacommunities.org/id/metropolitan-district-council/walsall ,WC148-226,31.03.2023,ADULT SOCIAL CARE,5 CARE SERVICES LTD,27/03/2023,509.04,6541-Domiciliary Care,THIRD PARTY PAYMENTS,PRIVATE CONTRACTOR,REVENUE
Walsall Council,http://opendatacommunities.org/id/metropolitan-district-council/walsall ,WC148-227,31.03.2023,ADULT SOCIAL CARE,5 CARE SERVICES LTD,27/03/2023,452.48,6541-Domiciliary Care,THIRD PARTY PAYMENTS,PRIVATE CONTRACTOR,REVENUE
Walsall Council,http://opendatacommunities.org/id/metropolitan-district-council/walsall ,WC148-228,31.03.2023,ADULT SOCIAL CARE,5 CARE SERVICES LTD,27/03/2023,509.04,6541-Domiciliary Care,THIRD PARTY PAYMENTS,PRIVATE CONTRACTOR,REVENUE
Walsall Council,http://opendatacommunities.org/id/metropolitan-district-council/walsall ,WC148-229,31.03.2023,ADULT SOCIAL CARE,5 CARE SERVICES LTD,27/03/2023,258.56,6541-Domiciliary Care,THIRD PARTY PAYMENTS,PRIVATE CONTRACTOR,REVENUE
Walsall Council,http://opendatacommunities.org/id/metropolitan-district-council/walsall ,WC148-230,31.03.2023,ADULT SOCIAL CARE,5 CARE SERVICES LTD,27/03/2023,509.04,6541-Domiciliary Care,THIRD PARTY PAYMENTS,PRIVATE CONTRACTOR,REVENUE
Walsall Council,http://opendatacommunities.org/id/metropolitan-district-council/walsall ,WC148-231,31.03.2023,ADULT SOCIAL CARE,5 CARE SERVICES LTD,27/03/2023,765.00,6541-Domiciliary Care,THIRD PARTY PAYMENTS,PRIVATE CONTRACTOR,REVENUE
Walsall Council,http://opendatacommunities.org/id/metropolitan-district-council/walsall ,WC148-232,31.03.2023,ADULT SOCIAL CARE,5 CARE SERVICES LTD,27/03/2023,339.36,6541-Domiciliary Care,THIRD PARTY PAYMENTS,PRIVATE CONTRACTOR,REVENUE
Walsall Council,http://opendatacommunities.org/id/metropolitan-district-council/walsall ,WC148-233,31.03.2023,ADULT SOCIAL CARE,5 CARE SERVICES LTD,27/03/2023,509.04,6541-Domiciliary Care,THIRD PARTY PAYMENTS,PRIVATE CONTRACTOR,REVENUE
Walsall Council,http://opendatacommunities.org/id/metropolitan-district-council/walsall ,WC148-234,31.03.2023,ADULT SOCIAL CARE,5 CARE SERVICES LTD,27/03/2023,452.48,6541-Domiciliary Care,THIRD PARTY PAYMENTS,PRIVATE CONTRACTOR,REVENUE
Walsall Council,http://opendatacommunities.org/id/metropolitan-district-council/walsall ,WC148-235,31.03.2023,ADULT SOCIAL CARE,5 CARE SERVICES LTD,27/03/2023,848.40,6541-Domiciliary Care,THIRD PARTY PAYMENTS,PRIVATE CONTRACTOR,REVENUE
Walsall Council,http://opendatacommunities.org/id/metropolitan-district-council/walsall ,WC148-236,31.03.2023,ADULT SOCIAL CARE,5 CARE SERVICES LTD,27/03/2023,254.52,6541-Domiciliary Care,THIRD PARTY PAYMENTS,PRIVATE CONTRACTOR,REVENUE
Walsall Council,http://opendatacommunities.org/id/metropolitan-district-council/walsall ,WC148-237,31.03.2023,ADULT SOCIAL CARE,5 CARE SERVICES LTD,08/03/2023,"1,365.52",6554-Professional Services-Priv Contractor & Other Agencies,THIRD PARTY PAYMENTS,PRIVATE CONTRACTOR,REVENUE
Walsall Council,http://opendatacommunities.org/id/metropolitan-district-council/walsall ,WC148-238,31.03.2023,CHILDRENS,5 CARE SERVICES LTD,06/03/2023,"1,050.88",6220-Professional Fees & Services,SUPPLIES & SERVICES,SERVICES,REVENUE
Walsall Council,http://opendatacommunities.org/id/metropolitan-district-council/walsall ,WC148-239,31.03.2023,CHILDRENS,5 CARE SERVICES LTD,13/03/2023,"1,180.30",6220-Professional Fees & Services,SUPPLIES & SERVICES,SERVICES,REVENUE
Walsall Council,http://opendatacommunities.org/id/metropolitan-district-council/walsall ,WC148-240,31.03.2023,CAPITAL FINANCING,A & H CONSTRUCTION & DEVELOPMENTS PLC,08/03/2023,429.56,6670-Interest on Overdue /Late Payments-Central Expenses,FINANCING ETC,INTEREST PAID,REVENUE
Walsall Council,http://opendatacommunities.org/id/metropolitan-district-council/walsall ,WC148-241,31.03.2023,"ECONOMY, ENVIRONMENT & COMMUNITIES",A B WASTE MANAGEMENT LTD,01/03/2023,575.70,6410-Professional Services-Priv Contractor & Other Agencies,THIRD PARTY PAYMENTS,PRIVATE CONTRACTOR,REVENUE
Walsall Council,http://opendatacommunities.org/id/metropolitan-district-council/walsall ,WC148-242,31.03.2023,"ECONOMY, ENVIRONMENT & COMMUNITIES",A B WASTE MANAGEMENT LTD,16/03/2023,995.60,6410-Professional Services-Priv Contractor & Other Agencies,THIRD PARTY PAYMENTS,PRIVATE CONTRACTOR,REVENUE
Walsall Council,http://opendatacommunities.org/id/metropolitan-district-council/walsall ,WC148-243,31.03.2023,"ECONOMY, ENVIRONMENT & COMMUNITIES",A B WASTE MANAGEMENT LTD,14/03/2023,427.50,6410-Professional Services-Priv Contractor & Other Agencies,THIRD PARTY PAYMENTS,PRIVATE CONTRACTOR,REVENUE
Walsall Council,http://opendatacommunities.org/id/metropolitan-district-council/walsall ,WC148-244,31.03.2023,"ECONOMY, ENVIRONMENT & COMMUNITIES",A B WASTE MANAGEMENT LTD,29/03/2023,342.00,6410-Professional Services-Priv Contractor & Other Agencies,THIRD PARTY PAYMENTS,PRIVATE CONTRACTOR,REVENUE
Walsall Council,http://opendatacommunities.org/id/metropolitan-district-council/walsall ,WC148-245,31.03.2023,RESOURCES AND TRANSFORMATION,A D T FIRE AND SECURITY PLC,14/03/2023,"1,658.66",6310-Security & Alarm Maintenance,PREMISES,REPAIRS & MAINTENANCE,REVENUE
Walsall Council,http://opendatacommunities.org/id/metropolitan-district-council/walsall ,WC148-246,31.03.2023,CHILDRENS,A D T FIRE AND SECURITY PLC,16/03/2023,"1,101.37",6223-Operational Maintenance,PREMISES,REPAIRS & MAINTENANCE,REVENUE
Walsall Council,http://opendatacommunities.org/id/metropolitan-district-council/walsall ,WC148-247,31.03.2023,"ECONOMY, ENVIRONMENT & COMMUNITIES",A F BLAKEMORE & SON LTD,14/03/2023,520.49,6413-Food & Drink Supplies,SUPPLIES & SERVICES,CATERING,REVENUE
Walsall Council,http://opendatacommunities.org/id/metropolitan-district-council/walsall ,WC148-248,31.03.2023,"ECONOMY, ENVIRONMENT & COMMUNITIES",A F BLAKEMORE & SON LTD,14/03/2023,"1,199.72",6413-Food & Drink Supplies,SUPPLIES & SERVICES,CATERING,REVENUE
Walsall Council,http://opendatacommunities.org/id/metropolitan-district-council/walsall ,WC148-249,31.03.2023,"ECONOMY, ENVIRONMENT & COMMUNITIES",A F BLAKEMORE & SON LTD,14/03/2023,314.12,6413-Food & Drink Supplies,SUPPLIES & SERVICES,CATERING,REVENUE
Walsall Council,http://opendatacommunities.org/id/metropolitan-district-council/walsall ,WC148-250,31.03.2023,"ECONOMY, ENVIRONMENT & COMMUNITIES",A F BLAKEMORE & SON LTD,14/03/2023,337.74,6413-Food & Drink Supplies,SUPPLIES & SERVICES,CATERING,REVENUE
Walsall Council,http://opendatacommunities.org/id/metropolitan-district-council/walsall ,WC148-251,31.03.2023,"ECONOMY, ENVIRONMENT & COMMUNITIES",A F BLAKEMORE & SON LTD,14/03/2023,638.71,6413-Food & Drink Supplies,SUPPLIES & SERVICES,CATERING,REVENUE
Walsall Council,http://opendatacommunities.org/id/metropolitan-district-council/walsall ,WC148-252,31.03.2023,"ECONOMY, ENVIRONMENT & COMMUNITIES",A F BLAKEMORE & SON LTD,27/03/2023,327.05,6413-Food & Drink Supplies,SUPPLIES & SERVICES,CATERING,REVENUE
Walsall Council,http://opendatacommunities.org/id/metropolitan-district-council/walsall ,WC148-253,31.03.2023,"ECONOMY, ENVIRONMENT & COMMUNITIES",A F BLAKEMORE & SON LTD,27/03/2023,"1,504.08",6413-Food & Drink Supplies,SUPPLIES & SERVICES,CATERING,REVENUE
Walsall Council,http://opendatacommunities.org/id/metropolitan-district-council/walsall ,WC148-254,31.03.2023,"ECONOMY, ENVIRONMENT & COMMUNITIES",A F BLAKEMORE & SON LTD,16/03/2023,"-1,528.78",6413-Food & Drink Supplies,SUPPLIES & SERVICES,CATERING,REVENUE
Walsall Council,http://opendatacommunities.org/id/metropolitan-district-council/walsall ,WC148-255,31.03.2023,"ECONOMY, ENVIRONMENT & COMMUNITIES",A F BLAKEMORE & SON LTD,16/03/2023,-457.78,6413-Food & Drink Supplies,SUPPLIES & SERVICES,CATERING,REVENUE
Walsall Council,http://opendatacommunities.org/id/metropolitan-district-council/walsall ,WC148-256,31.03.2023,"ECONOMY, ENVIRONMENT & COMMUNITIES",A F BLAKEMORE & SON LTD,16/03/2023,457.78,6413-Food & Drink Supplies,SUPPLIES & SERVICES,CATERING,REVENUE
Walsall Council,http://opendatacommunities.org/id/metropolitan-district-council/walsall ,WC148-257,31.03.2023,"ECONOMY, ENVIRONMENT & COMMUNITIES",A F BLAKEMORE & SON LTD,16/03/2023,"1,528.78",6413-Food & Drink Supplies,SUPPLIES & SERVICES,CATERING,REVENUE
Walsall Council,http://opendatacommunities.org/id/metropolitan-district-council/walsall ,WC148-258,31.03.2023,ADULT SOCIAL CARE,A F BLAKEMORE & SON LTD,23/03/2023,273.48,6543-Food & Drink Supplies,SUPPLIES & SERVICES,CATERING,REVENUE
Walsall Council,http://opendatacommunities.org/id/metropolitan-district-council/walsall ,WC148-259,31.03.2023,CHILDRENS,A+ TUTORING SERVICES,31/03/2023,610.00,1220-Professional Fees & Services,SUPPLIES & SERVICES,SERVICES,REVENUE
Walsall Council,http://opendatacommunities.org/id/metropolitan-district-council/walsall ,WC148-260,31.03.2023,CHILDRENS,A1 WALSALL RADIO CARS,28/03/2023,"1,245.00",6241-Hire of Vehicle with Driver,TRANSPORT,DIRECT TRANSPORT COSTS,REVENUE
Walsall Council,http://opendatacommunities.org/id/metropolitan-district-council/walsall ,WC148-261,31.03.2023,CHILDRENS,A1 WALSALL RADIO CARS,28/03/2023,690.00,6241-Hire of Vehicle with Driver,TRANSPORT,DIRECT TRANSPORT COSTS,REVENUE
Walsall Council,http://opendatacommunities.org/id/metropolitan-district-council/walsall ,WC148-262,31.03.2023,CHILDRENS,A1 WALSALL RADIO CARS,28/03/2023,"1,275.00",6241-Hire of Vehicle with Driver,TRANSPORT,DIRECT TRANSPORT COSTS,REVENUE
Walsall Council,http://opendatacommunities.org/id/metropolitan-district-council/walsall ,WC148-263,31.03.2023,CHILDRENS,A1 WALSALL RADIO CARS,28/03/2023,975.00,6241-Hire of Vehicle with Driver,TRANSPORT,DIRECT TRANSPORT COSTS,REVENUE
Walsall Council,http://opendatacommunities.org/id/metropolitan-district-council/walsall ,WC148-264,31.03.2023,CHILDRENS,A1 WALSALL RADIO CARS,28/03/2023,"1,650.00",6241-Hire of Vehicle with Driver,TRANSPORT,DIRECT TRANSPORT COSTS,REVENUE
Walsall Council,http://opendatacommunities.org/id/metropolitan-district-council/walsall ,WC148-265,31.03.2023,CHILDRENS,A1 WALSALL RADIO CARS,28/03/2023,"3,088.00",6241-Hire of Vehicle with Driver,TRANSPORT,DIRECT TRANSPORT COSTS,REVENUE
Walsall Council,http://opendatacommunities.org/id/metropolitan-district-council/walsall ,WC148-266,31.03.2023,CHILDRENS,A1 WALSALL RADIO CARS,28/03/2023,"1,620.00",6241-Hire of Vehicle with Driver,TRANSPORT,DIRECT TRANSPORT COSTS,REVENUE
Walsall Council,http://opendatacommunities.org/id/metropolitan-district-council/walsall ,WC148-267,31.03.2023,CHILDRENS,A1 WALSALL RADIO CARS,28/03/2023,"1,152.00",6241-Hire of Vehicle with Driver,TRANSPORT,DIRECT TRANSPORT COSTS,REVENUE
Walsall Council,http://opendatacommunities.org/id/metropolitan-district-council/walsall ,WC148-268,31.03.2023,CHILDRENS,A1 WALSALL RADIO CARS,28/03/2023,"1,500.00",6241-Hire of Vehicle with Driver,TRANSPORT,DIRECT TRANSPORT COSTS,REVENUE
Walsall Council,http://opendatacommunities.org/id/metropolitan-district-council/walsall ,WC148-269,31.03.2023,"ECONOMY, ENVIRONMENT & COMMUNITIES",AAINA COMMUNITY HUB,08/03/2023,"2,750.00",6430-Grants to Other Orgs,SUPPLIES & SERVICES,GRANTS (EXP) & SUBSCRIPTIONS,REVENUE
Walsall Council,http://opendatacommunities.org/id/metropolitan-district-council/walsall ,WC148-270,31.03.2023,"ECONOMY, ENVIRONMENT & COMMUNITIES",AAINA COMMUNITY HUB,16/03/2023,"5,897.92",6313-Grants to Other Orgs,SUPPLIES & SERVICES,GRANTS (EXP) & SUBSCRIPTIONS,REVENUE
Walsall Council,http://opendatacommunities.org/id/metropolitan-district-council/walsall ,WC148-271,31.03.2023,ADULT SOCIAL CARE,REDACTED,08/03/2023,"2,330.72",6541-Direct Payment,THIRD PARTY PAYMENTS,PRIVATE CONTRACTOR,REVENUE
Walsall Council,http://opendatacommunities.org/id/metropolitan-district-council/walsall ,WC148-272,31.03.2023,CHILDRENS,ABACUS FOSTERING LTD,21/03/2023,"2,955.20",6223-Independent Foster Care-Oth Agency Provision,THIRD PARTY PAYMENTS,PRIVATE CONTRACTOR,REVENUE
Walsall Council,http://opendatacommunities.org/id/metropolitan-district-council/walsall ,WC148-273,31.03.2023,CHILDRENS,ABACUS FOSTERING LTD,21/03/2023,"2,763.20",6223-Independent Foster Care-Oth Agency Provision,THIRD PARTY PAYMENTS,PRIVATE CONTRACTOR,REVENUE
Walsall Council,http://opendatacommunities.org/id/metropolitan-district-council/walsall ,WC148-274,31.03.2023,ADULT SOCIAL CARE,ABBEY COURT NURSING & RESIDEN,14/03/2023,"2,606.04",6541-Residential EMI,THIRD PARTY PAYMENTS,PRIVATE CONTRACTOR,REVENUE
Walsall Council,http://opendatacommunities.org/id/metropolitan-district-council/walsall ,WC148-275,31.03.2023,ADULT SOCIAL CARE,ABBEY HEALTHCARE HOMES LTD,14/03/2023,"3,180.76",6541-Residential,THIRD PARTY PAYMENTS,PRIVATE CONTRACTOR,REVENUE
Walsall Council,http://opendatacommunities.org/id/metropolitan-district-council/walsall ,WC148-276,31.03.2023,ADULT SOCIAL CARE,ABBEY HEALTHCARE HOMES LTD,14/03/2023,"3,180.76",6541-Residential,THIRD PARTY PAYMENTS,PRIVATE CONTRACTOR,REVENUE
Walsall Council,http://opendatacommunities.org/id/metropolitan-district-council/walsall ,WC148-277,31.03.2023,ADULT SOCIAL CARE,ABBEY HEALTHCARE HOMES LTD,14/03/2023,"3,604.84",6541-Residential,THIRD PARTY PAYMENTS,PRIVATE CONTRACTOR,REVENUE
Walsall Council,http://opendatacommunities.org/id/metropolitan-district-council/walsall ,WC148-278,31.03.2023,ADULT SOCIAL CARE,ABBEY HEALTHCARE HOMES LTD,14/03/2023,"2,432.32",6541-Residential,THIRD PARTY PAYMENTS,PRIVATE CONTRACTOR,REVENUE
Walsall Council,http://opendatacommunities.org/id/metropolitan-district-council/walsall ,WC148-279,31.03.2023,RESOURCES AND TRANSFORMATION,ABEL ALARM CO LTD,22/03/2023,433.00,6310-Security & Alarm Maintenance,PREMISES,REPAIRS & MAINTENANCE,REVENUE
Walsall Council,http://opendatacommunities.org/id/metropolitan-district-council/walsall ,WC148-280,31.03.2023,"ECONOMY, ENVIRONMENT & COMMUNITIES",ABEL ALARM CO LTD,23/03/2023,250.80,6413-Security & Alarm Maintenance,PREMISES,REPAIRS & MAINTENANCE,REVENUE
Walsall Council,http://opendatacommunities.org/id/metropolitan-district-council/walsall ,WC148-281,31.03.2023,ADULT SOCIAL CARE,REDACTED,08/03/2023,"2,766.05",6541-Direct Payment,THIRD PARTY PAYMENTS,PRIVATE CONTRACTOR,REVENUE
Walsall Council,http://opendatacommunities.org/id/metropolitan-district-council/walsall ,WC148-282,31.03.2023,ADULT SOCIAL CARE,ABILITY HEALTHCARE LTD,08/03/2023,"1,885.52",6541-Domiciliary Care,THIRD PARTY PAYMENTS,PRIVATE CONTRACTOR,REVENUE
Walsall Council,http://opendatacommunities.org/id/metropolitan-district-council/walsall ,WC148-283,31.03.2023,ADULT SOCIAL CARE,ABILITY HEALTHCARE LTD,08/03/2023,"1,357.44",6541-Domiciliary Care,THIRD PARTY PAYMENTS,PRIVATE CONTRACTOR,REVENUE
Walsall Council,http://opendatacommunities.org/id/metropolitan-district-council/walsall ,WC148-284,31.03.2023,ADULT SOCIAL CARE,ABILITY HEALTHCARE LTD,08/03/2023,"1,648.32",6541-Domiciliary Care,THIRD PARTY PAYMENTS,PRIVATE CONTRACTOR,REVENUE
Walsall Council,http://opendatacommunities.org/id/metropolitan-district-council/walsall ,WC148-285,31.03.2023,ADULT SOCIAL CARE,ABILITY HEALTHCARE LTD,08/03/2023,"1,809.92",6541-Domiciliary Care,THIRD PARTY PAYMENTS,PRIVATE CONTRACTOR,REVENUE
Walsall Council,http://opendatacommunities.org/id/metropolitan-district-council/walsall ,WC148-286,31.03.2023,ADULT SOCIAL CARE,ABILITY HEALTHCARE LTD,08/03/2023,756.90,6541-Domiciliary Care,THIRD PARTY PAYMENTS,PRIVATE CONTRACTOR,REVENUE
Walsall Council,http://opendatacommunities.org/id/metropolitan-district-council/walsall ,WC148-287,31.03.2023,ADULT SOCIAL CARE,ABILITY HEALTHCARE LTD,08/03/2023,"2,036.16",6541-Domiciliary Care,THIRD PARTY PAYMENTS,PRIVATE CONTRACTOR,REVENUE
Walsall Council,http://opendatacommunities.org/id/metropolitan-district-council/walsall ,WC148-288,31.03.2023,ADULT SOCIAL CARE,ABILITY HEALTHCARE LTD,08/03/2023,868.60,6541-Domiciliary Care,THIRD PARTY PAYMENTS,PRIVATE CONTRACTOR,REVENUE
Walsall Council,http://opendatacommunities.org/id/metropolitan-district-council/walsall ,WC148-289,31.03.2023,ADULT SOCIAL CARE,ABILITY HEALTHCARE LTD,08/03/2023,"1,018.08",6541-Domiciliary Care,THIRD PARTY PAYMENTS,PRIVATE CONTRACTOR,REVENUE
Walsall Council,http://opendatacommunities.org/id/metropolitan-district-council/walsall ,WC148-290,31.03.2023,ADULT SOCIAL CARE,ABILITY HEALTHCARE LTD,08/03/2023,"2,036.16",6541-Domiciliary Care,THIRD PARTY PAYMENTS,PRIVATE CONTRACTOR,REVENUE
Walsall Council,http://opendatacommunities.org/id/metropolitan-district-council/walsall ,WC148-291,31.03.2023,ADULT SOCIAL CARE,ABILITY HEALTHCARE LTD,08/03/2023,"1,809.92",6541-Domiciliary Care,THIRD PARTY PAYMENTS,PRIVATE CONTRACTOR,REVENUE
Walsall Council,http://opendatacommunities.org/id/metropolitan-district-council/walsall ,WC148-292,31.03.2023,ADULT SOCIAL CARE,ABILITY HEALTHCARE LTD,08/03/2023,"1,082.72",6541-Domiciliary Care,THIRD PARTY PAYMENTS,PRIVATE CONTRACTOR,REVENUE
Walsall Council,http://opendatacommunities.org/id/metropolitan-district-council/walsall ,WC148-293,31.03.2023,ADULT SOCIAL CARE,ABILITY HEALTHCARE LTD,08/03/2023,"1,018.08",6541-Domiciliary Care,THIRD PARTY PAYMENTS,PRIVATE CONTRACTOR,REVENUE
Walsall Council,http://opendatacommunities.org/id/metropolitan-district-council/walsall ,WC148-294,31.03.2023,ADULT SOCIAL CARE,ABILITY HEALTHCARE LTD,08/03/2023,377.16,6541-Domiciliary Care,THIRD PARTY PAYMENTS,PRIVATE CONTRACTOR,REVENUE
Walsall Council,http://opendatacommunities.org/id/metropolitan-district-council/walsall ,WC148-295,31.03.2023,ADULT SOCIAL CARE,ABILITY HEALTHCARE LTD,08/03/2023,927.08,6541-Domiciliary Care,THIRD PARTY PAYMENTS,PRIVATE CONTRACTOR,REVENUE
Walsall Council,http://opendatacommunities.org/id/metropolitan-district-council/walsall ,WC148-296,31.03.2023,ADULT SOCIAL CARE,ABILITY HEALTHCARE LTD,08/03/2023,"3,619.84",6541-Domiciliary Care,THIRD PARTY PAYMENTS,PRIVATE CONTRACTOR,REVENUE
Walsall Council,http://opendatacommunities.org/id/metropolitan-district-council/walsall ,WC148-297,31.03.2023,ADULT SOCIAL CARE,ABILITY HEALTHCARE LTD,08/03/2023,904.96,6541-Domiciliary Care,THIRD PARTY PAYMENTS,PRIVATE CONTRACTOR,REVENUE
Walsall Council,http://opendatacommunities.org/id/metropolitan-district-council/walsall ,WC148-298,31.03.2023,ADULT SOCIAL CARE,ABILITY HEALTHCARE LTD,08/03/2023,"2,036.16",6541-Domiciliary Care,THIRD PARTY PAYMENTS,PRIVATE CONTRACTOR,REVENUE
Walsall Council,http://opendatacommunities.org/id/metropolitan-district-council/walsall ,WC148-299,31.03.2023,ADULT SOCIAL CARE,ABILITY HEALTHCARE LTD,08/03/2023,"1,809.92",6541-Domiciliary Care,THIRD PARTY PAYMENTS,PRIVATE CONTRACTOR,REVENUE
Walsall Council,http://opendatacommunities.org/id/metropolitan-district-council/walsall ,WC148-300,31.03.2023,ADULT SOCIAL CARE,ABILITY HEALTHCARE LTD,08/03/2023,"2,068.48",6541-Domiciliary Care,THIRD PARTY PAYMENTS,PRIVATE CONTRACTOR,REVENUE
Walsall Council,http://opendatacommunities.org/id/metropolitan-district-council/walsall ,WC148-301,31.03.2023,ADULT SOCIAL CARE,ABILITY HEALTHCARE LTD,08/03/2023,"1,583.68",6541-Domiciliary Care,THIRD PARTY PAYMENTS,PRIVATE CONTRACTOR,REVENUE
Walsall Council,http://opendatacommunities.org/id/metropolitan-district-council/walsall ,WC148-302,31.03.2023,ADULT SOCIAL CARE,ABILITY HEALTHCARE LTD,08/03/2023,"1,809.92",6541-Domiciliary Care,THIRD PARTY PAYMENTS,PRIVATE CONTRACTOR,REVENUE
Walsall Council,http://opendatacommunities.org/id/metropolitan-district-council/walsall ,WC148-303,31.03.2023,ADULT SOCIAL CARE,ABILITY HEALTHCARE LTD,08/03/2023,"1,807.23",6541-Domiciliary Care,THIRD PARTY PAYMENTS,PRIVATE CONTRACTOR,REVENUE
Walsall Council,http://opendatacommunities.org/id/metropolitan-district-council/walsall ,WC148-304,31.03.2023,ADULT SOCIAL CARE,ABILITY HEALTHCARE LTD,08/03/2023,"1,527.12",6541-Domiciliary Care,THIRD PARTY PAYMENTS,PRIVATE CONTRACTOR,REVENUE
Walsall Council,http://opendatacommunities.org/id/metropolitan-district-council/walsall ,WC148-305,31.03.2023,ADULT SOCIAL CARE,ABILITY HEALTHCARE LTD,08/03/2023,452.76,6541-Domiciliary Care,THIRD PARTY PAYMENTS,PRIVATE CONTRACTOR,REVENUE
Walsall Council,http://opendatacommunities.org/id/metropolitan-district-council/walsall ,WC148-306,31.03.2023,ADULT SOCIAL CARE,ABILITY HEALTHCARE LTD,08/03/2023,"1,659.28",6541-Domiciliary Care,THIRD PARTY PAYMENTS,PRIVATE CONTRACTOR,REVENUE
Walsall Council,http://opendatacommunities.org/id/metropolitan-district-council/walsall ,WC148-307,31.03.2023,ADULT SOCIAL CARE,ABILITY HEALTHCARE LTD,08/03/2023,"1,809.92",6541-Domiciliary Care,THIRD PARTY PAYMENTS,PRIVATE CONTRACTOR,REVENUE
Walsall Council,http://opendatacommunities.org/id/metropolitan-district-council/walsall ,WC148-308,31.03.2023,ADULT SOCIAL CARE,ABILITY HEALTHCARE LTD,08/03/2023,"1,131.20",6541-Domiciliary Care,THIRD PARTY PAYMENTS,PRIVATE CONTRACTOR,REVENUE
Walsall Council,http://opendatacommunities.org/id/metropolitan-district-council/walsall ,WC148-309,31.03.2023,ADULT SOCIAL CARE,ABILITY HEALTHCARE LTD,08/03/2023,921.12,6541-Domiciliary Care,THIRD PARTY PAYMENTS,PRIVATE CONTRACTOR,REVENUE
Walsall Council,http://opendatacommunities.org/id/metropolitan-district-council/walsall ,WC148-310,31.03.2023,ADULT SOCIAL CARE,ABILITY HEALTHCARE LTD,08/03/2023,"1,196.02",6541-Domiciliary Care,THIRD PARTY PAYMENTS,PRIVATE CONTRACTOR,REVENUE
Walsall Council,http://opendatacommunities.org/id/metropolitan-district-council/walsall ,WC148-311,31.03.2023,ADULT SOCIAL CARE,ABILITY HEALTHCARE LTD,08/03/2023,"2,036.16",6541-Domiciliary Care,THIRD PARTY PAYMENTS,PRIVATE CONTRACTOR,REVENUE
Walsall Council,http://opendatacommunities.org/id/metropolitan-district-council/walsall ,WC148-312,31.03.2023,ADULT SOCIAL CARE,ABILITY HEALTHCARE LTD,08/03/2023,"2,036.16",6554-Professional Services-Priv Contractor & Other Agencies,THIRD PARTY PAYMENTS,PRIVATE CONTRACTOR,REVENUE
Walsall Council,http://opendatacommunities.org/id/metropolitan-district-council/walsall ,WC148-313,31.03.2023,ADULT SOCIAL CARE,ABILITY HEALTHCARE LTD,08/03/2023,"2,036.16",6554-Professional Services-Priv Contractor & Other Agencies,THIRD PARTY PAYMENTS,PRIVATE CONTRACTOR,REVENUE
Walsall Council,http://opendatacommunities.org/id/metropolitan-district-council/walsall ,WC148-314,31.03.2023,ADULT SOCIAL CARE,ABILITY HEALTHCARE LTD,08/03/2023,290.88,6554-Professional Services-Priv Contractor & Other Agencies,THIRD PARTY PAYMENTS,PRIVATE CONTRACTOR,REVENUE
Walsall Council,http://opendatacommunities.org/id/metropolitan-district-council/walsall ,WC148-315,31.03.2023,ADULT SOCIAL CARE,ABILITY HEALTHCARE LTD,08/03/2023,436.32,6554-Professional Services-Priv Contractor & Other Agencies,THIRD PARTY PAYMENTS,PRIVATE CONTRACTOR,REVENUE
Walsall Council,http://opendatacommunities.org/id/metropolitan-district-council/walsall ,WC148-316,31.03.2023,ADULT SOCIAL CARE,ABILITY HEALTHCARE LTD,08/03/2023,759.52,6554-Professional Services-Priv Contractor & Other Agencies,THIRD PARTY PAYMENTS,PRIVATE CONTRACTOR,REVENUE
Walsall Council,http://opendatacommunities.org/id/metropolitan-district-council/walsall ,WC148-317,31.03.2023,ADULT SOCIAL CARE,ABILITY HEALTHCARE LTD,08/03/2023,686.80,6554-Professional Services-Priv Contractor & Other Agencies,THIRD PARTY PAYMENTS,PRIVATE CONTRACTOR,REVENUE
Walsall Council,http://opendatacommunities.org/id/metropolitan-district-council/walsall ,WC148-318,31.03.2023,ADULT SOCIAL CARE,ABILITY HEALTHCARE LTD,08/03/2023,904.96,6554-Professional Services-Priv Contractor & Other Agencies,THIRD PARTY PAYMENTS,PRIVATE CONTRACTOR,REVENUE
Walsall Council,http://opendatacommunities.org/id/metropolitan-district-council/walsall ,WC148-319,31.03.2023,ADULT SOCIAL CARE,ABILITY HEALTHCARE LTD,08/03/2023,"1,454.40",6554-Professional Services-Priv Contractor & Other Agencies,THIRD PARTY PAYMENTS,PRIVATE CONTRACTOR,REVENUE
Walsall Council,http://opendatacommunities.org/id/metropolitan-district-council/walsall ,WC148-320,31.03.2023,"ECONOMY, ENVIRONMENT & COMMUNITIES",ABLE INVESTIGATIONS & ENFORCEMENTS LTD,08/03/2023,515.00,6440-Professional Fees & Services,SUPPLIES & SERVICES,SERVICES,REVENUE
Walsall Council,http://opendatacommunities.org/id/metropolitan-district-council/walsall ,WC148-321,31.03.2023,"ECONOMY, ENVIRONMENT & COMMUNITIES",ABLE INVESTIGATIONS & ENFORCEMENTS LTD,28/03/2023,"4,410.00",6440-Professional Fees & Services,SUPPLIES & SERVICES,SERVICES,REVENUE
Walsall Council,http://opendatacommunities.org/id/metropolitan-district-council/walsall ,WC148-322,31.03.2023,CHILDRENS,ABLEWELL CARS,28/03/2023,990.00,6241-Hire of Vehicle with Driver,TRANSPORT,DIRECT TRANSPORT COSTS,REVENUE
Walsall Council,http://opendatacommunities.org/id/metropolitan-district-council/walsall ,WC148-323,31.03.2023,CHILDRENS,ABLEWELL CARS,28/03/2023,"1,248.00",6241-Hire of Vehicle with Driver,TRANSPORT,DIRECT TRANSPORT COSTS,REVENUE
Walsall Council,http://opendatacommunities.org/id/metropolitan-district-council/walsall ,WC148-324,31.03.2023,CHILDRENS,ABLEWELL CARS,28/03/2023,"1,212.75",6241-Hire of Vehicle with Driver,TRANSPORT,DIRECT TRANSPORT COSTS,REVENUE
Walsall Council,http://opendatacommunities.org/id/metropolitan-district-council/walsall ,WC148-325,31.03.2023,CHILDRENS,ABLEWELL CARS,28/03/2023,"1,988.10",6241-Hire of Vehicle with Driver,TRANSPORT,DIRECT TRANSPORT COSTS,REVENUE
Walsall Council,http://opendatacommunities.org/id/metropolitan-district-council/walsall ,WC148-326,31.03.2023,CHILDRENS,ABLEWELL CARS,28/03/2023,948.00,6241-Hire of Vehicle with Driver,TRANSPORT,DIRECT TRANSPORT COSTS,REVENUE
Walsall Council,http://opendatacommunities.org/id/metropolitan-district-council/walsall ,WC148-327,31.03.2023,CHILDRENS,ABLEWELL CARS,28/03/2023,"1,103.40",6241-Hire of Vehicle with Driver,TRANSPORT,DIRECT TRANSPORT COSTS,REVENUE
Walsall Council,http://opendatacommunities.org/id/metropolitan-district-council/walsall ,WC148-328,31.03.2023,CHILDRENS,ABS TAXIS (ALDRIDGE),28/03/2023,"1,480.50",6241-Hire of Vehicle with Driver,TRANSPORT,DIRECT TRANSPORT COSTS,REVENUE
Walsall Council,http://opendatacommunities.org/id/metropolitan-district-council/walsall ,WC148-329,31.03.2023,CHILDRENS,ABS TAXIS (ALDRIDGE),28/03/2023,"1,207.50",6241-Hire of Vehicle with Driver,TRANSPORT,DIRECT TRANSPORT COSTS,REVENUE
Walsall Council,http://opendatacommunities.org/id/metropolitan-district-council/walsall ,WC148-330,31.03.2023,CHILDRENS,ABS TAXIS (ALDRIDGE),28/03/2023,"1,050.00",6241-Hire of Vehicle with Driver,TRANSPORT,DIRECT TRANSPORT COSTS,REVENUE
Walsall Council,http://opendatacommunities.org/id/metropolitan-district-council/walsall ,WC148-331,31.03.2023,CHILDRENS,ABS TAXIS (ALDRIDGE),28/03/2023,"1,453.20",6241-Hire of Vehicle with Driver,TRANSPORT,DIRECT TRANSPORT COSTS,REVENUE
Walsall Council,http://opendatacommunities.org/id/metropolitan-district-council/walsall ,WC148-332,31.03.2023,ADULT SOCIAL CARE,ABSOLUTE HEALTHCARE SWAN HOUSE LTD,14/03/2023,"2,366.04",6541-Residential EMI,THIRD PARTY PAYMENTS,PRIVATE CONTRACTOR,REVENUE
Walsall Council,http://opendatacommunities.org/id/metropolitan-district-council/walsall ,WC148-333,31.03.2023,ADULT SOCIAL CARE,ABSOLUTE HEALTHCARE SWAN HOUSE LTD,14/03/2023,"2,235.40",6541-Residential,THIRD PARTY PAYMENTS,PRIVATE CONTRACTOR,REVENUE
Walsall Council,http://opendatacommunities.org/id/metropolitan-district-council/walsall ,WC148-334,31.03.2023,ADULT SOCIAL CARE,ABSOLUTE HEALTHCARE SWAN HOUSE LTD,14/03/2023,"2,135.40",6541-Residential,THIRD PARTY PAYMENTS,PRIVATE CONTRACTOR,REVENUE
Walsall Council,http://opendatacommunities.org/id/metropolitan-district-council/walsall ,WC148-335,31.03.2023,ADULT SOCIAL CARE,ABSOLUTE HEALTHCARE SWAN HOUSE LTD,14/03/2023,"2,095.40",6541-Residential,THIRD PARTY PAYMENTS,PRIVATE CONTRACTOR,REVENUE
Walsall Council,http://opendatacommunities.org/id/metropolitan-district-council/walsall ,WC148-336,31.03.2023,ADULT SOCIAL CARE,ABSOLUTE HEALTHCARE SWAN HOUSE LTD,14/03/2023,"2,095.40",6541-Residential,THIRD PARTY PAYMENTS,PRIVATE CONTRACTOR,REVENUE
Walsall Council,http://opendatacommunities.org/id/metropolitan-district-council/walsall ,WC148-337,31.03.2023,ADULT SOCIAL CARE,ABSOLUTE HEALTHCARE SWAN HOUSE LTD,14/03/2023,"2,095.40",6541-Residential,THIRD PARTY PAYMENTS,PRIVATE CONTRACTOR,REVENUE
Walsall Council,http://opendatacommunities.org/id/metropolitan-district-council/walsall ,WC148-338,31.03.2023,ADULT SOCIAL CARE,ABSOLUTE HEALTHCARE SWAN HOUSE LTD,14/03/2023,"2,366.04",6541-Residential EMI,THIRD PARTY PAYMENTS,PRIVATE CONTRACTOR,REVENUE
Walsall Council,http://opendatacommunities.org/id/metropolitan-district-council/walsall ,WC148-339,31.03.2023,ADULT SOCIAL CARE,ABSOLUTE HEALTHCARE SWAN HOUSE LTD,14/03/2023,"1,974.14",6541-Nursing EMI,THIRD PARTY PAYMENTS,PRIVATE CONTRACTOR,REVENUE
Walsall Council,http://opendatacommunities.org/id/metropolitan-district-council/walsall ,WC148-340,31.03.2023,ADULT SOCIAL CARE,ABSOLUTE HEALTHCARE SWAN HOUSE LTD,14/03/2023,"2,095.40",6541-Residential,THIRD PARTY PAYMENTS,PRIVATE CONTRACTOR,REVENUE
Walsall Council,http://opendatacommunities.org/id/metropolitan-district-council/walsall ,WC148-341,31.03.2023,ADULT SOCIAL CARE,ABSOLUTE HEALTHCARE SWAN HOUSE LTD,14/03/2023,"2,366.04",6541-Residential EMI,THIRD PARTY PAYMENTS,PRIVATE CONTRACTOR,REVENUE
Walsall Council,http://opendatacommunities.org/id/metropolitan-district-council/walsall ,WC148-342,31.03.2023,ADULT SOCIAL CARE,ABSOLUTE HEALTHCARE SWAN HOUSE LTD,14/03/2023,"2,366.04",6541-Residential EMI,THIRD PARTY PAYMENTS,PRIVATE CONTRACTOR,REVENUE
Walsall Council,http://opendatacommunities.org/id/metropolitan-district-council/walsall ,WC148-343,31.03.2023,ADULT SOCIAL CARE,ABSOLUTE HEALTHCARE SWAN HOUSE LTD,14/03/2023,"2,366.04",6541-Residential EMI,THIRD PARTY PAYMENTS,PRIVATE CONTRACTOR,REVENUE
Walsall Council,http://opendatacommunities.org/id/metropolitan-district-council/walsall ,WC148-344,31.03.2023,ADULT SOCIAL CARE,ABSOLUTE HEALTHCARE SWAN HOUSE LTD,14/03/2023,"2,095.40",6541-Residential,THIRD PARTY PAYMENTS,PRIVATE CONTRACTOR,REVENUE
Walsall Council,http://opendatacommunities.org/id/metropolitan-district-council/walsall ,WC148-345,31.03.2023,ADULT SOCIAL CARE,ABSOLUTE HEALTHCARE SWAN HOUSE LTD,08/03/2023,"1,098.70",6541-Residential EMI,THIRD PARTY PAYMENTS,PRIVATE CONTRACTOR,REVENUE
Walsall Council,http://opendatacommunities.org/id/metropolitan-district-council/walsall ,WC148-346,31.03.2023,CHILDRENS,ACCALIA CARE SERVICES LTD,21/03/2023,"20,960.00",6223-External Residential Care-Oth Agency Provision,THIRD PARTY PAYMENTS,PRIVATE CONTRACTOR,REVENUE
Walsall Council,http://opendatacommunities.org/id/metropolitan-district-council/walsall ,WC148-347,31.03.2023,CHILDRENS,ACCEPTING BEHAVIOUR LTD,06/03/2023,390.00,1220-Professional Fees & Services,SUPPLIES & SERVICES,SERVICES,REVENUE
Walsall Council,http://opendatacommunities.org/id/metropolitan-district-council/walsall ,WC148-348,31.03.2023,RESOURCES AND TRANSFORMATION,ACCESS UK LTD ,31/03/2023,"2,038.75",6625-Library Books,SUPPLIES & SERVICES,EQUIPMENT FURNITURE & MATERIALS,REVENUE
Walsall Council,http://opendatacommunities.org/id/metropolitan-district-council/walsall ,WC148-349,31.03.2023,RESOURCES AND TRANSFORMATION,ACCESS UK LTD ,31/03/2023,"4,077.50",6625-Library Books,SUPPLIES & SERVICES,EQUIPMENT FURNITURE & MATERIALS,REVENUE
Walsall Council,http://opendatacommunities.org/id/metropolitan-district-council/walsall ,WC148-350,31.03.2023,CHILDRENS,ACCESS UK LTD ,29/03/2023,"7,621.81",6632-Professional Services-Priv Contractor & Other Agencies,THIRD PARTY PAYMENTS,PRIVATE CONTRACTOR,REVENUE
Walsall Council,http://opendatacommunities.org/id/metropolitan-district-council/walsall ,WC148-351,31.03.2023,ADULT SOCIAL CARE,ACCESS UK LTD ,14/03/2023,"18,315.00",6551-Professional Fees & Services,SUPPLIES & SERVICES,SERVICES,REVENUE
Walsall Council,http://opendatacommunities.org/id/metropolitan-district-council/walsall ,WC148-352,31.03.2023,ADULT SOCIAL CARE,ACCORD HOUSING ASSOCIATION LIMITED - HOBS MEADOW,14/03/2023,"4,776.84",6541-Residential,THIRD PARTY PAYMENTS,PRIVATE CONTRACTOR,REVENUE
Walsall Council,http://opendatacommunities.org/id/metropolitan-district-council/walsall ,WC148-353,31.03.2023,ADULT SOCIAL CARE,ACCORD HOUSING ASSOCIATION LIMITED - HOBS MEADOW,14/03/2023,"4,776.84",6541-Residential,THIRD PARTY PAYMENTS,PRIVATE CONTRACTOR,REVENUE
Walsall Council,http://opendatacommunities.org/id/metropolitan-district-council/walsall ,WC148-354,31.03.2023,ADULT SOCIAL CARE,ACCORD HOUSING ASSOCIATION LIMITED - HOBS MEADOW,14/03/2023,"4,776.84",6541-Residential,THIRD PARTY PAYMENTS,PRIVATE CONTRACTOR,REVENUE
Walsall Council,http://opendatacommunities.org/id/metropolitan-district-council/walsall ,WC148-355,31.03.2023,ADULT SOCIAL CARE,ACCORD HOUSING ASSOCIATION LIMITED - HOBS MEADOW,14/03/2023,"4,776.84",6541-Residential,THIRD PARTY PAYMENTS,PRIVATE CONTRACTOR,REVENUE
Walsall Council,http://opendatacommunities.org/id/metropolitan-district-council/walsall ,WC148-356,31.03.2023,CHILDRENS,ACE CARS & MINIBUSES LTD,28/03/2023,"1,605.00",6241-Hire of Vehicle with Driver,TRANSPORT,DIRECT TRANSPORT COSTS,REVENUE
Walsall Council,http://opendatacommunities.org/id/metropolitan-district-council/walsall ,WC148-357,31.03.2023,CHILDRENS,ACE CARS & MINIBUSES LTD,28/03/2023,"1,605.00",6241-Hire of Vehicle with Driver,TRANSPORT,DIRECT TRANSPORT COSTS,REVENUE
Walsall Council,http://opendatacommunities.org/id/metropolitan-district-council/walsall ,WC148-358,31.03.2023,CHILDRENS,ACE CARS & MINIBUSES LTD,28/03/2023,"1,605.00",6241-Hire of Vehicle with Driver,TRANSPORT,DIRECT TRANSPORT COSTS,REVENUE
Walsall Council,http://opendatacommunities.org/id/metropolitan-district-council/walsall ,WC148-359,31.03.2023,CHILDRENS,ACE CARS & MINIBUSES LTD,28/03/2023,"1,605.00",6241-Hire of Vehicle with Driver,TRANSPORT,DIRECT TRANSPORT COSTS,REVENUE
Walsall Council,http://opendatacommunities.org/id/metropolitan-district-council/walsall ,WC148-360,31.03.2023,CHILDRENS,ACE CARS & MINIBUSES LTD,28/03/2023,"1,770.00",6241-Hire of Vehicle with Driver,TRANSPORT,DIRECT TRANSPORT COSTS,REVENUE
Walsall Council,http://opendatacommunities.org/id/metropolitan-district-council/walsall ,WC148-361,31.03.2023,CHILDRENS,ACE CARS & MINIBUSES LTD,28/03/2023,"2,377.50",6241-Hire of Vehicle with Driver,TRANSPORT,DIRECT TRANSPORT COSTS,REVENUE
Walsall Council,http://opendatacommunities.org/id/metropolitan-district-council/walsall ,WC148-362,31.03.2023,CHILDRENS,ACE CARS & MINIBUSES LTD,28/03/2023,"1,792.50",6241-Hire of Vehicle with Driver,TRANSPORT,DIRECT TRANSPORT COSTS,REVENUE
Walsall Council,http://opendatacommunities.org/id/metropolitan-district-council/walsall ,WC148-363,31.03.2023,CHILDRENS,ACE CARS & MINIBUSES LTD,28/03/2023,"1,971.75",6241-Hire of Vehicle with Driver,TRANSPORT,DIRECT TRANSPORT COSTS,REVENUE
Walsall Council,http://opendatacommunities.org/id/metropolitan-district-council/walsall ,WC148-364,31.03.2023,CHILDRENS,ACE CARS & MINIBUSES LTD,28/03/2023,"1,792.50",6241-Hire of Vehicle with Driver,TRANSPORT,DIRECT TRANSPORT COSTS,REVENUE
Walsall Council,http://opendatacommunities.org/id/metropolitan-district-council/walsall ,WC148-365,31.03.2023,CHILDRENS,ACE CARS & MINIBUSES LTD,28/03/2023,"1,905.40",6241-Hire of Vehicle with Driver,TRANSPORT,DIRECT TRANSPORT COSTS,REVENUE
Walsall Council,http://opendatacommunities.org/id/metropolitan-district-council/walsall ,WC148-366,31.03.2023,CHILDRENS,ACE CARS & MINIBUSES LTD,28/03/2023,"1,905.40",6241-Hire of Vehicle with Driver,TRANSPORT,DIRECT TRANSPORT COSTS,REVENUE
Walsall Council,http://opendatacommunities.org/id/metropolitan-district-council/walsall ,WC148-367,31.03.2023,CHILDRENS,ACE CARS & MINIBUSES LTD,28/03/2023,"1,710.00",6241-Hire of Vehicle with Driver,TRANSPORT,DIRECT TRANSPORT COSTS,REVENUE
Walsall Council,http://opendatacommunities.org/id/metropolitan-district-council/walsall ,WC148-368,31.03.2023,CHILDRENS,ACE CARS & MINIBUSES LTD,28/03/2023,"1,605.00",6241-Hire of Vehicle with Driver,TRANSPORT,DIRECT TRANSPORT COSTS,REVENUE
Walsall Council,http://opendatacommunities.org/id/metropolitan-district-council/walsall ,WC148-369,31.03.2023,CHILDRENS,ACE CARS & MINIBUSES LTD,28/03/2023,"3,186.00",6241-Hire of Vehicle with Driver,TRANSPORT,DIRECT TRANSPORT COSTS,REVENUE
Walsall Council,http://opendatacommunities.org/id/metropolitan-district-council/walsall ,WC148-370,31.03.2023,CHILDRENS,ACE CARS & MINIBUSES LTD,28/03/2023,"1,605.00",6241-Hire of Vehicle with Driver,TRANSPORT,DIRECT TRANSPORT COSTS,REVENUE
Walsall Council,http://opendatacommunities.org/id/metropolitan-district-council/walsall ,WC148-371,31.03.2023,CHILDRENS,ACE CARS & MINIBUSES LTD,28/03/2023,"1,605.00",6241-Hire of Vehicle with Driver,TRANSPORT,DIRECT TRANSPORT COSTS,REVENUE
Walsall Council,http://opendatacommunities.org/id/metropolitan-district-council/walsall ,WC148-372,31.03.2023,CHILDRENS,ACE CARS & MINIBUSES LTD,28/03/2023,"1,605.00",6241-Hire of Vehicle with Driver,TRANSPORT,DIRECT TRANSPORT COSTS,REVENUE
Walsall Council,http://opendatacommunities.org/id/metropolitan-district-council/walsall ,WC148-373,31.03.2023,CHILDRENS,ACE CARS & MINIBUSES LTD,28/03/2023,"1,770.00",6241-Hire of Vehicle with Driver,TRANSPORT,DIRECT TRANSPORT COSTS,REVENUE
Walsall Council,http://opendatacommunities.org/id/metropolitan-district-council/walsall ,WC148-374,31.03.2023,CHILDRENS,ACE CARS & MINIBUSES LTD,28/03/2023,"1,792.50",6241-Hire of Vehicle with Driver,TRANSPORT,DIRECT TRANSPORT COSTS,REVENUE
Walsall Council,http://opendatacommunities.org/id/metropolitan-district-council/walsall ,WC148-375,31.03.2023,CHILDRENS,ACE CARS & MINIBUSES LTD,28/03/2023,"1,905.40",6241-Hire of Vehicle with Driver,TRANSPORT,DIRECT TRANSPORT COSTS,REVENUE
Walsall Council,http://opendatacommunities.org/id/metropolitan-district-council/walsall ,WC148-376,31.03.2023,CHILDRENS,ACE CARS & MINIBUSES LTD,28/03/2023,"1,905.40",6241-Hire of Vehicle with Driver,TRANSPORT,DIRECT TRANSPORT COSTS,REVENUE
Walsall Council,http://opendatacommunities.org/id/metropolitan-district-council/walsall ,WC148-377,31.03.2023,CHILDRENS,ACE CARS & MINIBUSES LTD,28/03/2023,"1,905.40",6241-Hire of Vehicle with Driver,TRANSPORT,DIRECT TRANSPORT COSTS,REVENUE
Walsall Council,http://opendatacommunities.org/id/metropolitan-district-council/walsall ,WC148-378,31.03.2023,CHILDRENS,ACE CARS & MINIBUSES LTD,28/03/2023,"2,542.50",6241-Hire of Vehicle with Driver,TRANSPORT,DIRECT TRANSPORT COSTS,REVENUE
Walsall Council,http://opendatacommunities.org/id/metropolitan-district-council/walsall ,WC148-379,31.03.2023,CHILDRENS,ACE CARS & MINIBUSES LTD,28/03/2023,"1,770.00",6241-Hire of Vehicle with Driver,TRANSPORT,DIRECT TRANSPORT COSTS,REVENUE
Walsall Council,http://opendatacommunities.org/id/metropolitan-district-council/walsall ,WC148-380,31.03.2023,CHILDRENS,ACE CARS & MINIBUSES LTD,28/03/2023,"2,017.80",6241-Hire of Vehicle with Driver,TRANSPORT,DIRECT TRANSPORT COSTS,REVENUE
Walsall Council,http://opendatacommunities.org/id/metropolitan-district-council/walsall ,WC148-381,31.03.2023,CHILDRENS,ACE CARS & MINIBUSES LTD,28/03/2023,"1,876.20",6241-Hire of Vehicle with Driver,TRANSPORT,DIRECT TRANSPORT COSTS,REVENUE
Walsall Council,http://opendatacommunities.org/id/metropolitan-district-council/walsall ,WC148-382,31.03.2023,CHILDRENS,ACE CARS & MINIBUSES LTD,28/03/2023,"1,770.00",6241-Hire of Vehicle with Driver,TRANSPORT,DIRECT TRANSPORT COSTS,REVENUE
Walsall Council,http://opendatacommunities.org/id/metropolitan-district-council/walsall ,WC148-383,31.03.2023,CHILDRENS,ACE CARS & MINIBUSES LTD,28/03/2023,"2,400.00",6241-Hire of Vehicle with Driver,TRANSPORT,DIRECT TRANSPORT COSTS,REVENUE
Walsall Council,http://opendatacommunities.org/id/metropolitan-district-council/walsall ,WC148-384,31.03.2023,CHILDRENS,ACE CARS & MINIBUSES LTD,28/03/2023,"2,648.66",6241-Hire of Vehicle with Driver,TRANSPORT,DIRECT TRANSPORT COSTS,REVENUE
Walsall Council,http://opendatacommunities.org/id/metropolitan-district-council/walsall ,WC148-385,31.03.2023,CHILDRENS,ACE CARS & MINIBUSES LTD,28/03/2023,"1,905.40",6241-Hire of Vehicle with Driver,TRANSPORT,DIRECT TRANSPORT COSTS,REVENUE
Walsall Council,http://opendatacommunities.org/id/metropolitan-district-council/walsall ,WC148-386,31.03.2023,CHILDRENS,ACE CARS & MINIBUSES LTD,28/03/2023,"2,153.06",6241-Hire of Vehicle with Driver,TRANSPORT,DIRECT TRANSPORT COSTS,REVENUE
Walsall Council,http://opendatacommunities.org/id/metropolitan-district-council/walsall ,WC148-387,31.03.2023,CHILDRENS,ACE CARS & MINIBUSES LTD,28/03/2023,"2,545.35",6241-Hire of Vehicle with Driver,TRANSPORT,DIRECT TRANSPORT COSTS,REVENUE
Walsall Council,http://opendatacommunities.org/id/metropolitan-district-council/walsall ,WC148-388,31.03.2023,CHILDRENS,ACE CARS & MINIBUSES LTD,28/03/2023,"1,605.00",6241-Hire of Vehicle with Driver,TRANSPORT,DIRECT TRANSPORT COSTS,REVENUE
Walsall Council,http://opendatacommunities.org/id/metropolitan-district-council/walsall ,WC148-389,31.03.2023,CHILDRENS,ACE CARS & MINIBUSES LTD,28/03/2023,"1,605.00",6241-Hire of Vehicle with Driver,TRANSPORT,DIRECT TRANSPORT COSTS,REVENUE
Walsall Council,http://opendatacommunities.org/id/metropolitan-district-council/walsall ,WC148-390,31.03.2023,CHILDRENS,ACE CARS & MINIBUSES LTD,28/03/2023,"1,770.00",6241-Hire of Vehicle with Driver,TRANSPORT,DIRECT TRANSPORT COSTS,REVENUE
Walsall Council,http://opendatacommunities.org/id/metropolitan-district-council/walsall ,WC148-391,31.03.2023,CHILDRENS,ACE CARS & MINIBUSES LTD,28/03/2023,"1,710.00",6241-Hire of Vehicle with Driver,TRANSPORT,DIRECT TRANSPORT COSTS,REVENUE
Walsall Council,http://opendatacommunities.org/id/metropolitan-district-council/walsall ,WC148-392,31.03.2023,CHILDRENS,ACE CARS & MINIBUSES LTD,28/03/2023,"1,710.00",6241-Hire of Vehicle with Driver,TRANSPORT,DIRECT TRANSPORT COSTS,REVENUE
Walsall Council,http://opendatacommunities.org/id/metropolitan-district-council/walsall ,WC148-393,31.03.2023,CHILDRENS,ACE CARS & MINIBUSES LTD,28/03/2023,"2,886.00",6241-Hire of Vehicle with Driver,TRANSPORT,DIRECT TRANSPORT COSTS,REVENUE
Walsall Council,http://opendatacommunities.org/id/metropolitan-district-council/walsall ,WC148-394,31.03.2023,CHILDRENS,ACE CARS & MINIBUSES LTD,28/03/2023,"1,710.00",6241-Hire of Vehicle with Driver,TRANSPORT,DIRECT TRANSPORT COSTS,REVENUE
Walsall Council,http://opendatacommunities.org/id/metropolitan-district-council/walsall ,WC148-395,31.03.2023,CHILDRENS,ACE CARS & MINIBUSES LTD,28/03/2023,"2,336.40",6241-Hire of Vehicle with Driver,TRANSPORT,DIRECT TRANSPORT COSTS,REVENUE
Walsall Council,http://opendatacommunities.org/id/metropolitan-district-council/walsall ,WC148-396,31.03.2023,CHILDRENS,ACE COACHING LIMITED,22/03/2023,"1,971.20",6211-Professional Fees & Services,SUPPLIES & SERVICES,SERVICES,REVENUE
Walsall Council,http://opendatacommunities.org/id/metropolitan-district-council/walsall ,WC148-397,31.03.2023,ADULT SOCIAL CARE,ACEPAY LTD (COTTAGE NUR HOME),14/03/2023,"2,456.24",6541-Nursing,THIRD PARTY PAYMENTS,PRIVATE CONTRACTOR,REVENUE
Walsall Council,http://opendatacommunities.org/id/metropolitan-district-council/walsall ,WC148-398,31.03.2023,ADULT SOCIAL CARE,ACEPAY LTD (COTTAGE NUR HOME),14/03/2023,"2,456.24",6541-Nursing,THIRD PARTY PAYMENTS,PRIVATE CONTRACTOR,REVENUE
Walsall Council,http://opendatacommunities.org/id/metropolitan-district-council/walsall ,WC148-399,31.03.2023,ADULT SOCIAL CARE,ACEPAY LTD (COTTAGE NUR HOME),14/03/2023,"2,456.24",6541-Nursing,THIRD PARTY PAYMENTS,PRIVATE CONTRACTOR,REVENUE
Walsall Council,http://opendatacommunities.org/id/metropolitan-district-council/walsall ,WC148-400,31.03.2023,ADULT SOCIAL CARE,ACEPAY LTD (COTTAGE NUR HOME),14/03/2023,"2,456.24",6541-Nursing,THIRD PARTY PAYMENTS,PRIVATE CONTRACTOR,REVENUE
Walsall Council,http://opendatacommunities.org/id/metropolitan-district-council/walsall ,WC148-401,31.03.2023,ADULT SOCIAL CARE,ACEPAY LTD (COTTAGE NUR HOME),14/03/2023,474.32,6541-Nursing,THIRD PARTY PAYMENTS,PRIVATE CONTRACTOR,REVENUE
Walsall Council,http://opendatacommunities.org/id/metropolitan-district-council/walsall ,WC148-402,31.03.2023,ADULT SOCIAL CARE,ACEPAY LTD (COTTAGE NUR HOME),14/03/2023,"2,366.04",6541-Residential EMI,THIRD PARTY PAYMENTS,PRIVATE CONTRACTOR,REVENUE
Walsall Council,http://opendatacommunities.org/id/metropolitan-district-council/walsall ,WC148-403,31.03.2023,ADULT SOCIAL CARE,ACEPAY LTD (COTTAGE NUR HOME),14/03/2023,"2,763.80",6541-Nursing EMI,THIRD PARTY PAYMENTS,PRIVATE CONTRACTOR,REVENUE
Walsall Council,http://opendatacommunities.org/id/metropolitan-district-council/walsall ,WC148-404,31.03.2023,ADULT SOCIAL CARE,ACEPAY LTD (COTTAGE NUR HOME),14/03/2023,"2,366.04",6541-Residential EMI,THIRD PARTY PAYMENTS,PRIVATE CONTRACTOR,REVENUE
Walsall Council,http://opendatacommunities.org/id/metropolitan-district-council/walsall ,WC148-405,31.03.2023,ADULT SOCIAL CARE,ACEPAY LTD (COTTAGE NUR HOME),14/03/2023,"2,456.24",6541-Nursing,THIRD PARTY PAYMENTS,PRIVATE CONTRACTOR,REVENUE
Walsall Council,http://opendatacommunities.org/id/metropolitan-district-council/walsall ,WC148-406,31.03.2023,ADULT SOCIAL CARE,ACEPAY LTD (COTTAGE NUR HOME),14/03/2023,"2,456.24",6541-Nursing,THIRD PARTY PAYMENTS,PRIVATE CONTRACTOR,REVENUE
Walsall Council,http://opendatacommunities.org/id/metropolitan-district-council/walsall ,WC148-407,31.03.2023,ADULT SOCIAL CARE,ACEPAY LTD (COTTAGE NUR HOME),14/03/2023,"2,456.24",6541-Nursing,THIRD PARTY PAYMENTS,PRIVATE CONTRACTOR,REVENUE
Walsall Council,http://opendatacommunities.org/id/metropolitan-district-council/walsall ,WC148-408,31.03.2023,ADULT SOCIAL CARE,ACEPAY LTD (COTTAGE NUR HOME),14/03/2023,"2,456.24",6541-Nursing,THIRD PARTY PAYMENTS,PRIVATE CONTRACTOR,REVENUE
Walsall Council,http://opendatacommunities.org/id/metropolitan-district-council/walsall ,WC148-409,31.03.2023,ADULT SOCIAL CARE,ACEPAY LTD (COTTAGE NUR HOME),14/03/2023,"2,456.24",6541-Nursing,THIRD PARTY PAYMENTS,PRIVATE CONTRACTOR,REVENUE
Walsall Council,http://opendatacommunities.org/id/metropolitan-district-council/walsall ,WC148-410,31.03.2023,ADULT SOCIAL CARE,ACEPAY LTD (COTTAGE NUR HOME),14/03/2023,"2,456.24",6541-Nursing,THIRD PARTY PAYMENTS,PRIVATE CONTRACTOR,REVENUE
Walsall Council,http://opendatacommunities.org/id/metropolitan-district-council/walsall ,WC148-411,31.03.2023,ADULT SOCIAL CARE,ACEPAY LTD (COTTAGE NUR HOME),14/03/2023,"2,456.24",6541-Nursing,THIRD PARTY PAYMENTS,PRIVATE CONTRACTOR,REVENUE
Walsall Council,http://opendatacommunities.org/id/metropolitan-district-council/walsall ,WC148-412,31.03.2023,ADULT SOCIAL CARE,ACEPAY LTD (COTTAGE NUR HOME),14/03/2023,"2,456.24",6541-Nursing,THIRD PARTY PAYMENTS,PRIVATE CONTRACTOR,REVENUE
Walsall Council,http://opendatacommunities.org/id/metropolitan-district-council/walsall ,WC148-413,31.03.2023,ADULT SOCIAL CARE,ACEPAY LTD (COTTAGE NUR HOME),14/03/2023,"2,763.80",6541-Nursing EMI,THIRD PARTY PAYMENTS,PRIVATE CONTRACTOR,REVENUE
Walsall Council,http://opendatacommunities.org/id/metropolitan-district-council/walsall ,WC148-414,31.03.2023,ADULT SOCIAL CARE,ACEPAY LTD (COTTAGE NUR HOME),14/03/2023,"2,366.04",6541-Residential EMI,THIRD PARTY PAYMENTS,PRIVATE CONTRACTOR,REVENUE
Walsall Council,http://opendatacommunities.org/id/metropolitan-district-council/walsall ,WC148-415,31.03.2023,ADULT SOCIAL CARE,ACEPAY LTD (COTTAGE NUR HOME),14/03/2023,"2,366.04",6541-Residential EMI,THIRD PARTY PAYMENTS,PRIVATE CONTRACTOR,REVENUE
Walsall Council,http://opendatacommunities.org/id/metropolitan-district-council/walsall ,WC148-416,31.03.2023,ADULT SOCIAL CARE,ACEPAY LTD (COTTAGE NUR HOME),14/03/2023,"2,763.80",6541-Nursing EMI,THIRD PARTY PAYMENTS,PRIVATE CONTRACTOR,REVENUE
Walsall Council,http://opendatacommunities.org/id/metropolitan-district-council/walsall ,WC148-417,31.03.2023,ADULT SOCIAL CARE,ACHIEVE TOGETHER LIMITED,14/03/2023,"5,506.08",6541-Residential,THIRD PARTY PAYMENTS,PRIVATE CONTRACTOR,REVENUE
Walsall Council,http://opendatacommunities.org/id/metropolitan-district-council/walsall ,WC148-418,31.03.2023,ADULT SOCIAL CARE,ACHIEVE TOGETHER LIMITED,14/03/2023,"5,740.84",6541-Residential,THIRD PARTY PAYMENTS,PRIVATE CONTRACTOR,REVENUE
Walsall Council,http://opendatacommunities.org/id/metropolitan-district-council/walsall ,WC148-419,31.03.2023,ADULT SOCIAL CARE,ACHIEVE TOGETHER LIMITED,14/03/2023,"3,852.80",6541-Residential,THIRD PARTY PAYMENTS,PRIVATE CONTRACTOR,REVENUE
Walsall Council,http://opendatacommunities.org/id/metropolitan-district-council/walsall ,WC148-420,31.03.2023,ADULT SOCIAL CARE,ACHIEVE TOGETHER LIMITED,14/03/2023,"6,572.72",6541-Residential,THIRD PARTY PAYMENTS,PRIVATE CONTRACTOR,REVENUE
Walsall Council,http://opendatacommunities.org/id/metropolitan-district-council/walsall ,WC148-421,31.03.2023,ADULT SOCIAL CARE,ACHIEVE TOGETHER LIMITED,14/03/2023,"4,920.72",6541-Residential,THIRD PARTY PAYMENTS,PRIVATE CONTRACTOR,REVENUE
Walsall Council,http://opendatacommunities.org/id/metropolitan-district-council/walsall ,WC148-422,31.03.2023,CHILDRENS,ACORN CARE & EDUCATION LTD (SALES),15/03/2023,"19,490.96",1220-Top Up Funding -Grants to Schools,SUPPLIES & SERVICES,GRANTS (EXP) & SUBSCRIPTIONS,REVENUE
Walsall Council,http://opendatacommunities.org/id/metropolitan-district-council/walsall ,WC148-423,31.03.2023,CHILDRENS,ACORN CARE & EDUCATION LTD (SALES),14/03/2023,"6,389.17",1220-Professional Fees & Services,SUPPLIES & SERVICES,SERVICES,REVENUE
Walsall Council,http://opendatacommunities.org/id/metropolitan-district-council/walsall ,WC148-424,31.03.2023,CHILDRENS,ACORN CARE & EDUCATION LTD (SALES),14/03/2023,"17,302.00",1220-Top Up Funding -Grants to Schools,SUPPLIES & SERVICES,GRANTS (EXP) & SUBSCRIPTIONS,REVENUE
Walsall Council,http://opendatacommunities.org/id/metropolitan-district-council/walsall ,WC148-425,31.03.2023,CHILDRENS,ACORN CARE & EDUCATION LTD (SALES),14/03/2023,"19,883.33",1220-Top Up Funding -Grants to Schools,SUPPLIES & SERVICES,GRANTS (EXP) & SUBSCRIPTIONS,REVENUE
Walsall Council,http://opendatacommunities.org/id/metropolitan-district-council/walsall ,WC148-426,31.03.2023,CHILDRENS,ACORN CARE & EDUCATION LTD (SALES),14/03/2023,"25,960.00",1220-Top Up Funding -Grants to Schools,SUPPLIES & SERVICES,GRANTS (EXP) & SUBSCRIPTIONS,REVENUE
Walsall Council,http://opendatacommunities.org/id/metropolitan-district-council/walsall ,WC148-427,31.03.2023,CHILDRENS,ACORN CARE & EDUCATION LTD (SALES),14/03/2023,"15,554.33",1220-Top Up Funding -Grants to Schools,SUPPLIES & SERVICES,GRANTS (EXP) & SUBSCRIPTIONS,REVENUE
Walsall Council,http://opendatacommunities.org/id/metropolitan-district-council/walsall ,WC148-428,31.03.2023,CHILDRENS,ACORN CARE & EDUCATION LTD (SALES),14/03/2023,"17,302.00",1220-Professional Fees & Services,SUPPLIES & SERVICES,SERVICES,REVENUE
Walsall Council,http://opendatacommunities.org/id/metropolitan-district-council/walsall ,WC148-429,31.03.2023,CHILDRENS,ACORN CARE & EDUCATION LTD (SALES),14/03/2023,"24,705.00",1220-Top Up Funding -Grants to Schools,SUPPLIES & SERVICES,GRANTS (EXP) & SUBSCRIPTIONS,REVENUE
Walsall Council,http://opendatacommunities.org/id/metropolitan-district-council/walsall ,WC148-430,31.03.2023,CHILDRENS,ACORN CARE & EDUCATION LTD (SALES),31/03/2023,"22,256.67",1220-Professional Fees & Services,SUPPLIES & SERVICES,SERVICES,REVENUE
Walsall Council,http://opendatacommunities.org/id/metropolitan-district-council/walsall ,WC148-431,31.03.2023,CHILDRENS,ACORN CARE & EDUCATION LTD (SALES),14/03/2023,"19,761.67",1220-Professional Fees & Services,SUPPLIES & SERVICES,SERVICES,REVENUE
Walsall Council,http://opendatacommunities.org/id/metropolitan-district-council/walsall ,WC148-432,31.03.2023,CHILDRENS,ACORN CARE & EDUCATION LTD (SALES),14/03/2023,"19,761.67",1220-Top Up Funding -Grants to Schools,SUPPLIES & SERVICES,GRANTS (EXP) & SUBSCRIPTIONS,REVENUE
Walsall Council,http://opendatacommunities.org/id/metropolitan-district-council/walsall ,WC148-433,31.03.2023,CHILDRENS,ACORN CARE & EDUCATION LTD (SALES),14/03/2023,"14,053.33",1220-Professional Fees & Services,SUPPLIES & SERVICES,SERVICES,REVENUE
Walsall Council,http://opendatacommunities.org/id/metropolitan-district-council/walsall ,WC148-434,31.03.2023,CHILDRENS,ACORN CARE & EDUCATION LTD (SALES),14/03/2023,"17,803.33",1220-Professional Fees & Services,SUPPLIES & SERVICES,SERVICES,REVENUE
Walsall Council,http://opendatacommunities.org/id/metropolitan-district-council/walsall ,WC148-435,31.03.2023,CHILDRENS,ACORN CARE & EDUCATION LTD (SALES),14/03/2023,"17,302.00",1220-Professional Fees & Services,SUPPLIES & SERVICES,SERVICES,REVENUE
Walsall Council,http://opendatacommunities.org/id/metropolitan-district-council/walsall ,WC148-436,31.03.2023,CHILDRENS,ACORN CARE & EDUCATION LTD (SALES),20/03/2023,"20,460.00",1220-Professional Fees & Services,SUPPLIES & SERVICES,SERVICES,REVENUE
Walsall Council,http://opendatacommunities.org/id/metropolitan-district-council/walsall ,WC148-437,31.03.2023,CHILDRENS,ACORN CARE & EDUCATION LTD (SALES),14/03/2023,"16,166.67",1220-Professional Fees & Services,SUPPLIES & SERVICES,SERVICES,REVENUE
Walsall Council,http://opendatacommunities.org/id/metropolitan-district-council/walsall ,WC148-438,31.03.2023,CHILDRENS,ACORN CARE & EDUCATION LTD (SALES),24/03/2023,"6,333.33",1220-Professional Fees & Services,SUPPLIES & SERVICES,SERVICES,REVENUE
Walsall Council,http://opendatacommunities.org/id/metropolitan-district-council/walsall ,WC148-439,31.03.2023,CHILDRENS,ACORN CARE & EDUCATION LTD (SALES),14/03/2023,"26,713.33",1220-Top Up Funding -Grants to Schools,SUPPLIES & SERVICES,GRANTS (EXP) & SUBSCRIPTIONS,REVENUE
Walsall Council,http://opendatacommunities.org/id/metropolitan-district-council/walsall ,WC148-440,31.03.2023,CHILDRENS,ACORN CARE & EDUCATION LTD (SALES),14/03/2023,"24,975.74",1220-Top Up Funding -Grants to Schools,SUPPLIES & SERVICES,GRANTS (EXP) & SUBSCRIPTIONS,REVENUE
Walsall Council,http://opendatacommunities.org/id/metropolitan-district-council/walsall ,WC148-441,31.03.2023,CHILDRENS,ACORN CARE & EDUCATION LTD (SALES),20/03/2023,"19,978.23",1220-Top Up Funding -Grants to Schools,SUPPLIES & SERVICES,GRANTS (EXP) & SUBSCRIPTIONS,REVENUE
Walsall Council,http://opendatacommunities.org/id/metropolitan-district-council/walsall ,WC148-442,31.03.2023,CHILDRENS,ACORN CARE & EDUCATION LTD (SALES),20/03/2023,"29,976.62",1220-Top Up Funding -Grants to Schools,SUPPLIES & SERVICES,GRANTS (EXP) & SUBSCRIPTIONS,REVENUE
Walsall Council,http://opendatacommunities.org/id/metropolitan-district-council/walsall ,WC148-443,31.03.2023,CHILDRENS,ACORN CARE & EDUCATION LTD (SALES),20/03/2023,"17,998.44",1220-Top Up Funding -Grants to Schools,SUPPLIES & SERVICES,GRANTS (EXP) & SUBSCRIPTIONS,REVENUE
Walsall Council,http://opendatacommunities.org/id/metropolitan-district-council/walsall ,WC148-444,31.03.2023,CHILDRENS,ACORN CARE & EDUCATION LTD (SALES),20/03/2023,"19,978.23",1220-Top Up Funding -Grants to Schools,SUPPLIES & SERVICES,GRANTS (EXP) & SUBSCRIPTIONS,REVENUE
Walsall Council,http://opendatacommunities.org/id/metropolitan-district-council/walsall ,WC148-445,31.03.2023,CHILDRENS,ACORN CARE & EDUCATION LTD (SALES),31/03/2023,"19,978.23",1220-Top Up Funding -Grants to Schools,SUPPLIES & SERVICES,GRANTS (EXP) & SUBSCRIPTIONS,REVENUE
Walsall Council,http://opendatacommunities.org/id/metropolitan-district-council/walsall ,WC148-446,31.03.2023,CHILDRENS,ACORN CARE & EDUCATION LTD (SALES),24/03/2023,"-91,866.00",1220-Top Up Funding -Grants to Schools,SUPPLIES & SERVICES,GRANTS (EXP) & SUBSCRIPTIONS,REVENUE
Walsall Council,http://opendatacommunities.org/id/metropolitan-district-council/walsall ,WC148-447,31.03.2023,CHILDRENS,ACORN CARE & EDUCATION LTD (SALES),24/03/2023,"22,500.58",1220-Top Up Funding -Grants to Schools,SUPPLIES & SERVICES,GRANTS (EXP) & SUBSCRIPTIONS,REVENUE
Walsall Council,http://opendatacommunities.org/id/metropolitan-district-council/walsall ,WC148-448,31.03.2023,CHILDRENS,ACORN CARE & EDUCATION LTD (SALES),24/03/2023,"91,866.00",1220-Top Up Funding -Grants to Schools,SUPPLIES & SERVICES,GRANTS (EXP) & SUBSCRIPTIONS,REVENUE
Walsall Council,http://opendatacommunities.org/id/metropolitan-district-council/walsall ,WC148-449,31.03.2023,CHILDRENS,ACORN CARE & EDUCATION LTD (SALES),21/03/2023,"18,534.25",1220-Professional Fees & Services,SUPPLIES & SERVICES,SERVICES,REVENUE
Walsall Council,http://opendatacommunities.org/id/metropolitan-district-council/walsall ,WC148-450,31.03.2023,CHILDRENS,ACORN CARE & EDUCATION LTD (SALES),23/03/2023,"27,006.08",1220-Top Up Funding -Grants to Schools,SUPPLIES & SERVICES,GRANTS (EXP) & SUBSCRIPTIONS,REVENUE
Walsall Council,http://opendatacommunities.org/id/metropolitan-district-council/walsall ,WC148-451,31.03.2023,CHILDRENS,ACORN CARE & EDUCATION LTD (SALES),21/03/2023,"17,998.44",1220-Top Up Funding -Grants to Schools,SUPPLIES & SERVICES,GRANTS (EXP) & SUBSCRIPTIONS,REVENUE
Walsall Council,http://opendatacommunities.org/id/metropolitan-district-council/walsall ,WC148-452,31.03.2023,CHILDRENS,ACORN CARE & EDUCATION LTD (SALES),21/03/2023,"17,998.44",1220-Top Up Funding -Grants to Schools,SUPPLIES & SERVICES,GRANTS (EXP) & SUBSCRIPTIONS,REVENUE
Walsall Council,http://opendatacommunities.org/id/metropolitan-district-council/walsall ,WC148-453,31.03.2023,CHILDRENS,ACORN CARE & EDUCATION LTD (SALES),31/03/2023,"25,960.01",1220-Professional Fees & Services,SUPPLIES & SERVICES,SERVICES,REVENUE
Walsall Council,http://opendatacommunities.org/id/metropolitan-district-council/walsall ,WC148-454,31.03.2023,CHILDRENS,ACORN CARE & EDUCATION LTD (SALES),28/03/2023,"25,960.02",1220-Top Up Funding -Grants to Schools,SUPPLIES & SERVICES,GRANTS (EXP) & SUBSCRIPTIONS,REVENUE
Walsall Council,http://opendatacommunities.org/id/metropolitan-district-council/walsall ,WC148-455,31.03.2023,CHILDRENS,ACORN CARE & EDUCATION LTD (SALES),28/03/2023,"25,960.01",1220-Top Up Funding -Grants to Schools,SUPPLIES & SERVICES,GRANTS (EXP) & SUBSCRIPTIONS,REVENUE
Walsall Council,http://opendatacommunities.org/id/metropolitan-district-council/walsall ,WC148-456,31.03.2023,CHILDRENS,ACORN CARE & EDUCATION LTD (SALES),15/03/2023,"-17,541.86",1220-Top Up Funding -Grants to Schools,SUPPLIES & SERVICES,GRANTS (EXP) & SUBSCRIPTIONS,REVENUE
Walsall Council,http://opendatacommunities.org/id/metropolitan-district-council/walsall ,WC148-457,31.03.2023,CHILDRENS,ACORN FOSTERING SERVICES LTD,21/03/2023,"3,340.00",6223-Independent Foster Care-Oth Agency Provision,THIRD PARTY PAYMENTS,PRIVATE CONTRACTOR,REVENUE
Walsall Council,http://opendatacommunities.org/id/metropolitan-district-council/walsall ,WC148-458,31.03.2023,CHILDRENS,ACTIVE CARE SOLUTIONS LTD,21/03/2023,"3,445.08",6223-Independent Foster Care-Oth Agency Provision,THIRD PARTY PAYMENTS,PRIVATE CONTRACTOR,REVENUE
Walsall Council,http://opendatacommunities.org/id/metropolitan-district-council/walsall ,WC148-459,31.03.2023,CHILDRENS,ACTIVE CARE SOLUTIONS LTD,21/03/2023,"3,284.16",6223-Independent Foster Care-Oth Agency Provision,THIRD PARTY PAYMENTS,PRIVATE CONTRACTOR,REVENUE
Walsall Council,http://opendatacommunities.org/id/metropolitan-district-council/walsall ,WC148-460,31.03.2023,CHILDRENS,ACTIVE CARE SOLUTIONS LTD,21/03/2023,"3,410.24",6223-Independent Foster Care-Oth Agency Provision,THIRD PARTY PAYMENTS,PRIVATE CONTRACTOR,REVENUE
Walsall Council,http://opendatacommunities.org/id/metropolitan-district-council/walsall ,WC148-461,31.03.2023,CHILDRENS,ACTIVE CARE SOLUTIONS LTD,21/03/2023,"3,284.16",6223-Independent Foster Care-Oth Agency Provision,THIRD PARTY PAYMENTS,PRIVATE CONTRACTOR,REVENUE
Walsall Council,http://opendatacommunities.org/id/metropolitan-district-council/walsall ,WC148-462,31.03.2023,CHILDRENS,ACTIVITY GYM LTD,22/03/2023,"1,993.76",6211-Professional Fees & Services,SUPPLIES & SERVICES,SERVICES,REVENUE
Walsall Council,http://opendatacommunities.org/id/metropolitan-district-council/walsall ,WC148-463,31.03.2023,"ECONOMY, ENVIRONMENT & COMMUNITIES",ACTSO LTD,28/03/2023,262.00,6440-Subscriptions,SUPPLIES & SERVICES,GRANTS (EXP) & SUBSCRIPTIONS,REVENUE
Walsall Council,http://opendatacommunities.org/id/metropolitan-district-council/walsall ,WC148-464,31.03.2023,ADULT SOCIAL CARE,REDACTED,08/03/2023,916.60,6541-Direct Payment,THIRD PARTY PAYMENTS,PRIVATE CONTRACTOR,REVENUE
Walsall Council,http://opendatacommunities.org/id/metropolitan-district-council/walsall ,WC148-465,31.03.2023,CHILDRENS,ADCS (ASSOCIATION OF DIRECTORS OF CHILDRENS SERVICES),22/03/2023,"2,795.00",6213-Contribution to PCT,THIRD PARTY PAYMENTS,HEALTH AUTHORITIES,REVENUE
Walsall Council,http://opendatacommunities.org/id/metropolitan-district-council/walsall ,WC148-466,31.03.2023,CHILDRENS,REDACTED,08/03/2023,337.12,6223-Residents Orders,TRANSFER PAYMENTS,CHILDREN SOCIAL SERVICES CLIENT,REVENUE
Walsall Council,http://opendatacommunities.org/id/metropolitan-district-council/walsall ,WC148-467,31.03.2023,ADULT SOCIAL CARE,REDACTED,08/03/2023,"-2,604.00",6541-Direct Payment,THIRD PARTY PAYMENTS,PRIVATE CONTRACTOR,REVENUE
Walsall Council,http://opendatacommunities.org/id/metropolitan-district-council/walsall ,WC148-468,31.03.2023,ADULT SOCIAL CARE,REDACTED,08/03/2023,"2,604.00",6541-Direct Payment,THIRD PARTY PAYMENTS,PRIVATE CONTRACTOR,REVENUE
Walsall Council,http://opendatacommunities.org/id/metropolitan-district-council/walsall ,WC148-469,31.03.2023,ADULT SOCIAL CARE,ADVANCE HEALTH CARE (UK) LTD,08/03/2023,525.33,6541-Domiciliary Care,THIRD PARTY PAYMENTS,PRIVATE CONTRACTOR,REVENUE
Walsall Council,http://opendatacommunities.org/id/metropolitan-district-council/walsall ,WC148-470,31.03.2023,ADULT SOCIAL CARE,ADVANCE HEALTH CARE (UK) LTD,08/03/2023,"2,316.64",6541-Domiciliary Care,THIRD PARTY PAYMENTS,PRIVATE CONTRACTOR,REVENUE
Walsall Council,http://opendatacommunities.org/id/metropolitan-district-council/walsall ,WC148-471,31.03.2023,ADULT SOCIAL CARE,ADVANCE HEALTH CARE (UK) LTD,08/03/2023,754.32,6541-Domiciliary Care,THIRD PARTY PAYMENTS,PRIVATE CONTRACTOR,REVENUE
Walsall Council,http://opendatacommunities.org/id/metropolitan-district-council/walsall ,WC148-472,31.03.2023,ADULT SOCIAL CARE,ADVANCE HEALTH CARE (UK) LTD,08/03/2023,"1,066.56",6541-Domiciliary Care,THIRD PARTY PAYMENTS,PRIVATE CONTRACTOR,REVENUE
Walsall Council,http://opendatacommunities.org/id/metropolitan-district-council/walsall ,WC148-473,31.03.2023,ADULT SOCIAL CARE,ADVANCE HEALTH CARE (UK) LTD,08/03/2023,942.76,6541-Domiciliary Care,THIRD PARTY PAYMENTS,PRIVATE CONTRACTOR,REVENUE
Walsall Council,http://opendatacommunities.org/id/metropolitan-district-council/walsall ,WC148-474,31.03.2023,ADULT SOCIAL CARE,ADVANCE HEALTH CARE (UK) LTD,08/03/2023,"1,050.40",6541-Domiciliary Care,THIRD PARTY PAYMENTS,PRIVATE CONTRACTOR,REVENUE
Walsall Council,http://opendatacommunities.org/id/metropolitan-district-council/walsall ,WC148-475,31.03.2023,ADULT SOCIAL CARE,ADVANCE HEALTH CARE (UK) LTD,08/03/2023,"1,018.08",6541-Domiciliary Care,THIRD PARTY PAYMENTS,PRIVATE CONTRACTOR,REVENUE
Walsall Council,http://opendatacommunities.org/id/metropolitan-district-council/walsall ,WC148-476,31.03.2023,ADULT SOCIAL CARE,ADVANCE HEALTH CARE (UK) LTD,08/03/2023,"1,018.08",6541-Domiciliary Care,THIRD PARTY PAYMENTS,PRIVATE CONTRACTOR,REVENUE
Walsall Council,http://opendatacommunities.org/id/metropolitan-district-council/walsall ,WC148-477,31.03.2023,ADULT SOCIAL CARE,ADVANCE HEALTH CARE (UK) LTD,08/03/2023,754.32,6541-Domiciliary Care,THIRD PARTY PAYMENTS,PRIVATE CONTRACTOR,REVENUE
Walsall Council,http://opendatacommunities.org/id/metropolitan-district-council/walsall ,WC148-478,31.03.2023,ADULT SOCIAL CARE,ADVANCE HEALTH CARE (UK) LTD,08/03/2023,"1,082.72",6541-Domiciliary Care,THIRD PARTY PAYMENTS,PRIVATE CONTRACTOR,REVENUE
Walsall Council,http://opendatacommunities.org/id/metropolitan-district-council/walsall ,WC148-479,31.03.2023,ADULT SOCIAL CARE,ADVANCE HEALTH CARE (UK) LTD,08/03/2023,490.28,6541-Domiciliary Care,THIRD PARTY PAYMENTS,PRIVATE CONTRACTOR,REVENUE
Walsall Council,http://opendatacommunities.org/id/metropolitan-district-council/walsall ,WC148-480,31.03.2023,ADULT SOCIAL CARE,ADVANCE HEALTH CARE (UK) LTD,08/03/2023,"1,734.60",6541-Domiciliary Care,THIRD PARTY PAYMENTS,PRIVATE CONTRACTOR,REVENUE
Walsall Council,http://opendatacommunities.org/id/metropolitan-district-council/walsall ,WC148-481,31.03.2023,ADULT SOCIAL CARE,ADVANCE HEALTH CARE (UK) LTD,08/03/2023,"1,282.40",6541-Domiciliary Care,THIRD PARTY PAYMENTS,PRIVATE CONTRACTOR,REVENUE
Walsall Council,http://opendatacommunities.org/id/metropolitan-district-council/walsall ,WC148-482,31.03.2023,ADULT SOCIAL CARE,ADVANCE HEALTH CARE (UK) LTD,08/03/2023,705.84,6541-Domiciliary Care,THIRD PARTY PAYMENTS,PRIVATE CONTRACTOR,REVENUE
Walsall Council,http://opendatacommunities.org/id/metropolitan-district-council/walsall ,WC148-483,31.03.2023,ADULT SOCIAL CARE,ADVANCE HEALTH CARE (UK) LTD,08/03/2023,"2,036.16",6554-Professional Services-Priv Contractor & Other Agencies,THIRD PARTY PAYMENTS,PRIVATE CONTRACTOR,REVENUE
Walsall Council,http://opendatacommunities.org/id/metropolitan-district-council/walsall ,WC148-484,31.03.2023,ADULT SOCIAL CARE,ADVANCE HEALTH CARE (UK) LTD,08/03/2023,"2,521.44",6554-Professional Services-Priv Contractor & Other Agencies,THIRD PARTY PAYMENTS,PRIVATE CONTRACTOR,REVENUE
Walsall Council,http://opendatacommunities.org/id/metropolitan-district-council/walsall ,WC148-485,31.03.2023,ADULT SOCIAL CARE,ADVANCE HEALTH CARE (UK) LTD,08/03/2023,727.20,6554-Professional Services-Priv Contractor & Other Agencies,THIRD PARTY PAYMENTS,PRIVATE CONTRACTOR,REVENUE
Walsall Council,http://opendatacommunities.org/id/metropolitan-district-council/walsall ,WC148-486,31.03.2023,ADULT SOCIAL CARE,ADVANCE HEALTH CARE (UK) LTD,08/03/2023,565.60,6554-Professional Services-Priv Contractor & Other Agencies,THIRD PARTY PAYMENTS,PRIVATE CONTRACTOR,REVENUE
Walsall Council,http://opendatacommunities.org/id/metropolitan-district-council/walsall ,WC148-487,31.03.2023,ADULT SOCIAL CARE,ADVANCE HEALTH CARE (UK) LTD,08/03/2023,"1,308.96",6554-Professional Services-Priv Contractor & Other Agencies,THIRD PARTY PAYMENTS,PRIVATE CONTRACTOR,REVENUE
Walsall Council,http://opendatacommunities.org/id/metropolitan-district-council/walsall ,WC148-488,31.03.2023,ADULT SOCIAL CARE,ADVANCE HEALTH CARE (UK) LTD,08/03/2023,654.48,6554-Professional Services-Priv Contractor & Other Agencies,THIRD PARTY PAYMENTS,PRIVATE CONTRACTOR,REVENUE
Walsall Council,http://opendatacommunities.org/id/metropolitan-district-council/walsall ,WC148-489,31.03.2023,ADULT SOCIAL CARE,ADVANCE HEALTH CARE (UK) LTD,08/03/2023,581.76,6554-Professional Services-Priv Contractor & Other Agencies,THIRD PARTY PAYMENTS,PRIVATE CONTRACTOR,REVENUE
Walsall Council,http://opendatacommunities.org/id/metropolitan-district-council/walsall ,WC148-490,31.03.2023,ADULT SOCIAL CARE,ADVANCE HEALTH CARE (UK) LTD,08/03/2023,253.24,6554-Professional Services-Priv Contractor & Other Agencies,THIRD PARTY PAYMENTS,PRIVATE CONTRACTOR,REVENUE
Walsall Council,http://opendatacommunities.org/id/metropolitan-district-council/walsall ,WC148-491,31.03.2023,ADULT SOCIAL CARE,ADVANCE HEALTH CARE (UK) LTD,08/03/2023,"1,082.72",6554-Professional Services-Priv Contractor & Other Agencies,THIRD PARTY PAYMENTS,PRIVATE CONTRACTOR,REVENUE
Walsall Council,http://opendatacommunities.org/id/metropolitan-district-council/walsall ,WC148-492,31.03.2023,ADULT SOCIAL CARE,ADVANCE HEALTH CARE (UK) LTD,08/03/2023,904.96,6554-Professional Services-Priv Contractor & Other Agencies,THIRD PARTY PAYMENTS,PRIVATE CONTRACTOR,REVENUE
Walsall Council,http://opendatacommunities.org/id/metropolitan-district-council/walsall ,WC148-493,31.03.2023,ADULT SOCIAL CARE,ADVANCE HEALTH CARE (UK) LTD,08/03/2023,"1,018.08",6554-Professional Services-Priv Contractor & Other Agencies,THIRD PARTY PAYMENTS,PRIVATE CONTRACTOR,REVENUE
Walsall Council,http://opendatacommunities.org/id/metropolitan-district-council/walsall ,WC148-494,31.03.2023,ADULT SOCIAL CARE,ADVANCE HEALTH CARE (UK) LTD,08/03/2023,282.80,6554-Professional Services-Priv Contractor & Other Agencies,THIRD PARTY PAYMENTS,PRIVATE CONTRACTOR,REVENUE
Walsall Council,http://opendatacommunities.org/id/metropolitan-district-council/walsall ,WC148-495,31.03.2023,ADULT SOCIAL CARE,ADVANCE HEALTH CARE (UK) LTD,14/03/2023,864.56,6541-Domiciliary Care,THIRD PARTY PAYMENTS,PRIVATE CONTRACTOR,REVENUE
Walsall Council,http://opendatacommunities.org/id/metropolitan-district-council/walsall ,WC148-496,31.03.2023,ADULT SOCIAL CARE,ADVANCE HEALTH CARE (UK) LTD,14/03/2023,396.06,6541-Domiciliary Care,THIRD PARTY PAYMENTS,PRIVATE CONTRACTOR,REVENUE
Walsall Council,http://opendatacommunities.org/id/metropolitan-district-council/walsall ,WC148-497,31.03.2023,ADULT SOCIAL CARE,ADVANCE HEALTH CARE (UK) LTD,14/03/2023,254.52,6541-Domiciliary Care,THIRD PARTY PAYMENTS,PRIVATE CONTRACTOR,REVENUE
Walsall Council,http://opendatacommunities.org/id/metropolitan-district-council/walsall ,WC148-498,31.03.2023,ADULT SOCIAL CARE,ADVANCE HEALTH CARE (UK) LTD,14/03/2023,395.92,6541-Domiciliary Care,THIRD PARTY PAYMENTS,PRIVATE CONTRACTOR,REVENUE
Walsall Council,http://opendatacommunities.org/id/metropolitan-district-council/walsall ,WC148-499,31.03.2023,ADULT SOCIAL CARE,ADVANCE HEALTH CARE (UK) LTD,14/03/2023,452.48,6541-Domiciliary Care,THIRD PARTY PAYMENTS,PRIVATE CONTRACTOR,REVENUE
Walsall Council,http://opendatacommunities.org/id/metropolitan-district-council/walsall ,WC148-500,31.03.2023,ADULT SOCIAL CARE,ADVANCE HEALTH CARE (UK) LTD,14/03/2023,339.36,6541-Domiciliary Care,THIRD PARTY PAYMENTS,PRIVATE CONTRACTOR,REVENUE
Walsall Council,http://opendatacommunities.org/id/metropolitan-district-council/walsall ,WC148-501,31.03.2023,ADULT SOCIAL CARE,ADVANCE HEALTH CARE (UK) LTD,14/03/2023,589.84,6541-Domiciliary Care,THIRD PARTY PAYMENTS,PRIVATE CONTRACTOR,REVENUE
Walsall Council,http://opendatacommunities.org/id/metropolitan-district-council/walsall ,WC148-502,31.03.2023,ADULT SOCIAL CARE,ADVANCE HEALTH CARE (UK) LTD,14/03/2023,254.52,6541-Domiciliary Care,THIRD PARTY PAYMENTS,PRIVATE CONTRACTOR,REVENUE
Walsall Council,http://opendatacommunities.org/id/metropolitan-district-council/walsall ,WC148-503,31.03.2023,ADULT SOCIAL CARE,ADVANCE HEALTH CARE (UK) LTD,14/03/2023,254.52,6541-Domiciliary Care,THIRD PARTY PAYMENTS,PRIVATE CONTRACTOR,REVENUE
Walsall Council,http://opendatacommunities.org/id/metropolitan-district-council/walsall ,WC148-504,31.03.2023,ADULT SOCIAL CARE,ADVANCE HEALTH CARE (UK) LTD,14/03/2023,509.04,6541-Domiciliary Care,THIRD PARTY PAYMENTS,PRIVATE CONTRACTOR,REVENUE
Walsall Council,http://opendatacommunities.org/id/metropolitan-district-council/walsall ,WC148-505,31.03.2023,ADULT SOCIAL CARE,ADVANCE HEALTH CARE (UK) LTD,14/03/2023,509.04,6541-Domiciliary Care,THIRD PARTY PAYMENTS,PRIVATE CONTRACTOR,REVENUE
Walsall Council,http://opendatacommunities.org/id/metropolitan-district-council/walsall ,WC148-506,31.03.2023,ADULT SOCIAL CARE,ADVANCE HEALTH CARE (UK) LTD,14/03/2023,377.16,6541-Domiciliary Care,THIRD PARTY PAYMENTS,PRIVATE CONTRACTOR,REVENUE
Walsall Council,http://opendatacommunities.org/id/metropolitan-district-council/walsall ,WC148-507,31.03.2023,ADULT SOCIAL CARE,ADVANCE HEALTH CARE (UK) LTD,14/03/2023,339.50,6541-Domiciliary Care,THIRD PARTY PAYMENTS,PRIVATE CONTRACTOR,REVENUE
Walsall Council,http://opendatacommunities.org/id/metropolitan-district-council/walsall ,WC148-508,31.03.2023,ADULT SOCIAL CARE,ADVANCE HEALTH CARE (UK) LTD,14/03/2023,339.50,6541-Domiciliary Care,THIRD PARTY PAYMENTS,PRIVATE CONTRACTOR,REVENUE
Walsall Council,http://opendatacommunities.org/id/metropolitan-district-council/walsall ,WC148-509,31.03.2023,ADULT SOCIAL CARE,ADVANCE HEALTH CARE (UK) LTD,14/03/2023,509.04,6541-Domiciliary Care,THIRD PARTY PAYMENTS,PRIVATE CONTRACTOR,REVENUE
Walsall Council,http://opendatacommunities.org/id/metropolitan-district-council/walsall ,WC148-510,31.03.2023,ADULT SOCIAL CARE,ADVANCE HEALTH CARE (UK) LTD,14/03/2023,509.04,6541-Domiciliary Care,THIRD PARTY PAYMENTS,PRIVATE CONTRACTOR,REVENUE
Walsall Council,http://opendatacommunities.org/id/metropolitan-district-council/walsall ,WC148-511,31.03.2023,ADULT SOCIAL CARE,ADVANCE HEALTH CARE (UK) LTD,14/03/2023,"1,979.60",6541-Domiciliary Care,THIRD PARTY PAYMENTS,PRIVATE CONTRACTOR,REVENUE
Walsall Council,http://opendatacommunities.org/id/metropolitan-district-council/walsall ,WC148-512,31.03.2023,ADULT SOCIAL CARE,ADVANCE HEALTH CARE (UK) LTD,14/03/2023,509.04,6541-Domiciliary Care,THIRD PARTY PAYMENTS,PRIVATE CONTRACTOR,REVENUE
Walsall Council,http://opendatacommunities.org/id/metropolitan-district-council/walsall ,WC148-513,31.03.2023,ADULT SOCIAL CARE,ADVANCE HEALTH CARE (UK) LTD,14/03/2023,509.04,6541-Domiciliary Care,THIRD PARTY PAYMENTS,PRIVATE CONTRACTOR,REVENUE
Walsall Council,http://opendatacommunities.org/id/metropolitan-district-council/walsall ,WC148-514,31.03.2023,ADULT SOCIAL CARE,ADVANCE HEALTH CARE (UK) LTD,14/03/2023,452.48,6541-Domiciliary Care,THIRD PARTY PAYMENTS,PRIVATE CONTRACTOR,REVENUE
Walsall Council,http://opendatacommunities.org/id/metropolitan-district-council/walsall ,WC148-515,31.03.2023,ADULT SOCIAL CARE,ADVANCE HEALTH CARE (UK) LTD,14/03/2023,674.68,6541-Domiciliary Care,THIRD PARTY PAYMENTS,PRIVATE CONTRACTOR,REVENUE
Walsall Council,http://opendatacommunities.org/id/metropolitan-district-council/walsall ,WC148-516,31.03.2023,ADULT SOCIAL CARE,ADVANCE HEALTH CARE (UK) LTD,14/03/2023,500.96,6541-Domiciliary Care,THIRD PARTY PAYMENTS,PRIVATE CONTRACTOR,REVENUE
Walsall Council,http://opendatacommunities.org/id/metropolitan-district-council/walsall ,WC148-517,31.03.2023,ADULT SOCIAL CARE,ADVANCE HEALTH CARE (UK) LTD,14/03/2023,436.32,6541-Domiciliary Care,THIRD PARTY PAYMENTS,PRIVATE CONTRACTOR,REVENUE
Walsall Council,http://opendatacommunities.org/id/metropolitan-district-council/walsall ,WC148-518,31.03.2023,ADULT SOCIAL CARE,ADVANCE HEALTH CARE (UK) LTD,14/03/2023,565.60,6541-Domiciliary Care,THIRD PARTY PAYMENTS,PRIVATE CONTRACTOR,REVENUE
Walsall Council,http://opendatacommunities.org/id/metropolitan-district-council/walsall ,WC148-519,31.03.2023,ADULT SOCIAL CARE,ADVANCE HEALTH CARE (UK) LTD,14/03/2023,565.60,6541-Domiciliary Care,THIRD PARTY PAYMENTS,PRIVATE CONTRACTOR,REVENUE
Walsall Council,http://opendatacommunities.org/id/metropolitan-district-council/walsall ,WC148-520,31.03.2023,ADULT SOCIAL CARE,ADVANCE HEALTH CARE (UK) LTD,14/03/2023,452.48,6541-Domiciliary Care,THIRD PARTY PAYMENTS,PRIVATE CONTRACTOR,REVENUE
Walsall Council,http://opendatacommunities.org/id/metropolitan-district-council/walsall ,WC148-521,31.03.2023,ADULT SOCIAL CARE,ADVANCE HEALTH CARE (UK) LTD,14/03/2023,254.52,6541-Domiciliary Care,THIRD PARTY PAYMENTS,PRIVATE CONTRACTOR,REVENUE
Walsall Council,http://opendatacommunities.org/id/metropolitan-district-council/walsall ,WC148-522,31.03.2023,ADULT SOCIAL CARE,ADVANCE HEALTH CARE (UK) LTD,14/03/2023,"-1,838.20",6541-Domiciliary Care,THIRD PARTY PAYMENTS,PRIVATE CONTRACTOR,REVENUE
Walsall Council,http://opendatacommunities.org/id/metropolitan-district-council/walsall ,WC148-523,31.03.2023,ADULT SOCIAL CARE,ADVANCE HEALTH CARE (UK) LTD,14/03/2023,-500.96,6541-Domiciliary Care,THIRD PARTY PAYMENTS,PRIVATE CONTRACTOR,REVENUE
Walsall Council,http://opendatacommunities.org/id/metropolitan-district-council/walsall ,WC148-524,31.03.2023,ADULT SOCIAL CARE,ADVANCE HEALTH CARE (UK) LTD,14/03/2023,452.48,6541-Domiciliary Care,THIRD PARTY PAYMENTS,PRIVATE CONTRACTOR,REVENUE
Walsall Council,http://opendatacommunities.org/id/metropolitan-district-council/walsall ,WC148-525,31.03.2023,ADULT SOCIAL CARE,ADVANCE HEALTH CARE (UK) LTD,14/03/2023,509.04,6541-Domiciliary Care,THIRD PARTY PAYMENTS,PRIVATE CONTRACTOR,REVENUE
Walsall Council,http://opendatacommunities.org/id/metropolitan-district-council/walsall ,WC148-526,31.03.2023,ADULT SOCIAL CARE,ADVANCE HEALTH CARE (UK) LTD,14/03/2023,509.04,6541-Domiciliary Care,THIRD PARTY PAYMENTS,PRIVATE CONTRACTOR,REVENUE
Walsall Council,http://opendatacommunities.org/id/metropolitan-district-council/walsall ,WC148-527,31.03.2023,ADULT SOCIAL CARE,ADVANCE HEALTH CARE (UK) LTD,14/03/2023,565.60,6541-Domiciliary Care,THIRD PARTY PAYMENTS,PRIVATE CONTRACTOR,REVENUE
Walsall Council,http://opendatacommunities.org/id/metropolitan-district-council/walsall ,WC148-528,31.03.2023,ADULT SOCIAL CARE,ADVANCE HEALTH CARE (UK) LTD,14/03/2023,"-7,102.32",6541-Domiciliary Care,THIRD PARTY PAYMENTS,PRIVATE CONTRACTOR,REVENUE
Walsall Council,http://opendatacommunities.org/id/metropolitan-district-council/walsall ,WC148-529,31.03.2023,ADULT SOCIAL CARE,ADVANCE HEALTH CARE (UK) LTD,14/03/2023,"2,246.24",6541-Domiciliary Care,THIRD PARTY PAYMENTS,PRIVATE CONTRACTOR,REVENUE
Walsall Council,http://opendatacommunities.org/id/metropolitan-district-council/walsall ,WC148-530,31.03.2023,ADULT SOCIAL CARE,ADVANCE HEALTH CARE (UK) LTD,14/03/2023,452.48,6541-Domiciliary Care,THIRD PARTY PAYMENTS,PRIVATE CONTRACTOR,REVENUE
Walsall Council,http://opendatacommunities.org/id/metropolitan-district-council/walsall ,WC148-531,31.03.2023,ADULT SOCIAL CARE,ADVANCE HEALTH CARE (UK) LTD,14/03/2023,339.36,6541-Domiciliary Care,THIRD PARTY PAYMENTS,PRIVATE CONTRACTOR,REVENUE
Walsall Council,http://opendatacommunities.org/id/metropolitan-district-council/walsall ,WC148-532,31.03.2023,ADULT SOCIAL CARE,ADVANCE HEALTH CARE (UK) LTD,14/03/2023,"7,611.36",6541-Domiciliary Care,THIRD PARTY PAYMENTS,PRIVATE CONTRACTOR,REVENUE
Walsall Council,http://opendatacommunities.org/id/metropolitan-district-council/walsall ,WC148-533,31.03.2023,ADULT SOCIAL CARE,ADVANCE HEALTH CARE (UK) LTD,14/03/2023,864.56,6541-Domiciliary Care,THIRD PARTY PAYMENTS,PRIVATE CONTRACTOR,REVENUE
Walsall Council,http://opendatacommunities.org/id/metropolitan-district-council/walsall ,WC148-534,31.03.2023,ADULT SOCIAL CARE,ADVANCE HEALTH CARE (UK) LTD,14/03/2023,396.06,6541-Domiciliary Care,THIRD PARTY PAYMENTS,PRIVATE CONTRACTOR,REVENUE
Walsall Council,http://opendatacommunities.org/id/metropolitan-district-council/walsall ,WC148-535,31.03.2023,ADULT SOCIAL CARE,ADVANCE HEALTH CARE (UK) LTD,14/03/2023,254.52,6541-Domiciliary Care,THIRD PARTY PAYMENTS,PRIVATE CONTRACTOR,REVENUE
Walsall Council,http://opendatacommunities.org/id/metropolitan-district-council/walsall ,WC148-536,31.03.2023,ADULT SOCIAL CARE,ADVANCE HEALTH CARE (UK) LTD,14/03/2023,509.04,6541-Domiciliary Care,THIRD PARTY PAYMENTS,PRIVATE CONTRACTOR,REVENUE
Walsall Council,http://opendatacommunities.org/id/metropolitan-district-council/walsall ,WC148-537,31.03.2023,ADULT SOCIAL CARE,ADVANCE HEALTH CARE (UK) LTD,14/03/2023,509.04,6541-Domiciliary Care,THIRD PARTY PAYMENTS,PRIVATE CONTRACTOR,REVENUE
Walsall Council,http://opendatacommunities.org/id/metropolitan-district-council/walsall ,WC148-538,31.03.2023,ADULT SOCIAL CARE,ADVANCE HEALTH CARE (UK) LTD,14/03/2023,339.50,6541-Domiciliary Care,THIRD PARTY PAYMENTS,PRIVATE CONTRACTOR,REVENUE
Walsall Council,http://opendatacommunities.org/id/metropolitan-district-council/walsall ,WC148-539,31.03.2023,ADULT SOCIAL CARE,ADVANCE HEALTH CARE (UK) LTD,14/03/2023,395.92,6541-Domiciliary Care,THIRD PARTY PAYMENTS,PRIVATE CONTRACTOR,REVENUE
Walsall Council,http://opendatacommunities.org/id/metropolitan-district-council/walsall ,WC148-540,31.03.2023,ADULT SOCIAL CARE,ADVANCE HEALTH CARE (UK) LTD,14/03/2023,500.96,6541-Domiciliary Care,THIRD PARTY PAYMENTS,PRIVATE CONTRACTOR,REVENUE
Walsall Council,http://opendatacommunities.org/id/metropolitan-district-council/walsall ,WC148-541,31.03.2023,ADULT SOCIAL CARE,ADVANCE HEALTH CARE (UK) LTD,14/03/2023,509.04,6541-Domiciliary Care,THIRD PARTY PAYMENTS,PRIVATE CONTRACTOR,REVENUE
Walsall Council,http://opendatacommunities.org/id/metropolitan-district-council/walsall ,WC148-542,31.03.2023,ADULT SOCIAL CARE,ADVANCE HEALTH CARE (UK) LTD,14/03/2023,509.04,6541-Domiciliary Care,THIRD PARTY PAYMENTS,PRIVATE CONTRACTOR,REVENUE
Walsall Council,http://opendatacommunities.org/id/metropolitan-district-council/walsall ,WC148-543,31.03.2023,ADULT SOCIAL CARE,ADVANCE HEALTH CARE (UK) LTD,14/03/2023,565.60,6541-Domiciliary Care,THIRD PARTY PAYMENTS,PRIVATE CONTRACTOR,REVENUE
Walsall Council,http://opendatacommunities.org/id/metropolitan-district-council/walsall ,WC148-544,31.03.2023,ADULT SOCIAL CARE,ADVANCE HEALTH CARE (UK) LTD,14/03/2023,452.48,6541-Domiciliary Care,THIRD PARTY PAYMENTS,PRIVATE CONTRACTOR,REVENUE
Walsall Council,http://opendatacommunities.org/id/metropolitan-district-council/walsall ,WC148-545,31.03.2023,ADULT SOCIAL CARE,ADVANCE HEALTH CARE (UK) LTD,14/03/2023,339.36,6541-Domiciliary Care,THIRD PARTY PAYMENTS,PRIVATE CONTRACTOR,REVENUE
Walsall Council,http://opendatacommunities.org/id/metropolitan-district-council/walsall ,WC148-546,31.03.2023,ADULT SOCIAL CARE,ADVANCE HEALTH CARE (UK) LTD,14/03/2023,565.60,6541-Domiciliary Care,THIRD PARTY PAYMENTS,PRIVATE CONTRACTOR,REVENUE
Walsall Council,http://opendatacommunities.org/id/metropolitan-district-council/walsall ,WC148-547,31.03.2023,ADULT SOCIAL CARE,ADVANCE HEALTH CARE (UK) LTD,14/03/2023,565.60,6541-Domiciliary Care,THIRD PARTY PAYMENTS,PRIVATE CONTRACTOR,REVENUE
Walsall Council,http://opendatacommunities.org/id/metropolitan-district-council/walsall ,WC148-548,31.03.2023,ADULT SOCIAL CARE,ADVANCE HEALTH CARE (UK) LTD,14/03/2023,589.84,6541-Domiciliary Care,THIRD PARTY PAYMENTS,PRIVATE CONTRACTOR,REVENUE
Walsall Council,http://opendatacommunities.org/id/metropolitan-district-council/walsall ,WC148-549,31.03.2023,ADULT SOCIAL CARE,ADVANCE HEALTH CARE (UK) LTD,14/03/2023,254.52,6541-Domiciliary Care,THIRD PARTY PAYMENTS,PRIVATE CONTRACTOR,REVENUE
Walsall Council,http://opendatacommunities.org/id/metropolitan-district-council/walsall ,WC148-550,31.03.2023,ADULT SOCIAL CARE,ADVANCE HEALTH CARE (UK) LTD,14/03/2023,254.52,6541-Domiciliary Care,THIRD PARTY PAYMENTS,PRIVATE CONTRACTOR,REVENUE
Walsall Council,http://opendatacommunities.org/id/metropolitan-district-council/walsall ,WC148-551,31.03.2023,ADULT SOCIAL CARE,ADVANCE HEALTH CARE (UK) LTD,14/03/2023,509.04,6541-Domiciliary Care,THIRD PARTY PAYMENTS,PRIVATE CONTRACTOR,REVENUE
Walsall Council,http://opendatacommunities.org/id/metropolitan-district-council/walsall ,WC148-552,31.03.2023,ADULT SOCIAL CARE,ADVANCE HEALTH CARE (UK) LTD,14/03/2023,377.16,6541-Domiciliary Care,THIRD PARTY PAYMENTS,PRIVATE CONTRACTOR,REVENUE
Walsall Council,http://opendatacommunities.org/id/metropolitan-district-council/walsall ,WC148-553,31.03.2023,ADULT SOCIAL CARE,ADVANCE HEALTH CARE (UK) LTD,14/03/2023,509.04,6541-Domiciliary Care,THIRD PARTY PAYMENTS,PRIVATE CONTRACTOR,REVENUE
Walsall Council,http://opendatacommunities.org/id/metropolitan-district-council/walsall ,WC148-554,31.03.2023,ADULT SOCIAL CARE,ADVANCE HEALTH CARE (UK) LTD,14/03/2023,270.68,6541-Domiciliary Care,THIRD PARTY PAYMENTS,PRIVATE CONTRACTOR,REVENUE
Walsall Council,http://opendatacommunities.org/id/metropolitan-district-council/walsall ,WC148-555,31.03.2023,ADULT SOCIAL CARE,ADVANCE HEALTH CARE (UK) LTD,14/03/2023,509.04,6541-Domiciliary Care,THIRD PARTY PAYMENTS,PRIVATE CONTRACTOR,REVENUE
Walsall Council,http://opendatacommunities.org/id/metropolitan-district-council/walsall ,WC148-556,31.03.2023,ADULT SOCIAL CARE,ADVANCE HEALTH CARE (UK) LTD,14/03/2023,452.48,6541-Domiciliary Care,THIRD PARTY PAYMENTS,PRIVATE CONTRACTOR,REVENUE
Walsall Council,http://opendatacommunities.org/id/metropolitan-district-council/walsall ,WC148-557,31.03.2023,ADULT SOCIAL CARE,ADVANCE HEALTH CARE (UK) LTD,14/03/2023,254.52,6541-Domiciliary Care,THIRD PARTY PAYMENTS,PRIVATE CONTRACTOR,REVENUE
Walsall Council,http://opendatacommunities.org/id/metropolitan-district-council/walsall ,WC148-558,31.03.2023,ADULT SOCIAL CARE,ADVANCE HEALTH CARE (UK) LTD,14/03/2023,452.48,6541-Domiciliary Care,THIRD PARTY PAYMENTS,PRIVATE CONTRACTOR,REVENUE
Walsall Council,http://opendatacommunities.org/id/metropolitan-district-council/walsall ,WC148-559,31.03.2023,ADULT SOCIAL CARE,ADVANCE HEALTH CARE (UK) LTD,14/03/2023,452.48,6541-Domiciliary Care,THIRD PARTY PAYMENTS,PRIVATE CONTRACTOR,REVENUE
Walsall Council,http://opendatacommunities.org/id/metropolitan-district-council/walsall ,WC148-560,31.03.2023,ADULT SOCIAL CARE,ADVANCE HEALTH CARE (UK) LTD,14/03/2023,395.92,6541-Domiciliary Care,THIRD PARTY PAYMENTS,PRIVATE CONTRACTOR,REVENUE
Walsall Council,http://opendatacommunities.org/id/metropolitan-district-council/walsall ,WC148-561,31.03.2023,ADULT SOCIAL CARE,ADVANCE HEALTH CARE (UK) LTD,14/03/2023,509.04,6541-Domiciliary Care,THIRD PARTY PAYMENTS,PRIVATE CONTRACTOR,REVENUE
Walsall Council,http://opendatacommunities.org/id/metropolitan-district-council/walsall ,WC148-562,31.03.2023,ADULT SOCIAL CARE,ADVANCE HEALTH CARE (UK) LTD,14/03/2023,323.20,6541-Domiciliary Care,THIRD PARTY PAYMENTS,PRIVATE CONTRACTOR,REVENUE
Walsall Council,http://opendatacommunities.org/id/metropolitan-district-council/walsall ,WC148-563,31.03.2023,ADULT SOCIAL CARE,ADVANCE HEALTH CARE (UK) LTD,14/03/2023,339.50,6541-Domiciliary Care,THIRD PARTY PAYMENTS,PRIVATE CONTRACTOR,REVENUE
Walsall Council,http://opendatacommunities.org/id/metropolitan-district-council/walsall ,WC148-564,31.03.2023,ADULT SOCIAL CARE,ADVANCE HEALTH CARE (UK) LTD,14/03/2023,509.04,6541-Domiciliary Care,THIRD PARTY PAYMENTS,PRIVATE CONTRACTOR,REVENUE
Walsall Council,http://opendatacommunities.org/id/metropolitan-district-council/walsall ,WC148-565,31.03.2023,ADULT SOCIAL CARE,ADVANCE HEALTH CARE (UK) LTD,14/03/2023,452.48,6541-Domiciliary Care,THIRD PARTY PAYMENTS,PRIVATE CONTRACTOR,REVENUE
Walsall Council,http://opendatacommunities.org/id/metropolitan-district-council/walsall ,WC148-566,31.03.2023,ADULT SOCIAL CARE,ADVANCE HEALTH CARE (UK) LTD,27/03/2023,864.56,6541-Domiciliary Care,THIRD PARTY PAYMENTS,PRIVATE CONTRACTOR,REVENUE
Walsall Council,http://opendatacommunities.org/id/metropolitan-district-council/walsall ,WC148-567,31.03.2023,ADULT SOCIAL CARE,ADVANCE HEALTH CARE (UK) LTD,27/03/2023,396.06,6541-Domiciliary Care,THIRD PARTY PAYMENTS,PRIVATE CONTRACTOR,REVENUE
Walsall Council,http://opendatacommunities.org/id/metropolitan-district-council/walsall ,WC148-568,31.03.2023,ADULT SOCIAL CARE,ADVANCE HEALTH CARE (UK) LTD,27/03/2023,254.52,6541-Domiciliary Care,THIRD PARTY PAYMENTS,PRIVATE CONTRACTOR,REVENUE
Walsall Council,http://opendatacommunities.org/id/metropolitan-district-council/walsall ,WC148-569,31.03.2023,ADULT SOCIAL CARE,ADVANCE HEALTH CARE (UK) LTD,27/03/2023,509.04,6541-Domiciliary Care,THIRD PARTY PAYMENTS,PRIVATE CONTRACTOR,REVENUE
Walsall Council,http://opendatacommunities.org/id/metropolitan-district-council/walsall ,WC148-570,31.03.2023,ADULT SOCIAL CARE,ADVANCE HEALTH CARE (UK) LTD,27/03/2023,509.04,6541-Domiciliary Care,THIRD PARTY PAYMENTS,PRIVATE CONTRACTOR,REVENUE
Walsall Council,http://opendatacommunities.org/id/metropolitan-district-council/walsall ,WC148-571,31.03.2023,ADULT SOCIAL CARE,ADVANCE HEALTH CARE (UK) LTD,27/03/2023,589.84,6541-Domiciliary Care,THIRD PARTY PAYMENTS,PRIVATE CONTRACTOR,REVENUE
Walsall Council,http://opendatacommunities.org/id/metropolitan-district-council/walsall ,WC148-572,31.03.2023,ADULT SOCIAL CARE,ADVANCE HEALTH CARE (UK) LTD,27/03/2023,254.52,6541-Domiciliary Care,THIRD PARTY PAYMENTS,PRIVATE CONTRACTOR,REVENUE
Walsall Council,http://opendatacommunities.org/id/metropolitan-district-council/walsall ,WC148-573,31.03.2023,ADULT SOCIAL CARE,ADVANCE HEALTH CARE (UK) LTD,27/03/2023,254.52,6541-Domiciliary Care,THIRD PARTY PAYMENTS,PRIVATE CONTRACTOR,REVENUE
Walsall Council,http://opendatacommunities.org/id/metropolitan-district-council/walsall ,WC148-574,31.03.2023,ADULT SOCIAL CARE,ADVANCE HEALTH CARE (UK) LTD,27/03/2023,509.04,6541-Domiciliary Care,THIRD PARTY PAYMENTS,PRIVATE CONTRACTOR,REVENUE
Walsall Council,http://opendatacommunities.org/id/metropolitan-district-council/walsall ,WC148-575,31.03.2023,ADULT SOCIAL CARE,ADVANCE HEALTH CARE (UK) LTD,27/03/2023,395.92,6541-Domiciliary Care,THIRD PARTY PAYMENTS,PRIVATE CONTRACTOR,REVENUE
Walsall Council,http://opendatacommunities.org/id/metropolitan-district-council/walsall ,WC148-576,31.03.2023,ADULT SOCIAL CARE,ADVANCE HEALTH CARE (UK) LTD,27/03/2023,500.96,6541-Domiciliary Care,THIRD PARTY PAYMENTS,PRIVATE CONTRACTOR,REVENUE
Walsall Council,http://opendatacommunities.org/id/metropolitan-district-council/walsall ,WC148-577,31.03.2023,ADULT SOCIAL CARE,ADVANCE HEALTH CARE (UK) LTD,27/03/2023,377.16,6541-Domiciliary Care,THIRD PARTY PAYMENTS,PRIVATE CONTRACTOR,REVENUE
Walsall Council,http://opendatacommunities.org/id/metropolitan-district-council/walsall ,WC148-578,31.03.2023,ADULT SOCIAL CARE,ADVANCE HEALTH CARE (UK) LTD,27/03/2023,339.50,6541-Domiciliary Care,THIRD PARTY PAYMENTS,PRIVATE CONTRACTOR,REVENUE
Walsall Council,http://opendatacommunities.org/id/metropolitan-district-council/walsall ,WC148-579,31.03.2023,ADULT SOCIAL CARE,ADVANCE HEALTH CARE (UK) LTD,27/03/2023,509.04,6541-Domiciliary Care,THIRD PARTY PAYMENTS,PRIVATE CONTRACTOR,REVENUE
Walsall Council,http://opendatacommunities.org/id/metropolitan-district-council/walsall ,WC148-580,31.03.2023,ADULT SOCIAL CARE,ADVANCE HEALTH CARE (UK) LTD,27/03/2023,-258.56,6541-Domiciliary Care,THIRD PARTY PAYMENTS,PRIVATE CONTRACTOR,REVENUE
Walsall Council,http://opendatacommunities.org/id/metropolitan-district-council/walsall ,WC148-581,31.03.2023,ADULT SOCIAL CARE,ADVANCE HEALTH CARE (UK) LTD,27/03/2023,339.36,6541-Domiciliary Care,THIRD PARTY PAYMENTS,PRIVATE CONTRACTOR,REVENUE
Walsall Council,http://opendatacommunities.org/id/metropolitan-district-council/walsall ,WC148-582,31.03.2023,ADULT SOCIAL CARE,ADVANCE HEALTH CARE (UK) LTD,27/03/2023,-484.80,6541-Domiciliary Care,THIRD PARTY PAYMENTS,PRIVATE CONTRACTOR,REVENUE
Walsall Council,http://opendatacommunities.org/id/metropolitan-district-council/walsall ,WC148-583,31.03.2023,ADULT SOCIAL CARE,ADVANCE HEALTH CARE (UK) LTD,27/03/2023,565.60,6541-Domiciliary Care,THIRD PARTY PAYMENTS,PRIVATE CONTRACTOR,REVENUE
Walsall Council,http://opendatacommunities.org/id/metropolitan-district-council/walsall ,WC148-584,31.03.2023,ADULT SOCIAL CARE,ADVANCE HEALTH CARE (UK) LTD,27/03/2023,339.50,6541-Domiciliary Care,THIRD PARTY PAYMENTS,PRIVATE CONTRACTOR,REVENUE
Walsall Council,http://opendatacommunities.org/id/metropolitan-district-council/walsall ,WC148-585,31.03.2023,ADULT SOCIAL CARE,ADVANCE HEALTH CARE (UK) LTD,27/03/2023,509.04,6541-Domiciliary Care,THIRD PARTY PAYMENTS,PRIVATE CONTRACTOR,REVENUE
Walsall Council,http://opendatacommunities.org/id/metropolitan-district-council/walsall ,WC148-586,31.03.2023,ADULT SOCIAL CARE,ADVANCE HEALTH CARE (UK) LTD,27/03/2023,270.68,6541-Domiciliary Care,THIRD PARTY PAYMENTS,PRIVATE CONTRACTOR,REVENUE
Walsall Council,http://opendatacommunities.org/id/metropolitan-district-council/walsall ,WC148-587,31.03.2023,ADULT SOCIAL CARE,ADVANCE HEALTH CARE (UK) LTD,27/03/2023,436.32,6541-Domiciliary Care,THIRD PARTY PAYMENTS,PRIVATE CONTRACTOR,REVENUE
Walsall Council,http://opendatacommunities.org/id/metropolitan-district-council/walsall ,WC148-588,31.03.2023,ADULT SOCIAL CARE,ADVANCE HEALTH CARE (UK) LTD,27/03/2023,452.48,6541-Domiciliary Care,THIRD PARTY PAYMENTS,PRIVATE CONTRACTOR,REVENUE
Walsall Council,http://opendatacommunities.org/id/metropolitan-district-council/walsall ,WC148-589,31.03.2023,ADULT SOCIAL CARE,ADVANCE HEALTH CARE (UK) LTD,27/03/2023,254.52,6541-Domiciliary Care,THIRD PARTY PAYMENTS,PRIVATE CONTRACTOR,REVENUE
Walsall Council,http://opendatacommunities.org/id/metropolitan-district-council/walsall ,WC148-590,31.03.2023,ADULT SOCIAL CARE,ADVANCE HEALTH CARE (UK) LTD,27/03/2023,258.56,6541-Domiciliary Care,THIRD PARTY PAYMENTS,PRIVATE CONTRACTOR,REVENUE
Walsall Council,http://opendatacommunities.org/id/metropolitan-district-council/walsall ,WC148-591,31.03.2023,ADULT SOCIAL CARE,ADVANCE HEALTH CARE (UK) LTD,27/03/2023,509.04,6541-Domiciliary Care,THIRD PARTY PAYMENTS,PRIVATE CONTRACTOR,REVENUE
Walsall Council,http://opendatacommunities.org/id/metropolitan-district-council/walsall ,WC148-592,31.03.2023,ADULT SOCIAL CARE,ADVANCE HEALTH CARE (UK) LTD,27/03/2023,452.48,6541-Domiciliary Care,THIRD PARTY PAYMENTS,PRIVATE CONTRACTOR,REVENUE
Walsall Council,http://opendatacommunities.org/id/metropolitan-district-council/walsall ,WC148-593,31.03.2023,ADULT SOCIAL CARE,ADVANCE HEALTH CARE (UK) LTD,27/03/2023,509.04,6541-Domiciliary Care,THIRD PARTY PAYMENTS,PRIVATE CONTRACTOR,REVENUE
Walsall Council,http://opendatacommunities.org/id/metropolitan-district-council/walsall ,WC148-594,31.03.2023,ADULT SOCIAL CARE,ADVANCE HEALTH CARE (UK) LTD,27/03/2023,509.04,6541-Domiciliary Care,THIRD PARTY PAYMENTS,PRIVATE CONTRACTOR,REVENUE
Walsall Council,http://opendatacommunities.org/id/metropolitan-district-council/walsall ,WC148-595,31.03.2023,ADULT SOCIAL CARE,ADVANCE HEALTH CARE (UK) LTD,27/03/2023,565.60,6541-Domiciliary Care,THIRD PARTY PAYMENTS,PRIVATE CONTRACTOR,REVENUE
Walsall Council,http://opendatacommunities.org/id/metropolitan-district-council/walsall ,WC148-596,31.03.2023,ADULT SOCIAL CARE,ADVANCE HEALTH CARE (UK) LTD,27/03/2023,452.48,6541-Domiciliary Care,THIRD PARTY PAYMENTS,PRIVATE CONTRACTOR,REVENUE
Walsall Council,http://opendatacommunities.org/id/metropolitan-district-council/walsall ,WC148-597,31.03.2023,ADULT SOCIAL CARE,ADVANCE HEALTH CARE (UK) LTD,27/03/2023,452.48,6541-Domiciliary Care,THIRD PARTY PAYMENTS,PRIVATE CONTRACTOR,REVENUE
Walsall Council,http://opendatacommunities.org/id/metropolitan-district-council/walsall ,WC148-598,31.03.2023,ADULT SOCIAL CARE,ADVANCE HEALTH CARE (UK) LTD,27/03/2023,395.92,6541-Domiciliary Care,THIRD PARTY PAYMENTS,PRIVATE CONTRACTOR,REVENUE
Walsall Council,http://opendatacommunities.org/id/metropolitan-district-council/walsall ,WC148-599,31.03.2023,ADULT SOCIAL CARE,ADVANCE HEALTH CARE (UK) LTD,27/03/2023,371.68,6541-Domiciliary Care,THIRD PARTY PAYMENTS,PRIVATE CONTRACTOR,REVENUE
Walsall Council,http://opendatacommunities.org/id/metropolitan-district-council/walsall ,WC148-600,31.03.2023,ADULT SOCIAL CARE,ADVANCE HEALTH CARE (UK) LTD,27/03/2023,509.04,6541-Domiciliary Care,THIRD PARTY PAYMENTS,PRIVATE CONTRACTOR,REVENUE
Walsall Council,http://opendatacommunities.org/id/metropolitan-district-council/walsall ,WC148-601,31.03.2023,ADULT SOCIAL CARE,ADVANCE HEALTH CARE (UK) LTD,27/03/2023,864.56,6541-Domiciliary Care,THIRD PARTY PAYMENTS,PRIVATE CONTRACTOR,REVENUE
Walsall Council,http://opendatacommunities.org/id/metropolitan-district-council/walsall ,WC148-602,31.03.2023,ADULT SOCIAL CARE,ADVANCE HEALTH CARE (UK) LTD,27/03/2023,396.06,6541-Domiciliary Care,THIRD PARTY PAYMENTS,PRIVATE CONTRACTOR,REVENUE
Walsall Council,http://opendatacommunities.org/id/metropolitan-district-council/walsall ,WC148-603,31.03.2023,ADULT SOCIAL CARE,ADVANCE HEALTH CARE (UK) LTD,27/03/2023,254.52,6541-Domiciliary Care,THIRD PARTY PAYMENTS,PRIVATE CONTRACTOR,REVENUE
Walsall Council,http://opendatacommunities.org/id/metropolitan-district-council/walsall ,WC148-604,31.03.2023,ADULT SOCIAL CARE,ADVANCE HEALTH CARE (UK) LTD,27/03/2023,589.84,6541-Domiciliary Care,THIRD PARTY PAYMENTS,PRIVATE CONTRACTOR,REVENUE
Walsall Council,http://opendatacommunities.org/id/metropolitan-district-council/walsall ,WC148-605,31.03.2023,ADULT SOCIAL CARE,ADVANCE HEALTH CARE (UK) LTD,27/03/2023,254.52,6541-Domiciliary Care,THIRD PARTY PAYMENTS,PRIVATE CONTRACTOR,REVENUE
Walsall Council,http://opendatacommunities.org/id/metropolitan-district-council/walsall ,WC148-606,31.03.2023,ADULT SOCIAL CARE,ADVANCE HEALTH CARE (UK) LTD,27/03/2023,254.52,6541-Domiciliary Care,THIRD PARTY PAYMENTS,PRIVATE CONTRACTOR,REVENUE
Walsall Council,http://opendatacommunities.org/id/metropolitan-district-council/walsall ,WC148-607,31.03.2023,ADULT SOCIAL CARE,ADVANCE HEALTH CARE (UK) LTD,27/03/2023,509.04,6541-Domiciliary Care,THIRD PARTY PAYMENTS,PRIVATE CONTRACTOR,REVENUE
Walsall Council,http://opendatacommunities.org/id/metropolitan-district-council/walsall ,WC148-608,31.03.2023,ADULT SOCIAL CARE,ADVANCE HEALTH CARE (UK) LTD,27/03/2023,377.16,6541-Domiciliary Care,THIRD PARTY PAYMENTS,PRIVATE CONTRACTOR,REVENUE
Walsall Council,http://opendatacommunities.org/id/metropolitan-district-council/walsall ,WC148-609,31.03.2023,ADULT SOCIAL CARE,ADVANCE HEALTH CARE (UK) LTD,27/03/2023,395.92,6541-Domiciliary Care,THIRD PARTY PAYMENTS,PRIVATE CONTRACTOR,REVENUE
Walsall Council,http://opendatacommunities.org/id/metropolitan-district-council/walsall ,WC148-610,31.03.2023,ADULT SOCIAL CARE,ADVANCE HEALTH CARE (UK) LTD,27/03/2023,339.50,6541-Domiciliary Care,THIRD PARTY PAYMENTS,PRIVATE CONTRACTOR,REVENUE
Walsall Council,http://opendatacommunities.org/id/metropolitan-district-council/walsall ,WC148-611,31.03.2023,ADULT SOCIAL CARE,ADVANCE HEALTH CARE (UK) LTD,27/03/2023,509.04,6541-Domiciliary Care,THIRD PARTY PAYMENTS,PRIVATE CONTRACTOR,REVENUE
Walsall Council,http://opendatacommunities.org/id/metropolitan-district-council/walsall ,WC148-612,31.03.2023,ADULT SOCIAL CARE,ADVANCE HEALTH CARE (UK) LTD,27/03/2023,339.36,6541-Domiciliary Care,THIRD PARTY PAYMENTS,PRIVATE CONTRACTOR,REVENUE
Walsall Council,http://opendatacommunities.org/id/metropolitan-district-council/walsall ,WC148-613,31.03.2023,ADULT SOCIAL CARE,ADVANCE HEALTH CARE (UK) LTD,27/03/2023,509.04,6541-Domiciliary Care,THIRD PARTY PAYMENTS,PRIVATE CONTRACTOR,REVENUE
Walsall Council,http://opendatacommunities.org/id/metropolitan-district-council/walsall ,WC148-614,31.03.2023,ADULT SOCIAL CARE,ADVANCE HEALTH CARE (UK) LTD,27/03/2023,339.50,6541-Domiciliary Care,THIRD PARTY PAYMENTS,PRIVATE CONTRACTOR,REVENUE
Walsall Council,http://opendatacommunities.org/id/metropolitan-district-council/walsall ,WC148-615,31.03.2023,ADULT SOCIAL CARE,ADVANCE HEALTH CARE (UK) LTD,27/03/2023,452.48,6541-Domiciliary Care,THIRD PARTY PAYMENTS,PRIVATE CONTRACTOR,REVENUE
Walsall Council,http://opendatacommunities.org/id/metropolitan-district-council/walsall ,WC148-616,31.03.2023,ADULT SOCIAL CARE,ADVANCE HEALTH CARE (UK) LTD,27/03/2023,270.68,6541-Domiciliary Care,THIRD PARTY PAYMENTS,PRIVATE CONTRACTOR,REVENUE
Walsall Council,http://opendatacommunities.org/id/metropolitan-district-council/walsall ,WC148-617,31.03.2023,ADULT SOCIAL CARE,ADVANCE HEALTH CARE (UK) LTD,27/03/2023,509.04,6541-Domiciliary Care,THIRD PARTY PAYMENTS,PRIVATE CONTRACTOR,REVENUE
Walsall Council,http://opendatacommunities.org/id/metropolitan-district-council/walsall ,WC148-618,31.03.2023,ADULT SOCIAL CARE,ADVANCE HEALTH CARE (UK) LTD,27/03/2023,509.04,6541-Domiciliary Care,THIRD PARTY PAYMENTS,PRIVATE CONTRACTOR,REVENUE
Walsall Council,http://opendatacommunities.org/id/metropolitan-district-council/walsall ,WC148-619,31.03.2023,ADULT SOCIAL CARE,ADVANCE HEALTH CARE (UK) LTD,27/03/2023,509.04,6541-Domiciliary Care,THIRD PARTY PAYMENTS,PRIVATE CONTRACTOR,REVENUE
Walsall Council,http://opendatacommunities.org/id/metropolitan-district-council/walsall ,WC148-620,31.03.2023,ADULT SOCIAL CARE,ADVANCE HEALTH CARE (UK) LTD,27/03/2023,509.04,6541-Domiciliary Care,THIRD PARTY PAYMENTS,PRIVATE CONTRACTOR,REVENUE
Walsall Council,http://opendatacommunities.org/id/metropolitan-district-council/walsall ,WC148-621,31.03.2023,ADULT SOCIAL CARE,ADVANCE HEALTH CARE (UK) LTD,27/03/2023,509.04,6541-Domiciliary Care,THIRD PARTY PAYMENTS,PRIVATE CONTRACTOR,REVENUE
Walsall Council,http://opendatacommunities.org/id/metropolitan-district-council/walsall ,WC148-622,31.03.2023,ADULT SOCIAL CARE,ADVANCE HEALTH CARE (UK) LTD,27/03/2023,565.60,6541-Domiciliary Care,THIRD PARTY PAYMENTS,PRIVATE CONTRACTOR,REVENUE
Walsall Council,http://opendatacommunities.org/id/metropolitan-district-council/walsall ,WC148-623,31.03.2023,ADULT SOCIAL CARE,ADVANCE HEALTH CARE (UK) LTD,27/03/2023,452.48,6541-Domiciliary Care,THIRD PARTY PAYMENTS,PRIVATE CONTRACTOR,REVENUE
Walsall Council,http://opendatacommunities.org/id/metropolitan-district-council/walsall ,WC148-624,31.03.2023,ADULT SOCIAL CARE,ADVANCE HEALTH CARE (UK) LTD,27/03/2023,452.48,6541-Domiciliary Care,THIRD PARTY PAYMENTS,PRIVATE CONTRACTOR,REVENUE
Walsall Council,http://opendatacommunities.org/id/metropolitan-district-council/walsall ,WC148-625,31.03.2023,ADULT SOCIAL CARE,ADVANCE HEALTH CARE (UK) LTD,27/03/2023,395.92,6541-Domiciliary Care,THIRD PARTY PAYMENTS,PRIVATE CONTRACTOR,REVENUE
Walsall Council,http://opendatacommunities.org/id/metropolitan-district-council/walsall ,WC148-626,31.03.2023,ADULT SOCIAL CARE,ADVANCE HEALTH CARE (UK) LTD,27/03/2023,452.48,6541-Domiciliary Care,THIRD PARTY PAYMENTS,PRIVATE CONTRACTOR,REVENUE
Walsall Council,http://opendatacommunities.org/id/metropolitan-district-council/walsall ,WC148-627,31.03.2023,ADULT SOCIAL CARE,ADVANCE HEALTH CARE (UK) LTD,27/03/2023,509.04,6541-Domiciliary Care,THIRD PARTY PAYMENTS,PRIVATE CONTRACTOR,REVENUE
Walsall Council,http://opendatacommunities.org/id/metropolitan-district-council/walsall ,WC148-628,31.03.2023,ADULT SOCIAL CARE,ADVANCE HEALTH CARE (UK) LTD,27/03/2023,500.96,6541-Domiciliary Care,THIRD PARTY PAYMENTS,PRIVATE CONTRACTOR,REVENUE
Walsall Council,http://opendatacommunities.org/id/metropolitan-district-council/walsall ,WC148-629,31.03.2023,ADULT SOCIAL CARE,ADVANCE HEALTH CARE (UK) LTD,27/03/2023,565.60,6541-Domiciliary Care,THIRD PARTY PAYMENTS,PRIVATE CONTRACTOR,REVENUE
Walsall Council,http://opendatacommunities.org/id/metropolitan-district-council/walsall ,WC148-630,31.03.2023,ADULT SOCIAL CARE,ADVANCE HEALTH CARE (UK) LTD,27/03/2023,452.48,6541-Domiciliary Care,THIRD PARTY PAYMENTS,PRIVATE CONTRACTOR,REVENUE
Walsall Council,http://opendatacommunities.org/id/metropolitan-district-council/walsall ,WC148-631,31.03.2023,ADULT SOCIAL CARE,ADVANCE HEALTH CARE (UK) LTD,27/03/2023,254.52,6541-Domiciliary Care,THIRD PARTY PAYMENTS,PRIVATE CONTRACTOR,REVENUE
Walsall Council,http://opendatacommunities.org/id/metropolitan-district-council/walsall ,WC148-632,31.03.2023,ADULT SOCIAL CARE,ADVANCE HEALTH CARE (UK) LTD,27/03/2023,452.48,6541-Domiciliary Care,THIRD PARTY PAYMENTS,PRIVATE CONTRACTOR,REVENUE
Walsall Council,http://opendatacommunities.org/id/metropolitan-district-council/walsall ,WC148-633,31.03.2023,"ECONOMY, ENVIRONMENT & COMMUNITIES",ADVANCED VISUALISATION TECHNOLOGIES LTD T/A DIGITAL AUTOPSY UK,06/03/2023,"8,330.00",6413-Professional Fees & Services,SUPPLIES & SERVICES,SERVICES,REVENUE
Walsall Council,http://opendatacommunities.org/id/metropolitan-district-council/walsall ,WC148-634,31.03.2023,ADULT SOCIAL CARE,ADVINIA CARE HOMES LTD - HAMMERWICH HALL CARE HOME,14/03/2023,"2,366.04",6541-Residential EMI,THIRD PARTY PAYMENTS,PRIVATE CONTRACTOR,REVENUE
Walsall Council,http://opendatacommunities.org/id/metropolitan-district-council/walsall ,WC148-635,31.03.2023,ADULT SOCIAL CARE,ADVINIA CARE HOMES LTD - HAMMERWICH HALL CARE HOME,14/03/2023,"2,095.40",6541-Residential,THIRD PARTY PAYMENTS,PRIVATE CONTRACTOR,REVENUE
Walsall Council,http://opendatacommunities.org/id/metropolitan-district-council/walsall ,WC148-636,31.03.2023,ECONOMY & ENVIRONMENT CAPITAL,AECOM INFRASTRUCTURE & ENVIRONMENT UK LIMITED,06/03/2023,"5,575.09",7200-Consultants Fees,CAPITAL,"NEW CONSTRUCTION,CONVERSION & RENOVATION",CAPITAL
Walsall Council,http://opendatacommunities.org/id/metropolitan-district-council/walsall ,WC148-637,31.03.2023,ECONOMY & ENVIRONMENT CAPITAL,AECOM INFRASTRUCTURE & ENVIRONMENT UK LIMITED,02/03/2023,"4,875.00",7200-Site Works - Other Contractors,CAPITAL,"NEW CONSTRUCTION,CONVERSION & RENOVATION",CAPITAL
Walsall Council,http://opendatacommunities.org/id/metropolitan-district-council/walsall ,WC148-638,31.03.2023,ECONOMY & ENVIRONMENT CAPITAL,AECOM INFRASTRUCTURE & ENVIRONMENT UK LIMITED,22/03/2023,"9,424.91",7200-Consultants Fees,CAPITAL,"NEW CONSTRUCTION,CONVERSION & RENOVATION",CAPITAL
Walsall Council,http://opendatacommunities.org/id/metropolitan-district-council/walsall ,WC148-639,31.03.2023,ECONOMY & ENVIRONMENT CAPITAL,AECOM INFRASTRUCTURE & ENVIRONMENT UK LIMITED,23/03/2023,"10,561.68",7200-Consultants Fees,CAPITAL,"NEW CONSTRUCTION,CONVERSION & RENOVATION",CAPITAL
Walsall Council,http://opendatacommunities.org/id/metropolitan-district-council/walsall ,WC148-640,31.03.2023,ECONOMY & ENVIRONMENT CAPITAL,AECOM INFRASTRUCTURE & ENVIRONMENT UK LIMITED,23/03/2023,"26,176.49",7200-Consultants Fees,CAPITAL,"NEW CONSTRUCTION,CONVERSION & RENOVATION",CAPITAL
Walsall Council,http://opendatacommunities.org/id/metropolitan-district-council/walsall ,WC148-641,31.03.2023,ECONOMY & ENVIRONMENT CAPITAL,AECOM INFRASTRUCTURE & ENVIRONMENT UK LIMITED,29/03/2023,"4,857.00",7200-Consultants Fees,CAPITAL,"NEW CONSTRUCTION,CONVERSION & RENOVATION",CAPITAL
Walsall Council,http://opendatacommunities.org/id/metropolitan-district-council/walsall ,WC148-642,31.03.2023,CHILDRENS,AFGHAN COMMUNITY & WELFARE CENTRE,22/03/2023,"4,309.20",6211-Professional Fees & Services,SUPPLIES & SERVICES,SERVICES,REVENUE
Walsall Council,http://opendatacommunities.org/id/metropolitan-district-council/walsall ,WC148-643,31.03.2023,CHILDRENS,REDACTED,08/03/2023,554.08,6223-Foster Carers Maintenance Allowance,TRANSFER PAYMENTS,CHILDREN SOCIAL SERVICES CLIENT,REVENUE
Walsall Council,http://opendatacommunities.org/id/metropolitan-district-council/walsall ,WC148-644,31.03.2023,CHILDRENS,REDACTED,08/03/2023,489.60,6223-Internal Foster Carers-Carer Fees,TRANSFER PAYMENTS,CHILDREN SOCIAL SERVICES CLIENT,REVENUE
Walsall Council,http://opendatacommunities.org/id/metropolitan-district-council/walsall ,WC148-645,31.03.2023,CHILDRENS,REDACTED,08/03/2023,614.40,6223-Foster Carers Maintenance Allowance,TRANSFER PAYMENTS,CHILDREN SOCIAL SERVICES CLIENT,REVENUE
Walsall Council,http://opendatacommunities.org/id/metropolitan-district-council/walsall ,WC148-646,31.03.2023,RESOURCES AND TRANSFORMATION,AFRICAN FRENCH SPEAKING COMMUNITY SUPPORT,14/03/2023,"4,311.60",6312-Grants to Other Orgs,SUPPLIES & SERVICES,GRANTS (EXP) & SUBSCRIPTIONS,REVENUE
Walsall Council,http://opendatacommunities.org/id/metropolitan-district-council/walsall ,WC148-647,31.03.2023,RESOURCES AND TRANSFORMATION CAPITAL,AGILISYS LTD,15/03/2023,"-38,470.70",7300-Consultants Fees,CAPITAL,"NEW CONSTRUCTION,CONVERSION & RENOVATION",CAPITAL
Walsall Council,http://opendatacommunities.org/id/metropolitan-district-council/walsall ,WC148-648,31.03.2023,RESOURCES AND TRANSFORMATION CAPITAL,AGILISYS LTD,15/03/2023,"38,470.70",7300-Consultants Fees,CAPITAL,"NEW CONSTRUCTION,CONVERSION & RENOVATION",CAPITAL
Walsall Council,http://opendatacommunities.org/id/metropolitan-district-council/walsall ,WC148-649,31.03.2023,RESOURCES AND TRANSFORMATION CAPITAL,AGILISYS LTD,15/03/2023,"-35,600.00",7300-Consultants Fees,CAPITAL,"NEW CONSTRUCTION,CONVERSION & RENOVATION",CAPITAL
Walsall Council,http://opendatacommunities.org/id/metropolitan-district-council/walsall ,WC148-650,31.03.2023,RESOURCES AND TRANSFORMATION CAPITAL,AGILISYS LTD,15/03/2023,"35,600.00",7300-Consultants Fees,CAPITAL,"NEW CONSTRUCTION,CONVERSION & RENOVATION",CAPITAL
Walsall Council,http://opendatacommunities.org/id/metropolitan-district-council/walsall ,WC148-651,31.03.2023,RESOURCES AND TRANSFORMATION CAPITAL,AGILISYS LTD,28/03/2023,"1,224.00",7300-Consultants Fees,CAPITAL,"NEW CONSTRUCTION,CONVERSION & RENOVATION",CAPITAL
Walsall Council,http://opendatacommunities.org/id/metropolitan-district-council/walsall ,WC148-652,31.03.2023,CHILDRENS,REDACTED,08/03/2023,313.84,6223-Special Guardianship Orders,TRANSFER PAYMENTS,CHILDREN SOCIAL SERVICES CLIENT,REVENUE
Walsall Council,http://opendatacommunities.org/id/metropolitan-district-council/walsall ,WC148-653,31.03.2023,"ECONOMY, ENVIRONMENT & COMMUNITIES",AGROVISTA UK LTD,22/03/2023,"4,828.70",6410-Materials,SUPPLIES & SERVICES,EQUIPMENT FURNITURE & MATERIALS,REVENUE
Walsall Council,http://opendatacommunities.org/id/metropolitan-district-council/walsall ,WC148-654,31.03.2023,ADULT SOCIAL CARE,REDACTED,08/03/2023,"3,146.40",6541-Direct Payment,THIRD PARTY PAYMENTS,PRIVATE CONTRACTOR,REVENUE
Walsall Council,http://opendatacommunities.org/id/metropolitan-district-council/walsall ,WC148-655,31.03.2023,CHILDRENS,AIREY CONSULTANCY SERVICES LTD,22/03/2023,650.00,6632-Computer Equipment,SUPPLIES & SERVICES,COMMUNICATIONS & COMPUTING,REVENUE
Walsall Council,http://opendatacommunities.org/id/metropolitan-district-council/walsall ,WC148-656,31.03.2023,CHILDRENS CAPITAL,AIRTECH CONTROLS LTD,22/03/2023,"6,114.00",7150-Site Works Contractors,CAPITAL,"NEW CONSTRUCTION,CONVERSION & RENOVATION",CAPITAL
Walsall Council,http://opendatacommunities.org/id/metropolitan-district-council/walsall ,WC148-657,31.03.2023,ADULT SOCIAL CARE,REDACTED,08/03/2023,"1,273.80",6541-Direct Payment,THIRD PARTY PAYMENTS,PRIVATE CONTRACTOR,REVENUE
Walsall Council,http://opendatacommunities.org/id/metropolitan-district-council/walsall ,WC148-658,31.03.2023,ADULT SOCIAL CARE,REDACTED,08/03/2023,605.55,6541-Direct Payment,THIRD PARTY PAYMENTS,PRIVATE CONTRACTOR,REVENUE
Walsall Council,http://opendatacommunities.org/id/metropolitan-district-council/walsall ,WC148-659,31.03.2023,ADULT SOCIAL CARE,REDACTED,08/03/2023,278.60,6541-Direct Payment,THIRD PARTY PAYMENTS,PRIVATE CONTRACTOR,REVENUE
Walsall Council,http://opendatacommunities.org/id/metropolitan-district-council/walsall ,WC148-660,31.03.2023,ADULT SOCIAL CARE,REDACTED,08/03/2023,"1,987.72",6541-Direct Payment,THIRD PARTY PAYMENTS,PRIVATE CONTRACTOR,REVENUE
Walsall Council,http://opendatacommunities.org/id/metropolitan-district-council/walsall ,WC148-661,31.03.2023,CHILDRENS,ALBRIGHTON CARE LTD,21/03/2023,"7,058.57",6223-External Residential Care-Oth Agency Provision,THIRD PARTY PAYMENTS,PRIVATE CONTRACTOR,REVENUE
Walsall Council,http://opendatacommunities.org/id/metropolitan-district-council/walsall ,WC148-662,31.03.2023,CHILDRENS,ALBRIGHTON CARE LTD,24/03/2023,542.40,6223-External Residential Care-Oth Agency Provision,THIRD PARTY PAYMENTS,PRIVATE CONTRACTOR,REVENUE
Walsall Council,http://opendatacommunities.org/id/metropolitan-district-council/walsall ,WC148-663,31.03.2023,CHILDRENS,ALDRIDGE & BARONS LIMITED,28/03/2023,"1,575.00",6241-Hire of Vehicle with Driver,TRANSPORT,DIRECT TRANSPORT COSTS,REVENUE
Walsall Council,http://opendatacommunities.org/id/metropolitan-district-council/walsall ,WC148-664,31.03.2023,CHILDRENS,ALDRIDGE & BARONS LIMITED,28/03/2023,"1,810.50",6241-Hire of Vehicle with Driver,TRANSPORT,DIRECT TRANSPORT COSTS,REVENUE
Walsall Council,http://opendatacommunities.org/id/metropolitan-district-council/walsall ,WC148-665,31.03.2023,CHILDRENS,ALDRIDGE & BARONS LIMITED,28/03/2023,"2,700.00",6241-Hire of Vehicle with Driver,TRANSPORT,DIRECT TRANSPORT COSTS,REVENUE
Walsall Council,http://opendatacommunities.org/id/metropolitan-district-council/walsall ,WC148-666,31.03.2023,CHILDRENS,ALDRIDGE & BARONS LIMITED,28/03/2023,"1,950.00",6241-Hire of Vehicle with Driver,TRANSPORT,DIRECT TRANSPORT COSTS,REVENUE
Walsall Council,http://opendatacommunities.org/id/metropolitan-district-council/walsall ,WC148-667,31.03.2023,CHILDRENS,ALDRIDGE & BARONS LIMITED,28/03/2023,"2,332.80",6241-Hire of Vehicle with Driver,TRANSPORT,DIRECT TRANSPORT COSTS,REVENUE
Walsall Council,http://opendatacommunities.org/id/metropolitan-district-council/walsall ,WC148-668,31.03.2023,CHILDRENS,ALDRIDGE & BARONS LIMITED,28/03/2023,"2,250.00",6241-Hire of Vehicle with Driver,TRANSPORT,DIRECT TRANSPORT COSTS,REVENUE
Walsall Council,http://opendatacommunities.org/id/metropolitan-district-council/walsall ,WC148-669,31.03.2023,CHILDRENS,ALDRIDGE & BARONS LIMITED,28/03/2023,"2,100.00",6241-Hire of Vehicle with Driver,TRANSPORT,DIRECT TRANSPORT COSTS,REVENUE
Walsall Council,http://opendatacommunities.org/id/metropolitan-district-council/walsall ,WC148-670,31.03.2023,CHILDRENS,ALDRIDGE & BARONS LIMITED,28/03/2023,"1,540.00",6241-Hire of Vehicle with Driver,TRANSPORT,DIRECT TRANSPORT COSTS,REVENUE
Walsall Council,http://opendatacommunities.org/id/metropolitan-district-council/walsall ,WC148-671,31.03.2023,CHILDRENS,ALDRIDGE & BARONS LIMITED,28/03/2023,"1,815.00",6241-Hire of Vehicle with Driver,TRANSPORT,DIRECT TRANSPORT COSTS,REVENUE
Walsall Council,http://opendatacommunities.org/id/metropolitan-district-council/walsall ,WC148-672,31.03.2023,CHILDRENS,ALDRIDGE & BARONS LIMITED,28/03/2023,"2,250.00",6241-Hire of Vehicle with Driver,TRANSPORT,DIRECT TRANSPORT COSTS,REVENUE
Walsall Council,http://opendatacommunities.org/id/metropolitan-district-council/walsall ,WC148-673,31.03.2023,CHILDRENS,ALDRIDGE & BARONS LIMITED,28/03/2023,"1,620.00",6241-Hire of Vehicle with Driver,TRANSPORT,DIRECT TRANSPORT COSTS,REVENUE
Walsall Council,http://opendatacommunities.org/id/metropolitan-district-council/walsall ,WC148-674,31.03.2023,CHILDRENS,ALDRIDGE & BARONS LIMITED,28/03/2023,"1,736.50",6241-Hire of Vehicle with Driver,TRANSPORT,DIRECT TRANSPORT COSTS,REVENUE
Walsall Council,http://opendatacommunities.org/id/metropolitan-district-council/walsall ,WC148-675,31.03.2023,CHILDRENS,ALDRIDGE & BARONS LIMITED,28/03/2023,"2,123.10",6241-Hire of Vehicle with Driver,TRANSPORT,DIRECT TRANSPORT COSTS,REVENUE
Walsall Council,http://opendatacommunities.org/id/metropolitan-district-council/walsall ,WC148-676,31.03.2023,CHILDRENS,ALDRIDGE & BARONS LIMITED,28/03/2023,"2,165.70",6241-Hire of Vehicle with Driver,TRANSPORT,DIRECT TRANSPORT COSTS,REVENUE
Walsall Council,http://opendatacommunities.org/id/metropolitan-district-council/walsall ,WC148-677,31.03.2023,CHILDRENS,ALDRIDGE & BARONS LIMITED,28/03/2023,"1,755.00",6241-Hire of Vehicle with Driver,TRANSPORT,DIRECT TRANSPORT COSTS,REVENUE
Walsall Council,http://opendatacommunities.org/id/metropolitan-district-council/walsall ,WC148-678,31.03.2023,CHILDRENS,ALDRIDGE & BARONS LIMITED,28/03/2023,"2,520.00",6241-Hire of Vehicle with Driver,TRANSPORT,DIRECT TRANSPORT COSTS,REVENUE
Walsall Council,http://opendatacommunities.org/id/metropolitan-district-council/walsall ,WC148-679,31.03.2023,CHILDRENS,ALDRIDGE & BARONS LIMITED,28/03/2023,"1,674.00",6241-Hire of Vehicle with Driver,TRANSPORT,DIRECT TRANSPORT COSTS,REVENUE
Walsall Council,http://opendatacommunities.org/id/metropolitan-district-council/walsall ,WC148-680,31.03.2023,CHILDRENS,ALDRIDGE & BARONS LIMITED,28/03/2023,"2,070.00",6241-Hire of Vehicle with Driver,TRANSPORT,DIRECT TRANSPORT COSTS,REVENUE
Walsall Council,http://opendatacommunities.org/id/metropolitan-district-council/walsall ,WC148-681,31.03.2023,CHILDRENS,ALDRIDGE & BARONS LIMITED,28/03/2023,"1,500.00",6241-Hire of Vehicle with Driver,TRANSPORT,DIRECT TRANSPORT COSTS,REVENUE
Walsall Council,http://opendatacommunities.org/id/metropolitan-district-council/walsall ,WC148-682,31.03.2023,CHILDRENS,ALDRIDGE & BARONS LIMITED,28/03/2023,"2,379.00",6241-Hire of Vehicle with Driver,TRANSPORT,DIRECT TRANSPORT COSTS,REVENUE
Walsall Council,http://opendatacommunities.org/id/metropolitan-district-council/walsall ,WC148-683,31.03.2023,CHILDRENS,ALDRIDGE & BARONS LIMITED,28/03/2023,"1,350.00",6241-Hire of Vehicle with Driver,TRANSPORT,DIRECT TRANSPORT COSTS,REVENUE
Walsall Council,http://opendatacommunities.org/id/metropolitan-district-council/walsall ,WC148-684,31.03.2023,CHILDRENS,ALDRIDGE & BARONS LIMITED,28/03/2023,"1,080.00",6241-Hire of Vehicle with Driver,TRANSPORT,DIRECT TRANSPORT COSTS,REVENUE
Walsall Council,http://opendatacommunities.org/id/metropolitan-district-council/walsall ,WC148-685,31.03.2023,CHILDRENS,ALDRIDGE & BARONS LIMITED,28/03/2023,"1,485.00",6241-Hire of Vehicle with Driver,TRANSPORT,DIRECT TRANSPORT COSTS,REVENUE
Walsall Council,http://opendatacommunities.org/id/metropolitan-district-council/walsall ,WC148-686,31.03.2023,CHILDRENS,ALDRIDGE & BARONS LIMITED,28/03/2023,"2,108.70",6241-Hire of Vehicle with Driver,TRANSPORT,DIRECT TRANSPORT COSTS,REVENUE
Walsall Council,http://opendatacommunities.org/id/metropolitan-district-council/walsall ,WC148-687,31.03.2023,CHILDRENS,ALDRIDGE & BARONS LIMITED,28/03/2023,"1,287.75",6241-Hire of Vehicle with Driver,TRANSPORT,DIRECT TRANSPORT COSTS,REVENUE
Walsall Council,http://opendatacommunities.org/id/metropolitan-district-council/walsall ,WC148-688,31.03.2023,CHILDRENS,ALDRIDGE & BARONS LIMITED,28/03/2023,"1,593.00",6241-Hire of Vehicle with Driver,TRANSPORT,DIRECT TRANSPORT COSTS,REVENUE
Walsall Council,http://opendatacommunities.org/id/metropolitan-district-council/walsall ,WC148-689,31.03.2023,CHILDRENS,ALDRIDGE & BARONS LIMITED,28/03/2023,"1,435.50",6241-Hire of Vehicle with Driver,TRANSPORT,DIRECT TRANSPORT COSTS,REVENUE
Walsall Council,http://opendatacommunities.org/id/metropolitan-district-council/walsall ,WC148-690,31.03.2023,CHILDRENS,ALDRIDGE & BARONS LIMITED,28/03/2023,"2,115.00",6241-Hire of Vehicle with Driver,TRANSPORT,DIRECT TRANSPORT COSTS,REVENUE
Walsall Council,http://opendatacommunities.org/id/metropolitan-district-council/walsall ,WC148-691,31.03.2023,CHILDRENS,ALDRIDGE & BARONS LIMITED,28/03/2023,891.00,6241-Hire of Vehicle with Driver,TRANSPORT,DIRECT TRANSPORT COSTS,REVENUE
Walsall Council,http://opendatacommunities.org/id/metropolitan-district-council/walsall ,WC148-692,31.03.2023,ADULT SOCIAL CARE,REDACTED,08/03/2023,"1,939.20",6541-Direct Payment,THIRD PARTY PAYMENTS,PRIVATE CONTRACTOR,REVENUE
Walsall Council,http://opendatacommunities.org/id/metropolitan-district-council/walsall ,WC148-693,31.03.2023,ADULT SOCIAL CARE,ALEXANDRA HOUSE CARE SERVICES LTD T/A STONEBRIDGE NURSING HOME,14/03/2023,"7,434.72",6541-Residential,THIRD PARTY PAYMENTS,PRIVATE CONTRACTOR,REVENUE
Walsall Council,http://opendatacommunities.org/id/metropolitan-district-council/walsall ,WC148-694,31.03.2023,ADULT SOCIAL CARE,REDACTED,08/03/2023,"1,241.90",6541-Direct Payment,THIRD PARTY PAYMENTS,PRIVATE CONTRACTOR,REVENUE
Walsall Council,http://opendatacommunities.org/id/metropolitan-district-council/walsall ,WC148-695,31.03.2023,CHILDRENS,REDACTED,08/03/2023,341.72,6223-Special Guardianship Orders,TRANSFER PAYMENTS,CHILDREN SOCIAL SERVICES CLIENT,REVENUE
Walsall Council,http://opendatacommunities.org/id/metropolitan-district-council/walsall ,WC148-696,31.03.2023,CHILDRENS,ALL SAINTS C OF E PRIMARY SCHOOL,15/03/2023,"3,131.33",1220-Top Up Funding -Grants to Schools,SUPPLIES & SERVICES,GRANTS (EXP) & SUBSCRIPTIONS,REVENUE
Walsall Council,http://opendatacommunities.org/id/metropolitan-district-council/walsall ,WC148-697,31.03.2023,CHILDRENS,ALL SAINTS NATIONAL ACADEMY #1,03/03/2023,"9,197.08",1220-Top Up Funding -Grants to Schools,SUPPLIES & SERVICES,GRANTS (EXP) & SUBSCRIPTIONS,REVENUE
Walsall Council,http://opendatacommunities.org/id/metropolitan-district-council/walsall ,WC148-698,31.03.2023,CHILDRENS,ALL STARS WALSALL CIC,22/03/2023,"3,200.00",6211-Professional Fees & Services,SUPPLIES & SERVICES,SERVICES,REVENUE
Walsall Council,http://opendatacommunities.org/id/metropolitan-district-council/walsall ,WC148-699,31.03.2023,ADULT SOCIAL CARE,REDACTED,08/03/2023,944.00,6541-Direct Payment,THIRD PARTY PAYMENTS,PRIVATE CONTRACTOR,REVENUE
Walsall Council,http://opendatacommunities.org/id/metropolitan-district-council/walsall ,WC148-700,31.03.2023,CHILDRENS,ALLIANCE CARE LTD,15/03/2023,"3,024.00",6220-Professional Fees & Services,SUPPLIES & SERVICES,SERVICES,REVENUE
Walsall Council,http://opendatacommunities.org/id/metropolitan-district-council/walsall ,WC148-701,31.03.2023,ECONOMY & ENVIRONMENT CAPITAL,ALLIANCE LEISURE SERVICES LTD,15/03/2023,"258,807.42",7200-Site Works Contractors,CAPITAL,"NEW CONSTRUCTION,CONVERSION & RENOVATION",CAPITAL
Walsall Council,http://opendatacommunities.org/id/metropolitan-district-council/walsall ,WC148-702,31.03.2023,ECONOMY & ENVIRONMENT CAPITAL,ALLIANCE LEISURE SERVICES LTD,28/03/2023,"94,958.70",7200-Site Works Contractors,CAPITAL,"NEW CONSTRUCTION,CONVERSION & RENOVATION",CAPITAL
Walsall Council,http://opendatacommunities.org/id/metropolitan-district-council/walsall ,WC148-703,31.03.2023,CHILDRENS,ALLPAY LTD,02/03/2023,"1,000.00",6222-Professional Fees & Services,SUPPLIES & SERVICES,SERVICES,REVENUE
Walsall Council,http://opendatacommunities.org/id/metropolitan-district-council/walsall ,WC148-704,31.03.2023,ADULT SOCIAL CARE,ALMA COURT,14/03/2023,"4,805.72",6541-Nursing EMI,THIRD PARTY PAYMENTS,PRIVATE CONTRACTOR,REVENUE
Walsall Council,http://opendatacommunities.org/id/metropolitan-district-council/walsall ,WC148-705,31.03.2023,ADULT SOCIAL CARE,ALMA COURT,14/03/2023,"4,263.00",6541-Residential,THIRD PARTY PAYMENTS,PRIVATE CONTRACTOR,REVENUE
Walsall Council,http://opendatacommunities.org/id/metropolitan-district-council/walsall ,WC148-706,31.03.2023,ADULT SOCIAL CARE,ALMA COURT,14/03/2023,"4,000.00",6541-Nursing EMI,THIRD PARTY PAYMENTS,PRIVATE CONTRACTOR,REVENUE
Walsall Council,http://opendatacommunities.org/id/metropolitan-district-council/walsall ,WC148-707,31.03.2023,ADULT SOCIAL CARE,ALMA COURT,14/03/2023,"6,718.40",6541-Residential,THIRD PARTY PAYMENTS,PRIVATE CONTRACTOR,REVENUE
Walsall Council,http://opendatacommunities.org/id/metropolitan-district-council/walsall ,WC148-708,31.03.2023,ADULT SOCIAL CARE,ALMA COURT,14/03/2023,"1,508.58",6541-Nursing EMI,THIRD PARTY PAYMENTS,PRIVATE CONTRACTOR,REVENUE
Walsall Council,http://opendatacommunities.org/id/metropolitan-district-council/walsall ,WC148-709,31.03.2023,RESOURCES AND TRANSFORMATION,ALMADEN UK LTD,13/03/2023,"11,520.00",6623-Computer Equipment,SUPPLIES & SERVICES,COMMUNICATIONS & COMPUTING,REVENUE
Walsall Council,http://opendatacommunities.org/id/metropolitan-district-council/walsall ,WC148-710,31.03.2023,CHILDRENS,ALMOZENE NURSERY & CHILDRENS CENTRE,22/03/2023,"2,400.00",6211-Professional Fees & Services,SUPPLIES & SERVICES,SERVICES,REVENUE
Walsall Council,http://opendatacommunities.org/id/metropolitan-district-council/walsall ,WC148-711,31.03.2023,CHILDRENS,ALMOZENE NURSERY & CHILDRENS CENTRE,03/03/2023,"1,947.96",1220-Top Up Funding -Grants to Schools,SUPPLIES & SERVICES,GRANTS (EXP) & SUBSCRIPTIONS,REVENUE
Walsall Council,http://opendatacommunities.org/id/metropolitan-district-council/walsall ,WC148-712,31.03.2023,ADULT SOCIAL CARE,ALPHA HEALTH CARE LTD,14/03/2023,"2,763.80",6541-Nursing EMI,THIRD PARTY PAYMENTS,PRIVATE CONTRACTOR,REVENUE
Walsall Council,http://opendatacommunities.org/id/metropolitan-district-council/walsall ,WC148-713,31.03.2023,ADULT SOCIAL CARE,ALPHA HEALTH CARE LTD,14/03/2023,"7,105.00",6541-Residential,THIRD PARTY PAYMENTS,PRIVATE CONTRACTOR,REVENUE
Walsall Council,http://opendatacommunities.org/id/metropolitan-district-council/walsall ,WC148-714,31.03.2023,ADULT SOCIAL CARE,ALPHA HEALTH CARE LTD,14/03/2023,"3,374.96",6541-Residential EMI,THIRD PARTY PAYMENTS,PRIVATE CONTRACTOR,REVENUE
Walsall Council,http://opendatacommunities.org/id/metropolitan-district-council/walsall ,WC148-715,31.03.2023,ADULT SOCIAL CARE,ALPHA HEALTH CARE LTD,14/03/2023,"3,374.96",6541-Residential EMI,THIRD PARTY PAYMENTS,PRIVATE CONTRACTOR,REVENUE
Walsall Council,http://opendatacommunities.org/id/metropolitan-district-council/walsall ,WC148-716,31.03.2023,ADULT SOCIAL CARE,ALPHA HEALTH CARE LTD,14/03/2023,"7,067.80",6541-Nursing EMI,THIRD PARTY PAYMENTS,PRIVATE CONTRACTOR,REVENUE
Walsall Council,http://opendatacommunities.org/id/metropolitan-district-council/walsall ,WC148-717,31.03.2023,ADULT SOCIAL CARE,ALPHA HEALTH CARE LTD,14/03/2023,"3,132.12",6541-Nursing EMI,THIRD PARTY PAYMENTS,PRIVATE CONTRACTOR,REVENUE
Walsall Council,http://opendatacommunities.org/id/metropolitan-district-council/walsall ,WC148-718,31.03.2023,ADULT SOCIAL CARE,ALPHA HEALTH CARE LTD,14/03/2023,"3,398.04",6541-Residential EMI,THIRD PARTY PAYMENTS,PRIVATE CONTRACTOR,REVENUE
Walsall Council,http://opendatacommunities.org/id/metropolitan-district-council/walsall ,WC148-719,31.03.2023,ADULT SOCIAL CARE,ALPHA HEALTH CARE LTD,14/03/2023,"2,766.04",6541-Residential EMI,THIRD PARTY PAYMENTS,PRIVATE CONTRACTOR,REVENUE
Walsall Council,http://opendatacommunities.org/id/metropolitan-district-council/walsall ,WC148-720,31.03.2023,ADULT SOCIAL CARE,ALPHA HEALTH CARE LTD,14/03/2023,690.95,6541-Nursing EMI,THIRD PARTY PAYMENTS,PRIVATE CONTRACTOR,REVENUE
Walsall Council,http://opendatacommunities.org/id/metropolitan-district-council/walsall ,WC148-721,31.03.2023,ADULT SOCIAL CARE,ALPHA HEALTH CARE LTD,14/03/2023,"2,366.04",6541-Residential EMI,THIRD PARTY PAYMENTS,PRIVATE CONTRACTOR,REVENUE
Walsall Council,http://opendatacommunities.org/id/metropolitan-district-council/walsall ,WC148-722,31.03.2023,ADULT SOCIAL CARE,ALPHA HEALTH CARE LTD,14/03/2023,"1,990.00",6541-Residential,THIRD PARTY PAYMENTS,PRIVATE CONTRACTOR,REVENUE
Walsall Council,http://opendatacommunities.org/id/metropolitan-district-council/walsall ,WC148-723,31.03.2023,ADULT SOCIAL CARE,ALPHA HEALTH CARE LTD,14/03/2023,"2,998.00",6541-Nursing,THIRD PARTY PAYMENTS,PRIVATE CONTRACTOR,REVENUE
Walsall Council,http://opendatacommunities.org/id/metropolitan-district-council/walsall ,WC148-724,31.03.2023,ADULT SOCIAL CARE,ALPHA HEALTH CARE LTD,14/03/2023,"3,667.80",6541-Nursing EMI,THIRD PARTY PAYMENTS,PRIVATE CONTRACTOR,REVENUE
Walsall Council,http://opendatacommunities.org/id/metropolitan-district-council/walsall ,WC148-725,31.03.2023,ADULT SOCIAL CARE,ALPHA HEALTH CARE LTD,14/03/2023,"2,630.96",6541-Residential,THIRD PARTY PAYMENTS,PRIVATE CONTRACTOR,REVENUE
Walsall Council,http://opendatacommunities.org/id/metropolitan-district-council/walsall ,WC148-726,31.03.2023,ADULT SOCIAL CARE,ALPHA HEALTH CARE LTD,14/03/2023,"3,958.52",6541-Residential,THIRD PARTY PAYMENTS,PRIVATE CONTRACTOR,REVENUE
Walsall Council,http://opendatacommunities.org/id/metropolitan-district-council/walsall ,WC148-727,31.03.2023,ADULT SOCIAL CARE,ALPHA HEALTH CARE LTD,14/03/2023,"2,889.52",6541-Residential EMI,THIRD PARTY PAYMENTS,PRIVATE CONTRACTOR,REVENUE
Walsall Council,http://opendatacommunities.org/id/metropolitan-district-council/walsall ,WC148-728,31.03.2023,ADULT SOCIAL CARE,ALPHA HEALTH CARE LTD,14/03/2023,"7,600.00",6541-Residential,THIRD PARTY PAYMENTS,PRIVATE CONTRACTOR,REVENUE
Walsall Council,http://opendatacommunities.org/id/metropolitan-district-council/walsall ,WC148-729,31.03.2023,ADULT SOCIAL CARE,ALPHA HEALTH CARE LTD,14/03/2023,"21,985.71",6541-Residential,THIRD PARTY PAYMENTS,PRIVATE CONTRACTOR,REVENUE
Walsall Council,http://opendatacommunities.org/id/metropolitan-district-council/walsall ,WC148-730,31.03.2023,ADULT SOCIAL CARE,ALPHA HEALTH CARE LTD,14/03/2023,"3,980.00",6541-Residential EMI,THIRD PARTY PAYMENTS,PRIVATE CONTRACTOR,REVENUE
Walsall Council,http://opendatacommunities.org/id/metropolitan-district-council/walsall ,WC148-731,31.03.2023,ADULT SOCIAL CARE,ALPHA HEALTH CARE LTD,14/03/2023,"4,120.00",6541-Nursing EMI,THIRD PARTY PAYMENTS,PRIVATE CONTRACTOR,REVENUE
Walsall Council,http://opendatacommunities.org/id/metropolitan-district-council/walsall ,WC148-732,31.03.2023,ADULT SOCIAL CARE,ALPHA HEALTH CARE LTD,14/03/2023,"1,289.56",6541-Nursing,THIRD PARTY PAYMENTS,PRIVATE CONTRACTOR,REVENUE
Walsall Council,http://opendatacommunities.org/id/metropolitan-district-council/walsall ,WC148-733,31.03.2023,ADULT SOCIAL CARE,ALPHA HEALTH CARE LTD,14/03/2023,"3,090.44",6541-Residential,THIRD PARTY PAYMENTS,PRIVATE CONTRACTOR,REVENUE
Walsall Council,http://opendatacommunities.org/id/metropolitan-district-council/walsall ,WC148-734,31.03.2023,ADULT SOCIAL CARE,ALPHA HEALTH CARE LTD,14/03/2023,"3,520.00",6541-Residential EMI,THIRD PARTY PAYMENTS,PRIVATE CONTRACTOR,REVENUE
Walsall Council,http://opendatacommunities.org/id/metropolitan-district-council/walsall ,WC148-735,31.03.2023,ADULT SOCIAL CARE,ALPHA HEALTH CARE LTD,14/03/2023,"9,654.28",6541-Nursing EMI,THIRD PARTY PAYMENTS,PRIVATE CONTRACTOR,REVENUE
Walsall Council,http://opendatacommunities.org/id/metropolitan-district-council/walsall ,WC148-736,31.03.2023,ADULT SOCIAL CARE,ALPHA HEALTH CARE LTD,14/03/2023,"3,257.15",6541-Nursing EMI,THIRD PARTY PAYMENTS,PRIVATE CONTRACTOR,REVENUE
Walsall Council,http://opendatacommunities.org/id/metropolitan-district-council/walsall ,WC148-737,31.03.2023,ADULT SOCIAL CARE,ALPHA HEALTH CARE LTD,14/03/2023,"3,105.16",6541-Nursing EMI,THIRD PARTY PAYMENTS,PRIVATE CONTRACTOR,REVENUE
Walsall Council,http://opendatacommunities.org/id/metropolitan-district-council/walsall ,WC148-738,31.03.2023,ADULT SOCIAL CARE,ALPHA HEALTH CARE LTD,14/03/2023,"6,343.36",6541-Residential,THIRD PARTY PAYMENTS,PRIVATE CONTRACTOR,REVENUE
Walsall Council,http://opendatacommunities.org/id/metropolitan-district-council/walsall ,WC148-739,31.03.2023,ADULT SOCIAL CARE,ALPHA HEALTH CARE LTD,14/03/2023,"3,085.88",6541-Nursing,THIRD PARTY PAYMENTS,PRIVATE CONTRACTOR,REVENUE
Walsall Council,http://opendatacommunities.org/id/metropolitan-district-council/walsall ,WC148-740,31.03.2023,ADULT SOCIAL CARE,ALPHA HEALTH CARE LTD,14/03/2023,"2,856.24",6541-Nursing,THIRD PARTY PAYMENTS,PRIVATE CONTRACTOR,REVENUE
Walsall Council,http://opendatacommunities.org/id/metropolitan-district-council/walsall ,WC148-741,31.03.2023,ADULT SOCIAL CARE,ALPHA HEALTH CARE LTD,14/03/2023,"2,366.04",6541-Residential EMI,THIRD PARTY PAYMENTS,PRIVATE CONTRACTOR,REVENUE
Walsall Council,http://opendatacommunities.org/id/metropolitan-district-council/walsall ,WC148-742,31.03.2023,CHILDRENS,ALPHA TRAINING ACADEMY UK LTD,22/03/2023,"-3,750.00",1187-Materials,SUPPLIES & SERVICES,EQUIPMENT FURNITURE & MATERIALS,REVENUE
Walsall Council,http://opendatacommunities.org/id/metropolitan-district-council/walsall ,WC148-743,31.03.2023,CHILDRENS,ALPHA TRAINING ACADEMY UK LTD,22/03/2023,"4,444.00",1220-Top Up Funding -Grants to Schools,SUPPLIES & SERVICES,GRANTS (EXP) & SUBSCRIPTIONS,REVENUE
Walsall Council,http://opendatacommunities.org/id/metropolitan-district-council/walsall ,WC148-744,31.03.2023,CHILDRENS,ALPHA TRAINING ACADEMY UK LTD,03/03/2023,"13,332.00",1220-Top Up Funding -Grants to Schools,SUPPLIES & SERVICES,GRANTS (EXP) & SUBSCRIPTIONS,REVENUE
Walsall Council,http://opendatacommunities.org/id/metropolitan-district-council/walsall ,WC148-745,31.03.2023,CHILDRENS,ALPHA TRAINING ACADEMY UK LTD,31/03/2023,"7,333.34",1220-Top Up Funding -Grants to Schools,SUPPLIES & SERVICES,GRANTS (EXP) & SUBSCRIPTIONS,REVENUE
Walsall Council,http://opendatacommunities.org/id/metropolitan-district-council/walsall ,WC148-746,31.03.2023,CHILDRENS,ALPHABIOLABS,21/03/2023,"1,360.00",6222-Medical Specialist Reports,DIRECT EMPLOYEES,EMPLOYEE ALLOWANCES & EXPENSES,REVENUE
Walsall Council,http://opendatacommunities.org/id/metropolitan-district-council/walsall ,WC148-747,31.03.2023,CHILDRENS,ALPHABIOLABS,20/03/2023,"1,386.50",6222-Professional Fees & Services,SUPPLIES & SERVICES,SERVICES,REVENUE
Walsall Council,http://opendatacommunities.org/id/metropolitan-district-council/walsall ,WC148-748,31.03.2023,CHILDRENS,ALPHABIOLABS,08/03/2023,420.00,6220-School Only Payments - Catering,THIRD PARTY PAYMENTS,INDEPENDENT UNIT WITHIN COUNCIL,REVENUE
Walsall Council,http://opendatacommunities.org/id/metropolitan-district-council/walsall ,WC148-749,31.03.2023,CHILDRENS,ALPHABIOLABS,08/03/2023,"1,290.00",6220-School Only Payments - Catering,THIRD PARTY PAYMENTS,INDEPENDENT UNIT WITHIN COUNCIL,REVENUE
Walsall Council,http://opendatacommunities.org/id/metropolitan-district-council/walsall ,WC148-750,31.03.2023,CHILDRENS,AMAH NURSERIES LIMITED T/A BANANA MOON WALSALL,31/03/2023,899.25,1184-Other-Grants to Other Orgs,SUPPLIES & SERVICES,GRANTS (EXP) & SUBSCRIPTIONS,REVENUE
Walsall Council,http://opendatacommunities.org/id/metropolitan-district-council/walsall ,WC148-751,31.03.2023,CHILDRENS,AMAH NURSERIES LIMITED T/A BANANA MOON WALSALL,31/03/2023,348.00,1184-Other-Grants to Other Orgs,SUPPLIES & SERVICES,GRANTS (EXP) & SUBSCRIPTIONS,REVENUE
Walsall Council,http://opendatacommunities.org/id/metropolitan-district-council/walsall ,WC148-752,31.03.2023,CHILDRENS,AMANS TRAVEL LTD,28/03/2023,"2,850.00",6241-Hire of Vehicle with Driver,TRANSPORT,DIRECT TRANSPORT COSTS,REVENUE
Walsall Council,http://opendatacommunities.org/id/metropolitan-district-council/walsall ,WC148-753,31.03.2023,CHILDRENS,AMANS TRAVEL LTD,28/03/2023,"2,850.00",6241-Hire of Vehicle with Driver,TRANSPORT,DIRECT TRANSPORT COSTS,REVENUE
Walsall Council,http://opendatacommunities.org/id/metropolitan-district-council/walsall ,WC148-754,31.03.2023,CHILDRENS,AMANS TRAVEL LTD,28/03/2023,"3,150.00",6241-Hire of Vehicle with Driver,TRANSPORT,DIRECT TRANSPORT COSTS,REVENUE
Walsall Council,http://opendatacommunities.org/id/metropolitan-district-council/walsall ,WC148-755,31.03.2023,CHILDRENS,AMANS TRAVEL LTD,28/03/2023,"2,025.00",6241-Hire of Vehicle with Driver,TRANSPORT,DIRECT TRANSPORT COSTS,REVENUE
Walsall Council,http://opendatacommunities.org/id/metropolitan-district-council/walsall ,WC148-756,31.03.2023,CHILDRENS,AMANS TRAVEL LTD,28/03/2023,"2,025.00",6241-Hire of Vehicle with Driver,TRANSPORT,DIRECT TRANSPORT COSTS,REVENUE
Walsall Council,http://opendatacommunities.org/id/metropolitan-district-council/walsall ,WC148-757,31.03.2023,ADULT SOCIAL CARE,REDACTED,08/03/2023,"2,297.10",6541-Direct Payment,THIRD PARTY PAYMENTS,PRIVATE CONTRACTOR,REVENUE
Walsall Council,http://opendatacommunities.org/id/metropolitan-district-council/walsall ,WC148-758,31.03.2023,RESOURCES AND TRANSFORMATION,AMBUR RADIO,16/03/2023,"13,478.47",6312-Grants to Other Orgs,SUPPLIES & SERVICES,GRANTS (EXP) & SUBSCRIPTIONS,REVENUE
Walsall Council,http://opendatacommunities.org/id/metropolitan-district-council/walsall ,WC148-759,31.03.2023,ECONOMY & ENVIRONMENT CAPITAL,AMEY LG LIMITED,09/03/2023,818.57,7200-Site Works Contractors,CAPITAL,"NEW CONSTRUCTION,CONVERSION & RENOVATION",CAPITAL
Walsall Council,http://opendatacommunities.org/id/metropolitan-district-council/walsall ,WC148-760,31.03.2023,"ECONOMY, ENVIRONMENT & COMMUNITIES",AMEY OW LTD,09/03/2023,"13,434.60",6411-Professional Fees & Services,SUPPLIES & SERVICES,SERVICES,REVENUE
Walsall Council,http://opendatacommunities.org/id/metropolitan-district-council/walsall ,WC148-761,31.03.2023,ECONOMY & ENVIRONMENT CAPITAL,AMEY OW LTD,09/03/2023,"-19,112.52",7200-Project Fees,CAPITAL,"NEW CONSTRUCTION,CONVERSION & RENOVATION",CAPITAL
Walsall Council,http://opendatacommunities.org/id/metropolitan-district-council/walsall ,WC148-762,31.03.2023,ECONOMY & ENVIRONMENT CAPITAL,AMEY OW LTD,09/03/2023,"-3,038.40",7200-Project Fees,CAPITAL,"NEW CONSTRUCTION,CONVERSION & RENOVATION",CAPITAL
Walsall Council,http://opendatacommunities.org/id/metropolitan-district-council/walsall ,WC148-763,31.03.2023,ECONOMY & ENVIRONMENT CAPITAL,AMEY OW LTD,09/03/2023,"3,038.40",7200-Project Fees,CAPITAL,"NEW CONSTRUCTION,CONVERSION & RENOVATION",CAPITAL
Walsall Council,http://opendatacommunities.org/id/metropolitan-district-council/walsall ,WC148-764,31.03.2023,ECONOMY & ENVIRONMENT CAPITAL,AMEY OW LTD,09/03/2023,"19,112.52",7200-Project Fees,CAPITAL,"NEW CONSTRUCTION,CONVERSION & RENOVATION",CAPITAL
Walsall Council,http://opendatacommunities.org/id/metropolitan-district-council/walsall ,WC148-765,31.03.2023,ECONOMY & ENVIRONMENT CAPITAL,AMEY OW LTD,09/03/2023,"22,150.92",7200-Project Fees,CAPITAL,"NEW CONSTRUCTION,CONVERSION & RENOVATION",CAPITAL
Walsall Council,http://opendatacommunities.org/id/metropolitan-district-council/walsall ,WC148-766,31.03.2023,"ECONOMY, ENVIRONMENT & COMMUNITIES",AMEY OW LTD,16/03/2023,"6,315.23",6411-Professional Fees & Services,SUPPLIES & SERVICES,SERVICES,REVENUE
Walsall Council,http://opendatacommunities.org/id/metropolitan-district-council/walsall ,WC148-767,31.03.2023,ECONOMY & ENVIRONMENT CAPITAL,AMEY OW LTD,23/03/2023,"-17,637.26",7200-Project Fees,CAPITAL,"NEW CONSTRUCTION,CONVERSION & RENOVATION",CAPITAL
Walsall Council,http://opendatacommunities.org/id/metropolitan-district-council/walsall ,WC148-768,31.03.2023,ECONOMY & ENVIRONMENT CAPITAL,AMEY OW LTD,23/03/2023,"-2,803.88",7200-Project Fees,CAPITAL,"NEW CONSTRUCTION,CONVERSION & RENOVATION",CAPITAL
Walsall Council,http://opendatacommunities.org/id/metropolitan-district-council/walsall ,WC148-769,31.03.2023,ECONOMY & ENVIRONMENT CAPITAL,AMEY OW LTD,23/03/2023,"2,803.88",7200-Project Fees,CAPITAL,"NEW CONSTRUCTION,CONVERSION & RENOVATION",CAPITAL
Walsall Council,http://opendatacommunities.org/id/metropolitan-district-council/walsall ,WC148-770,31.03.2023,ECONOMY & ENVIRONMENT CAPITAL,AMEY OW LTD,23/03/2023,"17,637.26",7200-Project Fees,CAPITAL,"NEW CONSTRUCTION,CONVERSION & RENOVATION",CAPITAL
Walsall Council,http://opendatacommunities.org/id/metropolitan-district-council/walsall ,WC148-771,31.03.2023,ECONOMY & ENVIRONMENT CAPITAL,AMEY OW LTD,23/03/2023,"20,441.14",7200-Project Fees,CAPITAL,"NEW CONSTRUCTION,CONVERSION & RENOVATION",CAPITAL
Walsall Council,http://opendatacommunities.org/id/metropolitan-district-council/walsall ,WC148-772,31.03.2023,ECONOMY & ENVIRONMENT CAPITAL,AMEY OW LTD,23/03/2023,"1,107.80",7200-Project Fees,CAPITAL,"NEW CONSTRUCTION,CONVERSION & RENOVATION",CAPITAL
Walsall Council,http://opendatacommunities.org/id/metropolitan-district-council/walsall ,WC148-773,31.03.2023,ECONOMY & ENVIRONMENT CAPITAL,AMEY OW LTD,23/03/2023,"3,195.67",7200-Project Fees,CAPITAL,"NEW CONSTRUCTION,CONVERSION & RENOVATION",CAPITAL
Walsall Council,http://opendatacommunities.org/id/metropolitan-district-council/walsall ,WC148-774,31.03.2023,CHILDRENS,AMG NURSING CARE SERVICES,09/03/2023,"1,037.97",6220-Professional Fees & Services,SUPPLIES & SERVICES,SERVICES,REVENUE
Walsall Council,http://opendatacommunities.org/id/metropolitan-district-council/walsall ,WC148-775,31.03.2023,CHILDRENS,AMG NURSING CARE SERVICES,20/03/2023,871.36,6220-Professional Fees & Services,SUPPLIES & SERVICES,SERVICES,REVENUE
Walsall Council,http://opendatacommunities.org/id/metropolitan-district-council/walsall ,WC148-776,31.03.2023,CHILDRENS,AMG NURSING CARE SERVICES,13/03/2023,406.60,6220-Professional Fees & Services,SUPPLIES & SERVICES,SERVICES,REVENUE
Walsall Council,http://opendatacommunities.org/id/metropolitan-district-council/walsall ,WC148-777,31.03.2023,CHILDRENS,AMG NURSING CARE SERVICES,13/03/2023,"1,550.12",6220-Professional Fees & Services,SUPPLIES & SERVICES,SERVICES,REVENUE
Walsall Council,http://opendatacommunities.org/id/metropolitan-district-council/walsall ,WC148-778,31.03.2023,CHILDRENS,AMG NURSING CARE SERVICES,15/03/2023,406.60,6220-Professional Fees & Services,SUPPLIES & SERVICES,SERVICES,REVENUE
Walsall Council,http://opendatacommunities.org/id/metropolitan-district-council/walsall ,WC148-779,31.03.2023,CHILDRENS,AMG NURSING CARE SERVICES,15/03/2023,844.20,6220-Professional Fees & Services,SUPPLIES & SERVICES,SERVICES,REVENUE
Walsall Council,http://opendatacommunities.org/id/metropolitan-district-council/walsall ,WC148-780,31.03.2023,CHILDRENS,AMG NURSING CARE SERVICES,15/03/2023,436.60,6220-Professional Fees & Services,SUPPLIES & SERVICES,SERVICES,REVENUE
Walsall Council,http://opendatacommunities.org/id/metropolitan-district-council/walsall ,WC148-781,31.03.2023,CHILDRENS,AMG NURSING CARE SERVICES,20/03/2023,325.28,6220-Professional Fees & Services,SUPPLIES & SERVICES,SERVICES,REVENUE
Walsall Council,http://opendatacommunities.org/id/metropolitan-district-council/walsall ,WC148-782,31.03.2023,CHILDRENS,AMG NURSING CARE SERVICES,20/03/2023,"1,040.30",6220-Professional Fees & Services,SUPPLIES & SERVICES,SERVICES,REVENUE
Walsall Council,http://opendatacommunities.org/id/metropolitan-district-council/walsall ,WC148-783,31.03.2023,CHILDRENS,AMG NURSING CARE SERVICES,21/03/2023,327.45,6220-Professional Fees & Services,SUPPLIES & SERVICES,SERVICES,REVENUE
Walsall Council,http://opendatacommunities.org/id/metropolitan-district-council/walsall ,WC148-784,31.03.2023,CHILDRENS,AMG NURSING CARE SERVICES,28/03/2023,327.45,6220-Professional Fees & Services,SUPPLIES & SERVICES,SERVICES,REVENUE
Walsall Council,http://opendatacommunities.org/id/metropolitan-district-council/walsall ,WC148-785,31.03.2023,CHILDRENS,AMG NURSING CARE SERVICES,31/03/2023,327.45,6220-Professional Fees & Services,SUPPLIES & SERVICES,SERVICES,REVENUE
Walsall Council,http://opendatacommunities.org/id/metropolitan-district-council/walsall ,WC148-786,31.03.2023,CHILDRENS,AMITY RELATIONSHIP SOLUTIONS T/AS KASEARMA LTD,15/03/2023,"-5,000.00",6211-External Training,INDIRECT EMPLOYEES,EXTERNAL TRAINING,REVENUE
Walsall Council,http://opendatacommunities.org/id/metropolitan-district-council/walsall ,WC148-787,31.03.2023,CHILDRENS,AMITY RELATIONSHIP SOLUTIONS T/AS KASEARMA LTD,15/03/2023,"5,000.00",6211-External Training,INDIRECT EMPLOYEES,EXTERNAL TRAINING,REVENUE
Walsall Council,http://opendatacommunities.org/id/metropolitan-district-council/walsall ,WC148-788,31.03.2023,CHILDRENS,REDACTED,08/03/2023,614.40,6223-Foster Carers Maintenance Allowance,TRANSFER PAYMENTS,CHILDREN SOCIAL SERVICES CLIENT,REVENUE
Walsall Council,http://opendatacommunities.org/id/metropolitan-district-council/walsall ,WC148-789,31.03.2023,CHILDRENS,REDACTED,08/03/2023,374.00,6223-Internal Foster Carers-Carer Fees,TRANSFER PAYMENTS,CHILDREN SOCIAL SERVICES CLIENT,REVENUE
Walsall Council,http://opendatacommunities.org/id/metropolitan-district-council/walsall ,WC148-790,31.03.2023,ADULT SOCIAL CARE,ANCHOR CARE HOMES LTD,08/03/2023,"2,073.12",6541-Residential EMI,THIRD PARTY PAYMENTS,PRIVATE CONTRACTOR,REVENUE
Walsall Council,http://opendatacommunities.org/id/metropolitan-district-council/walsall ,WC148-791,31.03.2023,ADULT SOCIAL CARE,ANCHOR CARE HOMES LTD,14/03/2023,"2,366.04",6541-Residential EMI,THIRD PARTY PAYMENTS,PRIVATE CONTRACTOR,REVENUE
Walsall Council,http://opendatacommunities.org/id/metropolitan-district-council/walsall ,WC148-792,31.03.2023,ADULT SOCIAL CARE,ANCHOR CAREHOMES LTD - HARDEN HALL,14/03/2023,"2,366.04",6541-Residential EMI,THIRD PARTY PAYMENTS,PRIVATE CONTRACTOR,REVENUE
Walsall Council,http://opendatacommunities.org/id/metropolitan-district-council/walsall ,WC148-793,31.03.2023,ADULT SOCIAL CARE,ANCHOR CAREHOMES LTD - HARDEN HALL,14/03/2023,"2,366.04",6541-Residential EMI,THIRD PARTY PAYMENTS,PRIVATE CONTRACTOR,REVENUE
Walsall Council,http://opendatacommunities.org/id/metropolitan-district-council/walsall ,WC148-794,31.03.2023,ADULT SOCIAL CARE,ANCHOR CAREHOMES LTD - HARDEN HALL,14/03/2023,"2,366.04",6541-Residential EMI,THIRD PARTY PAYMENTS,PRIVATE CONTRACTOR,REVENUE
Walsall Council,http://opendatacommunities.org/id/metropolitan-district-council/walsall ,WC148-795,31.03.2023,ADULT SOCIAL CARE,ANCHOR CAREHOMES LTD - HARDEN HALL,14/03/2023,"2,366.04",6541-Residential EMI,THIRD PARTY PAYMENTS,PRIVATE CONTRACTOR,REVENUE
Walsall Council,http://opendatacommunities.org/id/metropolitan-district-council/walsall ,WC148-796,31.03.2023,ADULT SOCIAL CARE,ANCHOR CAREHOMES LTD - HARDEN HALL,14/03/2023,"2,366.04",6541-Residential EMI,THIRD PARTY PAYMENTS,PRIVATE CONTRACTOR,REVENUE
Walsall Council,http://opendatacommunities.org/id/metropolitan-district-council/walsall ,WC148-797,31.03.2023,ADULT SOCIAL CARE,ANCHOR CAREHOMES LTD - HARDEN HALL,14/03/2023,"2,366.04",6541-Residential EMI,THIRD PARTY PAYMENTS,PRIVATE CONTRACTOR,REVENUE
Walsall Council,http://opendatacommunities.org/id/metropolitan-district-council/walsall ,WC148-798,31.03.2023,ADULT SOCIAL CARE,ANCHOR CAREHOMES LTD - HARDEN HALL,14/03/2023,"2,366.04",6541-Residential EMI,THIRD PARTY PAYMENTS,PRIVATE CONTRACTOR,REVENUE
Walsall Council,http://opendatacommunities.org/id/metropolitan-district-council/walsall ,WC148-799,31.03.2023,ADULT SOCIAL CARE,ANCHOR CAREHOMES LTD - HARDEN HALL,14/03/2023,"2,366.04",6541-Residential EMI,THIRD PARTY PAYMENTS,PRIVATE CONTRACTOR,REVENUE
Walsall Council,http://opendatacommunities.org/id/metropolitan-district-council/walsall ,WC148-800,31.03.2023,ADULT SOCIAL CARE,ANCHOR CAREHOMES LTD - HARDEN HALL,14/03/2023,"2,095.40",6541-Residential,THIRD PARTY PAYMENTS,PRIVATE CONTRACTOR,REVENUE
Walsall Council,http://opendatacommunities.org/id/metropolitan-district-council/walsall ,WC148-801,31.03.2023,ADULT SOCIAL CARE,ANCHOR CAREHOMES LTD - HARDEN HALL,14/03/2023,"2,566.04",6541-Residential EMI,THIRD PARTY PAYMENTS,PRIVATE CONTRACTOR,REVENUE
Walsall Council,http://opendatacommunities.org/id/metropolitan-district-council/walsall ,WC148-802,31.03.2023,ADULT SOCIAL CARE,ANCHOR CAREHOMES LTD - HARDEN HALL,14/03/2023,"2,566.04",6541-Residential EMI,THIRD PARTY PAYMENTS,PRIVATE CONTRACTOR,REVENUE
Walsall Council,http://opendatacommunities.org/id/metropolitan-district-council/walsall ,WC148-803,31.03.2023,ADULT SOCIAL CARE,ANCHOR CAREHOMES LTD - HARDEN HALL,14/03/2023,"2,095.40",6541-Residential,THIRD PARTY PAYMENTS,PRIVATE CONTRACTOR,REVENUE
